NUMERO_MANDATO;RIGA_MANDATO;QUIET;IMPORTO_RIGA;IMPORTO_MANDATO;BENEFICIARIO;CIG;TITOLO_PAGAMENTO;DATA_MANDATO;CAPITOLO;ARTICOLO;NUMERO_IMPEGNO;TITOLO;DESCR_TITOLO;LIVELLO_II;DESCR_LIVELLO_II;LIVELLO_III;DESCR_LIVELLO_III;LIVELLO_IV;DESCR_LIVELLO_IV;LIVELLO_V;DESCR_LIVELLO_V;DATA_PAG_EFF
1;1;0;31,45;31,45;omissis; ;CONTRIBUTO ECONOMICO STRAORDINARIO MEDIANTE ACQUISTO GENERI PRIMA NECESSITA';13/01/2017;3410;0;113;1;Spese correnti;4;Trasferimenti correnti;2;Trasferimenti correnti a Famiglie;2;Interventi assistenziali;999;Altri assegni e sussidi assistenziali;13/01/2017
4;1;0;515,73;2.850,20;ENEL SERVIZIO ELETTRICO SPA; ;SALDO Fatt.n. 18855023010158A  del 14/11/2016 via grisini sn;18/01/2017;660;0;42;1;Spese correnti;3;Acquisto di beni e servizi;2;Acquisto di servizi;99;Altri servizi;999;Altri servizi diversi n.a.c.;18/01/2017
4;2;0;175,22;2.850,20;ENEL SERVIZIO ELETTRICO SPA; ;SALDO Fatt.n. 18855023010158A  del 15/11/2016 via grisini;18/01/2017;660;0;42;1;Spese correnti;3;Acquisto di beni e servizi;2;Acquisto di servizi;99;Altri servizi;999;Altri servizi diversi n.a.c.;18/01/2017
4;3;0;697,19;2.850,20;ENEL SERVIZIO ELETTRICO SPA; ;SALDO Fatt.n. 18855023010158B  del 18/11/2016 via grisini ge-mar-2016;18/01/2017;660;0;42;1;Spese correnti;3;Acquisto di beni e servizi;2;Acquisto di servizi;99;Altri servizi;999;Altri servizi diversi n.a.c.;18/01/2017
4;4;0;701,94;2.850,20;ENEL SERVIZIO ELETTRICO SPA; ;SALDO Fatt.n. 18855023010158B  del 14/11/2016 VIA GRISINI;18/01/2017;660;0;42;1;Spese correnti;3;Acquisto di beni e servizi;2;Acquisto di servizi;99;Altri servizi;999;Altri servizi diversi n.a.c.;18/01/2017
4;5;0;760,12;2.850,20;ENEL SERVIZIO ELETTRICO SPA; ;SALDO Fatt.n. 18855023010158A  del 18/11/2016 via grisini;18/01/2017;660;0;42;1;Spese correnti;3;Acquisto di beni e servizi;2;Acquisto di servizi;99;Altri servizi;999;Altri servizi diversi n.a.c.;18/01/2017
5;1;0;135,88;135,88;ENEL SERVIZIO ELETTRICO SPA; ;SALDO Fatt.n. 188550080108511  del 11/11/2016 ill.via europa;18/01/2017;2390;0;58;1;Spese correnti;3;Acquisto di beni e servizi;2;Acquisto di servizi;5;Utenze e canoni;4;Energia elettrica;18/01/2017
6;1;0;1.134,77;3.802,16;MARTA S.C.R.L.;Z101B08B97;SALDO Fatt.n. 1196/EL  del 30/09/2016 FELSP;18/01/2017;1582;0;51;1;Spese correnti;3;Acquisto di beni e servizi;2;Acquisto di servizi;99;Altri servizi;999;Altri servizi diversi n.a.c.;18/01/2017
6;2;0;1.293,01;3.802,16;MARTA S.C.R.L.;Z101B08B97;SALDO Fatt.n. 1452/EL  del 30/11/2016 NOVEMBRE 2016;18/01/2017;1582;0;51;1;Spese correnti;3;Acquisto di beni e servizi;2;Acquisto di servizi;99;Altri servizi;999;Altri servizi diversi n.a.c.;18/01/2017
6;3;0;1.374,38;3.802,16;MARTA S.C.R.L.;Z101B08B97;SALDO Fatt.n. 1453/EL  del 30/11/2016 accomp scuolabus novembre 2016;18/01/2017;1582;0;51;1;Spese correnti;3;Acquisto di beni e servizi;2;Acquisto di servizi;99;Altri servizi;999;Altri servizi diversi n.a.c.;18/01/2017
7;1;0;880;880;ANFFAS ONLUS BRONI STRADELLA;Z3B1882A55;SALDO Fatt.n. 0000144  del 31/12/2016 II SEMESTRE 2016;18/01/2017;3400;1;68;1;Spese correnti;4;Trasferimenti correnti;1;Trasferimenti correnti a Amministrazioni Pubbliche;2;Trasferimenti correnti a Amministrazioni Locali;3;Trasferimenti correnti a Comuni;18/01/2017
8;1;0;590,48;590,48;COOPERATIVA TICINO; ;SALDO Fatt.n. FATTPA 3_17  del 02/01/2017 dicembre 2016;18/01/2017;390;0;33;1;Spese correnti;3;Acquisto di beni e servizi;2;Acquisto di servizi;13;Servizi ausiliari per il funzionamento dell'ente;2;Servizi di pulizia e lavanderia;18/01/2017
9;1;0;37.968,02;37.968,02;BRONI-STRADELLA Spa; ;SALDO Fatt.n. 607/E  del 04/11/2016 ASSISTENZA TECNICA ZETA PETROLI;18/01/2017;7846;0;80;2;Spese in conto capitale;5;Altre spese in conto capitale;99;Altre spese in conto capitale n.a.c.;99;Altre spese in conto capitale n.a.c.;999;Altre spese in conto capitale n.a.c.;18/01/2017
10;1;0;460,55;460,55;A.MANZONI & C. S.P.A.;Z4D1C6FDE4;SALDO Fatt.n. 20192016P00000656136  del 31/12/2016 FATT. IVA IN SPLIT;18/01/2017;490;0;39;1;Spese correnti;3;Acquisto di beni e servizi;2;Acquisto di servizi;2;Rappresentanza, organizzazione eventi, pubblicit� e servizi per trasferta;4;Pubblicit�;18/01/2017
11;1;0;9.412,93;9.412,93;BRONI-STRADELLA Spa;Z0619425A9;SALDO Fatt.n. 722/E  del 31/12/2016 RIFIUTI DICEMBRE 2016;18/01/2017;2940;0;13;1;Spese correnti;3;Acquisto di beni e servizi;2;Acquisto di servizi;99;Altri servizi;999;Altri servizi diversi n.a.c.;18/01/2017
12;1;0;2.031,15;6.831,25;BRONI-STRADELLA Spa;Z0619425A9;SALDO Fatt.n. 773/E  del 31/12/2016 SPAZZAMENTO;18/01/2017;2930;0;62;1;Spese correnti;3;Acquisto di beni e servizi;2;Acquisto di servizi;99;Altri servizi;999;Altri servizi diversi n.a.c.;18/01/2017
12;2;0;2.152,70;6.831,25;BRONI-STRADELLA Spa;Z0619425A9;SALDO Fatt.n. 696/E  del 30/11/2016 SPAZZAMENTO STRADE;18/01/2017;2930;0;62;1;Spese correnti;3;Acquisto di beni e servizi;2;Acquisto di servizi;99;Altri servizi;999;Altri servizi diversi n.a.c.;18/01/2017
12;3;0;2.647,40;6.831,25;BRONI-STRADELLA Spa;Z0619425A9;SALDO Fatt.n. 698/E  del 15/12/2016 LAVAGGIO CASSONETTI;18/01/2017;2930;0;62;1;Spese correnti;3;Acquisto di beni e servizi;2;Acquisto di servizi;99;Altri servizi;999;Altri servizi diversi n.a.c.;18/01/2017
13;1;0;140,3;140,3;HALLEY INFORMATICA SRL;Z801C98CDD;SALDO Fatt.n. 13823/8/10  del 31/12/2016 GRUPPO DAKER_NIKY800 Determina n. 70 del 17.12.16 Referente: Lanati Elisabetta;18/01/2017;386;0;32;1;Spese correnti;3;Acquisto di beni e servizi;1;Acquisto di beni;2;Altri beni di consumo;5;Accessori per uffici e alloggi;18/01/2017
14;1;0;6.676,45;6.676,45;BRUSCHI GEOM.MAURIZIO;Z171B66B8E;SALDO Fatt.n. 01/2017/PA  del 09/01/2017 SPAZZ;18/01/2017;2930;0;15;1;Spese correnti;3;Acquisto di beni e servizi;2;Acquisto di servizi;99;Altri servizi;999;Altri servizi diversi n.a.c.;18/01/2017
15;1;0;23,84;23,84;TELECOM ITALIA SPA; ;SALDO Fatt.n. 8B01046004  del 06/10/2016 6BIM 2016;18/01/2017;660;0;42;1;Spese correnti;3;Acquisto di beni e servizi;2;Acquisto di servizi;99;Altri servizi;999;Altri servizi diversi n.a.c.;18/01/2017
16;1;0;916,66;916,66;TEMPORARY S.p.A con Unico Socio; ;SALDO Fatt.n. 2016001609-E  del 30/11/2016 NOVEMBRE 2016;18/01/2017;125;0;24;1;Spese correnti;3;Acquisto di beni e servizi;2;Acquisto di servizi;12;Lavoro flessibile, quota LSU e acquisto di servizi da agenzie di lavoro interinale;1;Acquisto di servizi da agenzie di lavoro interinale;18/01/2017
17;1;0;451,72;451,72;C.M.E. MARMI E GRANITI;35487297CE;SALDO Fatt.n. 31/PA  del 25/11/2016 COTTIMO FIDUCIARIO;18/01/2017;3470;1;72;1;Spese correnti;3;Acquisto di beni e servizi;2;Acquisto di servizi;99;Altri servizi;999;Altri servizi diversi n.a.c.;18/01/2017
18;1;0;206,67;206,67;MAZZOCCHI GOMME Snc;ZE71C53D2A;ACCONTO Fatt.n. E15  del 28/12/2016;18/01/2017;1581;0;50;1;Spese correnti;3;Acquisto di beni e servizi;2;Acquisto di servizi;9;Manutenzione ordinaria e riparazioni;1;Manutenzione ordinaria e riparazioni di mezzi di trasporto ad uso civile, di sicurezza e ordine pubblico;18/01/2017
19;1;0;138,47;138,47;MAZZOCCHI GOMME Snc; ;SALDO Fatt.n. E15  del 28/12/2016;18/01/2017;950;0;46;1;Spese correnti;3;Acquisto di beni e servizi;2;Acquisto di servizi;9;Manutenzione ordinaria e riparazioni;1;Manutenzione ordinaria e riparazioni di mezzi di trasporto ad uso civile, di sicurezza e ordine pubblico;18/01/2017
20;1;0;1.645,77;1.645,77;OFFICINA ELETTRODIESEL DI GHIA ROMANO;Z7E1C53E47;SALDO Fatt.n. 8/P  del 23/12/2016 Fattura;18/01/2017;1581;0;50;1;Spese correnti;3;Acquisto di beni e servizi;2;Acquisto di servizi;9;Manutenzione ordinaria e riparazioni;1;Manutenzione ordinaria e riparazioni di mezzi di trasporto ad uso civile, di sicurezza e ordine pubblico;18/01/2017
21;1;0;1.037,83;1.037,83;MAZZOCCHI GOMME Snc;Z501C53DA5;SALDO Fatt.n. E14  del 28/12/2016 PNEUMATICI NUOVI MERCEDES;18/01/2017;1570;0;49;1;Spese correnti;3;Acquisto di beni e servizi;1;Acquisto di beni;2;Altri beni di consumo;2;Carburanti, combustibili e lubrificanti;18/01/2017
22;1;0;97,6;267,79;INFORMA SRL;ZD7125D1BE;SALDO Fatt.n. 4854/E  del 27/12/2016 FATTURA IMMEDIATA ELETTRONICA;18/01/2017;121;0;84;1;Spese correnti;3;Acquisto di beni e servizi;2;Acquisto di servizi;16;Servizi amministrativi;999;Altre spese per servizi amministrativi;18/01/2017
22;2;0;170,19;267,79;INFORMA SRL;ZD7125D1BE;SALDO Fatt.n. 4794/E  del 23/12/2016 FATTURA IMMEDIATA ELETTRONICA;18/01/2017;121;0;84;1;Spese correnti;3;Acquisto di beni e servizi;2;Acquisto di servizi;16;Servizi amministrativi;999;Altre spese per servizi amministrativi;18/01/2017
23;1;0;54,9;464,89;MAGGIOLI SPA;Z2E1BE2675;SALDO Fatt.n. 0002149148  del 16/12/2016 FATT. IVA SPLIT P.;18/01/2017;110;2;22;1;Spese correnti;3;Acquisto di beni e servizi;1;Acquisto di beni;2;Altri beni di consumo;1;Carta, cancelleria e stampati;18/01/2017
23;2;0;134,27;464,89;MAGGIOLI SPA;Z2E1BE2675;SALDO Fatt.n. 0002148585  del 16/12/2016 FATT. IVA SPLIT P.;18/01/2017;110;2;22;1;Spese correnti;3;Acquisto di beni e servizi;1;Acquisto di beni;2;Altri beni di consumo;1;Carta, cancelleria e stampati;18/01/2017
23;3;0;275,72;464,89;MAGGIOLI SPA;Z2E1BE2675;SALDO Fatt.n. 0002148584  del 16/12/2016 FATT. IVA SPLIT P.;18/01/2017;110;2;22;1;Spese correnti;3;Acquisto di beni e servizi;1;Acquisto di beni;2;Altri beni di consumo;1;Carta, cancelleria e stampati;18/01/2017
24;1;0;10;1.545,00;LIBARNA GAS SPA; ;SALDO Fatt.n. 100717  del 27/12/2016 DICEMBRE;18/01/2017;660;0;0;1;Spese correnti;3;Acquisto di beni e servizi;2;Acquisto di servizi;99;Altri servizi;999;Altri servizi diversi n.a.c.;18/01/2017
24;2;0;10;1.545,00;LIBARNA GAS SPA; ;SALDO Fatt.n. 100720  del 27/12/2016 DICEMBRE;18/01/2017;660;0;0;1;Spese correnti;3;Acquisto di beni e servizi;2;Acquisto di servizi;99;Altri servizi;999;Altri servizi diversi n.a.c.;18/01/2017
24;3;0;31;1.545,00;LIBARNA GAS SPA; ;SALDO Fatt.n. 100719  del 27/12/2016 DICEMBRE;18/01/2017;660;0;0;1;Spese correnti;3;Acquisto di beni e servizi;2;Acquisto di servizi;99;Altri servizi;999;Altri servizi diversi n.a.c.;18/01/2017
24;4;0;128;1.545,00;LIBARNA GAS SPA; ;SALDO Fatt.n. 100721  del 27/12/2016 DICEMBRE;18/01/2017;660;0;0;1;Spese correnti;3;Acquisto di beni e servizi;2;Acquisto di servizi;99;Altri servizi;999;Altri servizi diversi n.a.c.;18/01/2017
24;5;0;307;1.545,00;LIBARNA GAS SPA; ;SALDO Fatt.n. 100722  del 27/12/2016 DICEMBRE;18/01/2017;660;0;0;1;Spese correnti;3;Acquisto di beni e servizi;2;Acquisto di servizi;99;Altri servizi;999;Altri servizi diversi n.a.c.;18/01/2017
24;6;0;470;1.545,00;LIBARNA GAS SPA; ;SALDO Fatt.n. 100723  del 27/12/2016 DICEMBRE;18/01/2017;660;0;0;1;Spese correnti;3;Acquisto di beni e servizi;2;Acquisto di servizi;99;Altri servizi;999;Altri servizi diversi n.a.c.;18/01/2017
24;7;0;589;1.545,00;LIBARNA GAS SPA; ;SALDO Fatt.n. 100718  del 27/12/2016 DICEMBRE;18/01/2017;660;0;0;1;Spese correnti;3;Acquisto di beni e servizi;2;Acquisto di servizi;99;Altri servizi;999;Altri servizi diversi n.a.c.;18/01/2017
25;1;0;254,62;254,62;MONTE ATTILIO; ;RIMBORSO SPESE VIAGGIO DEL 21.01.2017;23/01/2017;31;0;0;1;Spese correnti;3;Acquisto di beni e servizi;2;Acquisto di servizi;1;Organi e incarichi istituzionali dell'amministrazione;2;Organi istituzionali dell'amministrazione - Rimborsi;23/01/2017
40;1;0;450;450;omissis; ;CONTRIBUTO STRAORDINARIO ANNO 2016;02/02/2017;3410;0;113;1;Spese correnti;4;Trasferimenti correnti;2;Trasferimenti correnti a Famiglie;2;Interventi assistenziali;999;Altri assegni e sussidi assistenziali;02/02/2017
41;1;0;500;500;omissis; ;CONTRIBUTO STRAORDINARIO ANNO 2016;02/02/2017;3410;0;113;1;Spese correnti;4;Trasferimenti correnti;2;Trasferimenti correnti a Famiglie;2;Interventi assistenziali;999;Altri assegni e sussidi assistenziali;02/02/2017
42;1;0;375;375;omissis; ;CONTRIBUTO STRAORDINARIO ANNO 2016;02/02/2017;3410;0;113;1;Spese correnti;4;Trasferimenti correnti;2;Trasferimenti correnti a Famiglie;2;Interventi assistenziali;999;Altri assegni e sussidi assistenziali;02/02/2017
43;1;0;300;300;omissis; ;CONTRIBUTO STRAORDINARIO ANNO 2016;02/02/2017;3410;0;113;1;Spese correnti;4;Trasferimenti correnti;2;Trasferimenti correnti a Famiglie;2;Interventi assistenziali;999;Altri assegni e sussidi assistenziali;02/02/2017
44;1;0;500;500;omissis; ;CONTRIBUTO STRAORDINARIO ANNO 2016 MEDIANTE PAGAMENTO ACCONTO RETTA SIG. BIANCHI NINO;02/02/2017;3410;0;113;1;Spese correnti;4;Trasferimenti correnti;2;Trasferimenti correnti a Famiglie;2;Interventi assistenziali;999;Altri assegni e sussidi assistenziali;02/02/2017
45;1;0;450;450;omissis; ;CONTRIBUTO STRAORDINARIO ANNO 2016;02/02/2017;3420;0;70;1;Spese correnti;4;Trasferimenti correnti;2;Trasferimenti correnti a Famiglie;2;Interventi assistenziali;999;Altri assegni e sussidi assistenziali;02/02/2017
46;1;0;250;250;omissis; ;CONTRIBUTO STRAORDINARIO ANNO 2016;02/02/2017;3400;3;69;1;Spese correnti;4;Trasferimenti correnti;2;Trasferimenti correnti a Famiglie;2;Interventi assistenziali;999;Altri assegni e sussidi assistenziali;02/02/2017
47;1;0;450;450;omissis; ;CONTRIBUTO STRAORDINARIO ANNO 2016;02/02/2017;3420;0;70;1;Spese correnti;4;Trasferimenti correnti;2;Trasferimenti correnti a Famiglie;2;Interventi assistenziali;999;Altri assegni e sussidi assistenziali;02/02/2017
48;1;0;300;300;omissis; ;CONTRIBUTO STRAORDINARIO ANNO 2016;02/02/2017;3400;3;69;1;Spese correnti;4;Trasferimenti correnti;2;Trasferimenti correnti a Famiglie;2;Interventi assistenziali;999;Altri assegni e sussidi assistenziali;02/02/2017
49;1;0;250;250;omissis; ;CONTRIBUTO STRAORDINARIO 2016;02/02/2017;3400;3;69;1;Spese correnti;4;Trasferimenti correnti;2;Trasferimenti correnti a Famiglie;2;Interventi assistenziali;999;Altri assegni e sussidi assistenziali;02/02/2017
50;1;0;2.083,01;2.083,01;omissis; ;CONTRIBUTO NIDI GRATIS MAGGIO - SETTEMBRE 2016;02/02/2017;3130;2;67;1;Spese correnti;4;Trasferimenti correnti;2;Trasferimenti correnti a Famiglie;5;Altri trasferimenti a famiglie;999;Altri trasferimenti a famiglie n.a.c.;02/02/2017
51;1;0;353,81;353,81;IL MAGGIOLINO SOC.COOP. ONLUS; ;CONTRIBUTO NIDI GRATIS MESE DI OTTOBRE 2016 FAMIGLIA ALLOCCA;02/02/2017;3130;2;67;1;Spese correnti;4;Trasferimenti correnti;2;Trasferimenti correnti a Famiglie;5;Altri trasferimenti a famiglie;999;Altri trasferimenti a famiglie n.a.c.;02/02/2017
52;1;0;2.112,00;2.112,00;Maga Auto Sas;Z3A1B4DF13;SALDO Fatt.n. FATTPA 1_16  del 22/12/2016 TRASPORTO SCOLASTICO SET-DIC.2016;02/02/2017;1584;0;52;1;Spese correnti;3;Acquisto di beni e servizi;2;Acquisto di servizi;99;Altri servizi;999;Altri servizi diversi n.a.c.;02/02/2017
53;1;0;178,64;178,64;ENEL SERVIZIO ELETTRICO SPA; ;SALDO Fatt.n. 188550080108512  del 13/01/2017 IULL.PUBBLICA DIC.GEN.;02/02/2017;2390;0;0;1;Spese correnti;3;Acquisto di beni e servizi;2;Acquisto di servizi;5;Utenze e canoni;4;Energia elettrica;02/02/2017
55;1;0;264,38;264,38;LANATI ELISABETTA - ECONOMO; ;RENDICONTO ECONOMATO I TRIM. 2016;03/02/2017;110;1;21;1;Spese correnti;3;Acquisto di beni e servizi;1;Acquisto di beni;2;Altri beni di consumo;999;Altri beni e materiali di consumo n.a.c.;03/02/2017
56;1;0;50,7;50,7;LANATI ELISABETTA - ECONOMO; ;RENDICONTO ECONOMATO I TRIM. 2016;03/02/2017;200;0;28;1;Spese correnti;3;Acquisto di beni e servizi;1;Acquisto di beni;2;Altri beni di consumo;999;Altri beni e materiali di consumo n.a.c.;03/02/2017
57;1;0;80,62;80,62;LANATI ELISABETTA - ECONOMO; ;RENDICONTO ECONOMATO I TRIM. 2016;03/02/2017;387;0;34;1;Spese correnti;3;Acquisto di beni e servizi;1;Acquisto di beni;2;Altri beni di consumo;5;Accessori per uffici e alloggi;03/02/2017
58;1;0;349;349;LANATI ELISABETTA - ECONOMO; ;RENDICONTO ECONOMATO I TRIM. 2016;03/02/2017;395;0;36;1;Spese correnti;3;Acquisto di beni e servizi;2;Acquisto di servizi;99;Altri servizi;999;Altri servizi diversi n.a.c.;03/02/2017
59;1;0;75;75;LANATI ELISABETTA - ECONOMO; ;RENDICONTO ECONOMATO I TRIM. 2016;03/02/2017;650;0;41;1;Spese correnti;3;Acquisto di beni e servizi;1;Acquisto di beni;2;Altri beni di consumo;999;Altri beni e materiali di consumo n.a.c.;03/02/2017
60;1;0;335;335;LANATI ELISABETTA - ECONOMO; ;RENDICONTO ECONOMATO I TRIM. 2016;03/02/2017;1570;0;49;1;Spese correnti;3;Acquisto di beni e servizi;1;Acquisto di beni;2;Altri beni di consumo;2;Carburanti, combustibili e lubrificanti;03/02/2017
61;1;0;42,05;42,05;LANATI ELISABETTA - ECONOMO; ;RENDICONTO ECONOMATO II TRIM. 2016;03/02/2017;110;1;21;1;Spese correnti;3;Acquisto di beni e servizi;1;Acquisto di beni;2;Altri beni di consumo;999;Altri beni e materiali di consumo n.a.c.;03/02/2017
62;1;0;71,08;71,08;LANATI ELISABETTA - ECONOMO; ;RENDICONTO ECONOMATO II TRIM. 2016;03/02/2017;387;0;34;1;Spese correnti;3;Acquisto di beni e servizi;1;Acquisto di beni;2;Altri beni di consumo;5;Accessori per uffici e alloggi;03/02/2017
63;1;0;170;170;LANATI ELISABETTA - ECONOMO; ;RENDICONTO II TRIM. 2016;03/02/2017;395;0;36;1;Spese correnti;3;Acquisto di beni e servizi;2;Acquisto di servizi;99;Altri servizi;999;Altri servizi diversi n.a.c.;03/02/2017
64;1;0;509,45;509,45;LANATI ELISABETTA - ECONOMO; ;RENDICONTO ECONOMATO III TRIM. 2016;03/02/2017;110;1;21;1;Spese correnti;3;Acquisto di beni e servizi;1;Acquisto di beni;2;Altri beni di consumo;999;Altri beni e materiali di consumo n.a.c.;03/02/2017
65;1;0;211,3;211,3;LANATI ELISABETTA - ECONOMO; ;RENDICONTO ECONOMATO III TRIM. 2016;03/02/2017;200;0;28;1;Spese correnti;3;Acquisto di beni e servizi;1;Acquisto di beni;2;Altri beni di consumo;999;Altri beni e materiali di consumo n.a.c.;03/02/2017
66;1;0;666,4;666,4;LANATI ELISABETTA - ECONOMO; ;RENDICONTO ECONOMATO III TRIM. 2016;03/02/2017;387;0;34;1;Spese correnti;3;Acquisto di beni e servizi;1;Acquisto di beni;2;Altri beni di consumo;5;Accessori per uffici e alloggi;03/02/2017
67;1;0;270;270;LANATI ELISABETTA - ECONOMO; ;RENDICONTO ECONOMATO III TRIM. 2016;03/02/2017;395;0;36;1;Spese correnti;3;Acquisto di beni e servizi;2;Acquisto di servizi;99;Altri servizi;999;Altri servizi diversi n.a.c.;03/02/2017
68;1;0;80;80;LANATI ELISABETTA - ECONOMO; ;RENDICONTO ECONOMATO III TRIM. 2016;03/02/2017;20;0;18;1;Spese correnti;3;Acquisto di beni e servizi;1;Acquisto di beni;2;Altri beni di consumo;999;Altri beni e materiali di consumo n.a.c.;03/02/2017
69;1;0;260,56;260,56;LANATI ELISABETTA - ECONOMO; ;RENDICONTO ECONOMATO III TRIM. 2016;03/02/2017;650;0;41;1;Spese correnti;3;Acquisto di beni e servizi;1;Acquisto di beni;2;Altri beni di consumo;999;Altri beni e materiali di consumo n.a.c.;03/02/2017
70;1;0;163,99;163,99;LANATI ELISABETTA - ECONOMO; ;RENDICONTO ECONOMATO IV TRIM. 2016;03/02/2017;650;0;41;1;Spese correnti;3;Acquisto di beni e servizi;1;Acquisto di beni;2;Altri beni di consumo;999;Altri beni e materiali di consumo n.a.c.;03/02/2017
71;1;0;486,26;486,26;LANATI ELISABETTA - ECONOMO; ;RENDICONTO ECONOMATO IV TRIM. 2016;03/02/2017;200;0;28;1;Spese correnti;3;Acquisto di beni e servizi;1;Acquisto di beni;2;Altri beni di consumo;999;Altri beni e materiali di consumo n.a.c.;03/02/2017
72;1;0;203,46;203,46;LANATI ELISABETTA - ECONOMO; ;RENDICONTO ECONOMATO IV TRIM. 2016;03/02/2017;110;1;21;1;Spese correnti;3;Acquisto di beni e servizi;1;Acquisto di beni;2;Altri beni di consumo;999;Altri beni e materiali di consumo n.a.c.;03/02/2017
73;1;0;155,64;155,64;LANATI ELISABETTA - ECONOMO; ;RENDICONTO ECONOMATO IV TRIM. 2016;03/02/2017;387;0;34;1;Spese correnti;3;Acquisto di beni e servizi;1;Acquisto di beni;2;Altri beni di consumo;5;Accessori per uffici e alloggi;03/02/2017
74;1;0;270;270;LANATI ELISABETTA - ECONOMO; ;RENDICONTO ECONOMATO IV TRIM. 2016;03/02/2017;20;0;18;1;Spese correnti;3;Acquisto di beni e servizi;1;Acquisto di beni;2;Altri beni di consumo;999;Altri beni e materiali di consumo n.a.c.;03/02/2017
75;1;0;222;222;LANATI ELISABETTA - ECONOMO; ;RENDICONTO ECONOMATO IV TRIM. 2016;03/02/2017;120;2;23;1;Spese correnti;3;Acquisto di beni e servizi;2;Acquisto di servizi;4;Acquisto di servizi per formazione e addestramento del personale dell'ente;999;Acquisto di servizi per altre spese per formazione e addestramento n.a.c.;03/02/2017
76;1;0;42,83;42,83;omissis; ;Contributo straordinario anno 2016;08/02/2017;3410;0;113;1;Spese correnti;4;Trasferimenti correnti;2;Trasferimenti correnti a Famiglie;2;Interventi assistenziali;999;Altri assegni e sussidi assistenziali;08/02/2017
79;1;0;41,7;41,7;BANCA ITB; ;VOUCHER TRASPORTO SCUOLABUS DEL 09.02.2016;09/02/2017;1584;0;0;1;Spese correnti;3;Acquisto di beni e servizi;2;Acquisto di servizi;99;Altri servizi;999;Altri servizi diversi n.a.c.;09/02/2017
81;1;0;23,9;246,52;TELECOM ITALIA SPA;54663373FE;SALDO Fatt.n. 8B01040622  del 06/10/2016 6BIM 2016 - PROVV.N. 3 DEL 17.01.20147;10/02/2017;660;0;42;1;Spese correnti;3;Acquisto di beni e servizi;2;Acquisto di servizi;99;Altri servizi;999;Altri servizi diversi n.a.c.;10/02/2017
81;2;0;24,3;246,52;TELECOM ITALIA SPA;54663373FE;SALDO Fatt.n. 8B01046688  del 06/10/2016 6BIM 2016 - PROVV.N. 5 DEL 17.01.2017;10/02/2017;660;0;42;1;Spese correnti;3;Acquisto di beni e servizi;2;Acquisto di servizi;99;Altri servizi;999;Altri servizi diversi n.a.c.;10/02/2017
81;3;0;27,61;246,52;TELECOM ITALIA SPA;54663373FE;SALDO Fatt.n. 8B01045157  del 06/10/2016 6BIM 2016 - PROVV.N. 4 DEL 17.01.2017;10/02/2017;660;0;42;1;Spese correnti;3;Acquisto di beni e servizi;2;Acquisto di servizi;99;Altri servizi;999;Altri servizi diversi n.a.c.;10/02/2017
81;4;0;63,11;246,52;TELECOM ITALIA SPA;54663373FE;SALDO Fatt.n. 8B01042578  del 06/10/2016 6BIM 2016 - PROVV.N. 6 DEL 17.01.2017;10/02/2017;660;0;42;1;Spese correnti;3;Acquisto di beni e servizi;2;Acquisto di servizi;99;Altri servizi;999;Altri servizi diversi n.a.c.;10/02/2017
81;5;0;107,6;246,52;TELECOM ITALIA SPA;54663373FE;SALDO Fatt.n. 8B01040246  del 06/10/2016 6BIM 2016 - PROVV.N. 2 DEL 17.01.2017;10/02/2017;660;0;42;1;Spese correnti;3;Acquisto di beni e servizi;2;Acquisto di servizi;99;Altri servizi;999;Altri servizi diversi n.a.c.;10/02/2017
82;1;0;152,7;152,7;BARBIERI ENZO E FIGLIO SRL;595806706E;SALDO Fatt.n. 121/PA  del 01/12/2016 RIF.TO VS. ORDINE N. 1608610 DEL 10/10/2014 RIF.TO VS. DETERMINAZIONE N. 42 DEL 10/10/2014;10/02/2017;390;1;35;1;Spese correnti;3;Acquisto di beni e servizi;2;Acquisto di servizi;9;Manutenzione ordinaria e riparazioni;6;Manutenzione ordinaria e riparazioni di macchine per ufficio;10/02/2017
85;1;0;2.295,23;2.295,23;CASSA DD.PP.; ;QUOTA INTERESSI MUTUI RATA 31.12.2016 - PROVV.N. 1 DEL 02.01.2017;13/02/2017;2860;0;61;1;Spese correnti;7;Interessi passivi;5;Interessi su Mutui e altri finanziamenti a medio lungo termine;5;Interessi passivi su mutui e altri finanziamenti a medio lungo termine ad altri soggetti;999;Interessi passivi su mutui e altri finanziamenti a medio lungo termine ad altri soggetti;13/02/2017
88;1;0;601,7;601,7;BANCA ITB; ;VOUCHER TRASPORTO DAL 13.02.2017 AL 17.02.2017;14/02/2017;1584;0;0;1;Spese correnti;3;Acquisto di beni e servizi;2;Acquisto di servizi;99;Altri servizi;999;Altri servizi diversi n.a.c.;14/02/2017
89;1;0;470,5;470,5;GHIA PIERO AGENTE ALLIANZ SPA; ;POLIZZA N. 48966635 SCAD. 05.02.2017;15/02/2017;390;1;0;1;Spese correnti;3;Acquisto di beni e servizi;2;Acquisto di servizi;9;Manutenzione ordinaria e riparazioni;6;Manutenzione ordinaria e riparazioni di macchine per ufficio;15/02/2017
90;1;0;417,24;417,24;BRUSCHI GEOM.MAURIZIO;ZDD125C4A7;SALDO Fatt.n. 6/2017/PA  del 26/01/2017 INCIDENTE DEL 05.03.2016;16/02/2017;7810;13;147;2;Spese in conto capitale;5;Altre spese in conto capitale;99;Altre spese in conto capitale n.a.c.;99;Altre spese in conto capitale n.a.c.;999;Altre spese in conto capitale n.a.c.;16/02/2017
91;1;0;412,24;412,24;BRUSCHI GEOM.MAURIZIO;ZDD125C4A7;SALDO Fatt.n. 05/2017/PA  del 26/01/2017 RIPRISTINO INCIDENTE 26.12.2015;16/02/2017;7810;13;147;2;Spese in conto capitale;5;Altre spese in conto capitale;99;Altre spese in conto capitale n.a.c.;99;Altre spese in conto capitale n.a.c.;999;Altre spese in conto capitale n.a.c.;16/02/2017
92;1;0;3.912,22;3.912,22;BRUSCHI GEOM.MAURIZIO;ZDD125C4A7;SALDO Fatt.n. 2/2017/PA  del 26/01/2017 VIABILITA';16/02/2017;7810;13;147;2;Spese in conto capitale;5;Altre spese in conto capitale;99;Altre spese in conto capitale n.a.c.;99;Altre spese in conto capitale n.a.c.;999;Altre spese in conto capitale n.a.c.;16/02/2017
93;1;0;7.941,64;7.941,64;BRUSCHI GEOM.MAURIZIO; ;SALDO Fatt.n. 4/2017/PA  del 26/01/2017 manut. cimiteri;16/02/2017;7810;13;147;2;Spese in conto capitale;5;Altre spese in conto capitale;99;Altre spese in conto capitale n.a.c.;99;Altre spese in conto capitale n.a.c.;999;Altre spese in conto capitale n.a.c.;16/02/2017
94;1;0;4.836,89;4.836,89;BRUSCHI GEOM.MAURIZIO; ;SALDO Fatt.n. 3/2017/PA  del 26/01/2017 MANUT. CIMITERI;16/02/2017;7810;13;147;2;Spese in conto capitale;5;Altre spese in conto capitale;99;Altre spese in conto capitale n.a.c.;99;Altre spese in conto capitale n.a.c.;999;Altre spese in conto capitale n.a.c.;16/02/2017
95;1;0;552;552;COMUNE DI STRADELLA; ;QUOTA SERVIZI DIURNI DICEMBRE 2016 N. 2 UTENTI;16/02/2017;3400;1;3;1;Spese correnti;4;Trasferimenti correnti;1;Trasferimenti correnti a Amministrazioni Pubbliche;2;Trasferimenti correnti a Amministrazioni Locali;3;Trasferimenti correnti a Comuni;16/02/2017
96;1;0;600;600;CHIESA PARROCCHIALE SAN LORENZO; ;CONTRIBUTO PER CONCERTO DI NATALE 2016;16/02/2017;1780;0;54;1;Spese correnti;4;Trasferimenti correnti;4;Trasferimenti correnti a Istituzioni Sociali Private;1;Trasferimenti correnti a Istituzioni Sociali Private;1;Trasferimenti correnti a Istituzioni Sociali Private;16/02/2017
99;1;0;1.035,00;1.035,00;MONTE ATTILIO; ;COMPENSO REVISORE II Semestre - periodo da settembre a dicembre 2016;22/02/2017;30;0;19;1;Spese correnti;3;Acquisto di beni e servizi;2;Acquisto di servizi;1;Organi e incarichi istituzionali dell'amministrazione;8;Compensi agli organi istituzionali di revisione, di controllo ed altri incarichi istituzionali dell'amministrazione;22/02/2017
100;1;0;517,5;517,5;MONTE ATTILIO; ;Compenso revisore mesi di gennaio- febbraio 2017 - Netto Euro 398,42;22/02/2017;30;0;0;1;Spese correnti;3;Acquisto di beni e servizi;2;Acquisto di servizi;1;Organi e incarichi istituzionali dell'amministrazione;8;Compensi agli organi istituzionali di revisione, di controllo ed altri incarichi istituzionali dell'amministrazione;22/02/2017
106;1;0;132,01;132,01;REGIONE LOMBARDIA; ;VERSAMENTO IRAP SU COMPENSO REVISORE;22/02/2017;30;0;19;1;Spese correnti;3;Acquisto di beni e servizi;2;Acquisto di servizi;1;Organi e incarichi istituzionali dell'amministrazione;8;Compensi agli organi istituzionali di revisione, di controllo ed altri incarichi istituzionali dell'amministrazione;22/02/2017
113;1;0;483;483;ERARIO; ;VERSAMENTO IVA ANNUALE ANNO 2016 SCAD. 16.03.2016;25/02/2017;686;0;0;1;Spese correnti;10;Altre spese correnti;3;Versamenti IVA a debito;1;Versamenti IVA a debito per le gestioni commerciali;1;Versamenti IVA a debito per le gestioni commerciali;25/02/2017
115;1;0;33,82;33,82;REGIONE LOMBARDIA; ;BOLLO AUTOCARRO PROTEZIONE CIVILE TARGA EG755WV;01/03/2017;390;1;0;1;Spese correnti;3;Acquisto di beni e servizi;2;Acquisto di servizi;9;Manutenzione ordinaria e riparazioni;1;Manutenzione ordinaria e riparazioni di mezzi di trasporto ad uso civile, di sicurezza e ordine pubblico;01/03/2017
117;1;0;41,7;41,7;BANCA ITB; ;VOUCHER TRASPORTO DEL 02.03.2016;01/03/2017;1584;0;0;1;Spese correnti;3;Acquisto di beni e servizi;2;Acquisto di servizi;99;Altri servizi;999;Altri servizi diversi n.a.c.;01/03/2017
118;1;0;53,28;53,28;ENEL SERVIZIO ELETTRICO SPA; ;SALDO Fatt.n. 188550270101214  del 13/01/2017 VIA FALCONE - PROVV.N. 8 DEL 02.02.2017;02/03/2017;661;0;44;1;Spese correnti;3;Acquisto di beni e servizi;2;Acquisto di servizi;5;Utenze e canoni;4;Energia elettrica;02/03/2017
119;1;0;2;2;INTESA SAN PAOLO SPA; ;IMPOSTA DI BOLLO - PROVV.N. 10 DEL 08.02.2017;02/03/2017;135;0;0;1;Spese correnti;3;Acquisto di beni e servizi;2;Acquisto di servizi;99;Altri servizi;999;Altri servizi diversi n.a.c.;02/03/2017
122;1;0;29,91;29,91;TELECOM ITALIA SPA; ;SALDO Fatt.n. 8B01268736  del 06/12/2016 1BIM 2017;02/03/2017;660;0;42;1;Spese correnti;3;Acquisto di beni e servizi;2;Acquisto di servizi;99;Altri servizi;999;Altri servizi diversi n.a.c.;02/03/2017
123;1;0;710,04;710,04;GRASSI UFFICIO SAS DI GIORGIO GRASSI & C;Z7C1C00948;SALDO Fatt.n. 004340  del 30/11/2016 C/VENDITA;02/03/2017;110;2;22;1;Spese correnti;3;Acquisto di beni e servizi;1;Acquisto di beni;2;Altri beni di consumo;1;Carta, cancelleria e stampati;02/03/2017
124;1;0;1.903,20;1.903,20;EMPOLATI DAVIDE;ZF01AD9D1E;SALDO Fatt.n. FATTPA 1_16  del 20/12/2016 SPESE TECNICHE DEMOLIZIONE FABBRICATO;02/03/2017;7805;0;77;2;Spese in conto capitale;5;Altre spese in conto capitale;99;Altre spese in conto capitale n.a.c.;99;Altre spese in conto capitale n.a.c.;999;Altre spese in conto capitale n.a.c.;02/03/2017
125;1;0;168,73;168,73;ECOTEC S.R.L.;Z9E1A6BSCD;SALDO Fatt.n. 15/PA  del 20/01/2017 I TRIM. 2017;02/03/2017;390;1;0;1;Spese correnti;3;Acquisto di beni e servizi;2;Acquisto di servizi;9;Manutenzione ordinaria e riparazioni;6;Manutenzione ordinaria e riparazioni di macchine per ufficio;02/03/2017
126;1;0;10;1.913,00;LIBARNA GAS SPA; ;SALDO Fatt.n. 100037  del 31/01/2017 MEANO;02/03/2017;660;0;0;1;Spese correnti;3;Acquisto di beni e servizi;2;Acquisto di servizi;99;Altri servizi;999;Altri servizi diversi n.a.c.;02/03/2017
126;2;0;10;1.913,00;LIBARNA GAS SPA; ;SALDO Fatt.n. 100040  del 31/01/2017 METANO;02/03/2017;660;0;0;1;Spese correnti;3;Acquisto di beni e servizi;2;Acquisto di servizi;99;Altri servizi;999;Altri servizi diversi n.a.c.;02/03/2017
126;3;0;132;1.913,00;LIBARNA GAS SPA; ;SALDO Fatt.n. 100041  del 31/01/2017 METANO;02/03/2017;660;0;0;1;Spese correnti;3;Acquisto di beni e servizi;2;Acquisto di servizi;99;Altri servizi;999;Altri servizi diversi n.a.c.;02/03/2017
126;4;0;190;1.913,00;LIBARNA GAS SPA; ;SALDO Fatt.n. 100039  del 31/01/2017 METANO;02/03/2017;660;0;0;1;Spese correnti;3;Acquisto di beni e servizi;2;Acquisto di servizi;99;Altri servizi;999;Altri servizi diversi n.a.c.;02/03/2017
126;5;0;331;1.913,00;LIBARNA GAS SPA; ;SALDO Fatt.n. 100042  del 31/01/2017 METANO;02/03/2017;660;0;0;1;Spese correnti;3;Acquisto di beni e servizi;2;Acquisto di servizi;99;Altri servizi;999;Altri servizi diversi n.a.c.;02/03/2017
126;6;0;555;1.913,00;LIBARNA GAS SPA; ;SALDO Fatt.n. 100043  del 31/01/2017 METANO;02/03/2017;660;0;0;1;Spese correnti;3;Acquisto di beni e servizi;2;Acquisto di servizi;99;Altri servizi;999;Altri servizi diversi n.a.c.;02/03/2017
126;7;0;685;1.913,00;LIBARNA GAS SPA; ;SALDO Fatt.n. 100038  del 31/01/2017 METANO;02/03/2017;660;0;0;1;Spese correnti;3;Acquisto di beni e servizi;2;Acquisto di servizi;99;Altri servizi;999;Altri servizi diversi n.a.c.;02/03/2017
127;1;0;590,48;590,48;COOPERATIVA TICINO; ;SALDO Fatt.n. FATTPA 18_17  del 01/02/2017 GENNAIO 2017;02/03/2017;390;0;0;1;Spese correnti;3;Acquisto di beni e servizi;2;Acquisto di servizi;13;Servizi ausiliari per il funzionamento dell'ente;2;Servizi di pulizia e lavanderia;02/03/2017
128;1;0;1,97;70,17;PAVIA ACQUE S.C.A.R.L.; ;SALDO Fatt.n. 1350020171500044600  del 03/02/2017 B/Bollettazione;02/03/2017;660;0;0;1;Spese correnti;3;Acquisto di beni e servizi;2;Acquisto di servizi;99;Altri servizi;999;Altri servizi diversi n.a.c.;02/03/2017
128;2;0;1,97;70,17;PAVIA ACQUE S.C.A.R.L.; ;SALDO Fatt.n. 1350020171500044800  del 03/02/2017 B/Bollettazione;02/03/2017;660;0;0;1;Spese correnti;3;Acquisto di beni e servizi;2;Acquisto di servizi;99;Altri servizi;999;Altri servizi diversi n.a.c.;02/03/2017
128;3;0;3,17;70,17;PAVIA ACQUE S.C.A.R.L.; ;SALDO Fatt.n. 1350020171500044700  del 03/02/2017 B/Bollettazione;02/03/2017;660;0;0;1;Spese correnti;3;Acquisto di beni e servizi;2;Acquisto di servizi;99;Altri servizi;999;Altri servizi diversi n.a.c.;02/03/2017
128;4;0;3,76;70,17;PAVIA ACQUE S.C.A.R.L.; ;SALDO Fatt.n. 1350020171500044400  del 03/02/2017 B/Bollettazione;02/03/2017;660;0;0;1;Spese correnti;3;Acquisto di beni e servizi;2;Acquisto di servizi;99;Altri servizi;999;Altri servizi diversi n.a.c.;02/03/2017
128;5;0;3,76;70,17;PAVIA ACQUE S.C.A.R.L.; ;SALDO Fatt.n. 1350020171500044300  del 03/02/2017 B/Bollettazione;02/03/2017;660;0;0;1;Spese correnti;3;Acquisto di beni e servizi;2;Acquisto di servizi;99;Altri servizi;999;Altri servizi diversi n.a.c.;02/03/2017
128;6;0;4,35;70,17;PAVIA ACQUE S.C.A.R.L.; ;SALDO Fatt.n. 1350020171500044500  del 03/02/2017 B/Bollettazione;02/03/2017;660;0;0;1;Spese correnti;3;Acquisto di beni e servizi;2;Acquisto di servizi;99;Altri servizi;999;Altri servizi diversi n.a.c.;02/03/2017
128;7;0;9,87;70,17;PAVIA ACQUE S.C.A.R.L.; ;SALDO Fatt.n. 1350020171500044000  del 03/02/2017 B/Bollettazione;02/03/2017;660;0;0;1;Spese correnti;3;Acquisto di beni e servizi;2;Acquisto di servizi;99;Altri servizi;999;Altri servizi diversi n.a.c.;02/03/2017
128;8;0;10,77;70,17;PAVIA ACQUE S.C.A.R.L.; ;SALDO Fatt.n. 1350020171500043900  del 03/02/2017 B/Bollettazione;02/03/2017;660;0;0;1;Spese correnti;3;Acquisto di beni e servizi;2;Acquisto di servizi;99;Altri servizi;999;Altri servizi diversi n.a.c.;02/03/2017
128;9;0;14,09;70,17;PAVIA ACQUE S.C.A.R.L.; ;SALDO Fatt.n. 1350020171500044100  del 03/02/2017 B/Bollettazione;02/03/2017;660;0;0;1;Spese correnti;3;Acquisto di beni e servizi;2;Acquisto di servizi;99;Altri servizi;999;Altri servizi diversi n.a.c.;02/03/2017
128;10;0;16,46;70,17;PAVIA ACQUE S.C.A.R.L.; ;SALDO Fatt.n. 1350020171500044900  del 03/02/2017 B/Bollettazione;02/03/2017;660;0;0;1;Spese correnti;3;Acquisto di beni e servizi;2;Acquisto di servizi;99;Altri servizi;999;Altri servizi diversi n.a.c.;02/03/2017
129;1;0;4,96;4,96;PAVIA ACQUE S.C.A.R.L.; ;SALDO Fatt.n. 1350020171500043800  del 03/02/2017 B/Bollettazione;02/03/2017;3471;0;73;1;Spese correnti;3;Acquisto di beni e servizi;2;Acquisto di servizi;5;Utenze e canoni;5;Acqua;02/03/2017
130;1;0;940,37;940,37;MARTA S.C.R.L.;Z101B08B97;SALDO Fatt.n. 1718/EL  del 31/12/2016 FELSP;02/03/2017;1582;0;51;1;Spese correnti;3;Acquisto di beni e servizi;2;Acquisto di servizi;99;Altri servizi;999;Altri servizi diversi n.a.c.;02/03/2017
131;1;0;2.485,14;2.485,14;ECHO SOCIETA' COOPERATIVA; ;SALDO Fatt.n. FATTPA 1_17  del 06/02/2017 2016;02/03/2017;665;0;45;1;Spese correnti;3;Acquisto di beni e servizi;2;Acquisto di servizi;16;Servizi amministrativi;999;Altre spese per servizi amministrativi;02/03/2017
132;1;0;601,7;601,7;BANCA ITB; ;VOUCHER TRASPORTO DAL 13.03.2017 AL 17.03.2017 - RITIRO A CURA DEL SIG. MAGROTTI LUIGI;09/03/2017;1584;0;0;1;Spese correnti;3;Acquisto di beni e servizi;2;Acquisto di servizi;99;Altri servizi;999;Altri servizi diversi n.a.c.;09/03/2017
133;1;0;42,69;42,69;omissis; ;CONTRIBUTO STRAORDINARIO MEDIANTE ACQUISTO GENERI PRIMA NECESSITA;10/03/2017;3410;0;113;1;Spese correnti;4;Trasferimenti correnti;2;Trasferimenti correnti a Famiglie;2;Interventi assistenziali;999;Altri assegni e sussidi assistenziali;10/03/2017
134;1;0;227,27;227,27;MONTE ATTILIO; ;RIMBORSO SPESE VIAGGIO DEL 11.03.2017;13/03/2017;31;0;0;1;Spese correnti;3;Acquisto di beni e servizi;2;Acquisto di servizi;1;Organi e incarichi istituzionali dell'amministrazione;2;Organi istituzionali dell'amministrazione - Rimborsi;13/03/2017
135;1;0;2.801,70;2.801,70;BANCA ITB; ;ACQUISTO VOUCHER PER TRASPORTO SCUOLABUS;17/03/2017;1584;0;0;1;Spese correnti;3;Acquisto di beni e servizi;2;Acquisto di servizi;99;Altri servizi;999;Altri servizi diversi n.a.c.;17/03/2017
136;1;0;3,4;3,4;BANCA ITB; ;SPESE ACQUISTO VOUCHER - RICEVUTA ALLEGATA AL MAND. 135;20/03/2017;1584;0;0;1;Spese correnti;3;Acquisto di beni e servizi;2;Acquisto di servizi;99;Altri servizi;999;Altri servizi diversi n.a.c.;20/03/2017
137;1;0;297;297;COMUNE DI BRONI; ;MIO TAXI anno 2016;21/03/2017;3426;0;71;1;Spese correnti;4;Trasferimenti correnti;1;Trasferimenti correnti a Amministrazioni Pubbliche;2;Trasferimenti correnti a Amministrazioni Locali;3;Trasferimenti correnti a Comuni;21/03/2017
151;1;0;544,5;544,5;MONTAGNA & RAME SAS; ;POLIZZA N. 166.13.81108 SCAD. 25.03.2017 FIAT PUNTO;22/03/2017;390;3;0;1;Spese correnti;3;Acquisto di beni e servizi;2;Acquisto di servizi;99;Altri servizi;999;Altri servizi diversi n.a.c.;22/03/2017
152;1;0;29,91;103,82;CARTOLERIA VANETTA DI MOLINARI IVANO; ;LIBRI elementari;22/03/2017;1330;2;48;1;Spese correnti;4;Trasferimenti correnti;3;Trasferimenti correnti a Imprese;99;Trasferimenti correnti a altre imprese;999;Trasferimenti correnti a altre imprese;22/03/2017
152;2;0;73,91;103,82;CARTOLIBRERIA FANTASIA; ;LIBRI elementari;22/03/2017;1330;2;48;1;Spese correnti;4;Trasferimenti correnti;3;Trasferimenti correnti a Imprese;99;Trasferimenti correnti a altre imprese;999;Trasferimenti correnti a altre imprese;22/03/2017
153;1;0;24,23;24,23;TELECOM ITALIA SPA; ;SALDO Fatt.n. 8B00113446  del 06/02/2017 2BIM 2017;22/03/2017;660;0;0;1;Spese correnti;3;Acquisto di beni e servizi;2;Acquisto di servizi;99;Altri servizi;999;Altri servizi diversi n.a.c.;22/03/2017
154;1;0;204,8;204,8;MAGGIOLI SPA;Z441D70E7E;SALDO Fatt.n. 0002107303  del 27/02/2017 FATT. IVA SPLIT P.;22/03/2017;110;2;0;1;Spese correnti;3;Acquisto di beni e servizi;1;Acquisto di beni;2;Altri beni di consumo;1;Carta, cancelleria e stampati;22/03/2017
155;1;0;31,96;31,96;MAGGIOLI SPA;Z2E1BE2675;SALDO Fatt.n. 0002107302  del 27/02/2017 FATT. IVA SPLIT P.;22/03/2017;110;2;22;1;Spese correnti;3;Acquisto di beni e servizi;1;Acquisto di beni;2;Altri beni di consumo;1;Carta, cancelleria e stampati;22/03/2017
156;1;0;5.387,28;5.387,28;BRUSCHI GEOM.MAURIZIO;Z0D1C98370;SALDO Fatt.n. 8/2017/PA  del 01/03/2017 manut cimiteriale;22/03/2017;8000;0;82;2;Spese in conto capitale;5;Altre spese in conto capitale;99;Altre spese in conto capitale n.a.c.;99;Altre spese in conto capitale n.a.c.;999;Altre spese in conto capitale n.a.c.;22/03/2017
157;1;0;474,58;474,58;BRUSCHI GEOM.MAURIZIO;ZDD125C4A7;SALDO Fatt.n. 7/2017/PA  del 01/03/2017 incidente del 09.05.2016;22/03/2017;7810;13;147;2;Spese in conto capitale;5;Altre spese in conto capitale;99;Altre spese in conto capitale n.a.c.;99;Altre spese in conto capitale n.a.c.;999;Altre spese in conto capitale n.a.c.;22/03/2017
158;1;0;11;1.960,00;LIBARNA GAS SPA; ;SALDO Fatt.n. 100117  del 28/02/2017 METANO;22/03/2017;660;0;0;1;Spese correnti;3;Acquisto di beni e servizi;2;Acquisto di servizi;99;Altri servizi;999;Altri servizi diversi n.a.c.;22/03/2017
158;2;0;11;1.960,00;LIBARNA GAS SPA; ;SALDO Fatt.n. 100114  del 28/02/2017 METANO;22/03/2017;660;0;0;1;Spese correnti;3;Acquisto di beni e servizi;2;Acquisto di servizi;99;Altri servizi;999;Altri servizi diversi n.a.c.;22/03/2017
158;3;0;150;1.960,00;LIBARNA GAS SPA; ;SALDO Fatt.n. 100118  del 28/02/2017 METANO;22/03/2017;660;0;0;1;Spese correnti;3;Acquisto di beni e servizi;2;Acquisto di servizi;99;Altri servizi;999;Altri servizi diversi n.a.c.;22/03/2017
158;4;0;179;1.960,00;LIBARNA GAS SPA; ;SALDO Fatt.n. 100116  del 28/02/2017 METANO;22/03/2017;660;0;0;1;Spese correnti;3;Acquisto di beni e servizi;2;Acquisto di servizi;99;Altri servizi;999;Altri servizi diversi n.a.c.;22/03/2017
158;5;0;327;1.960,00;LIBARNA GAS SPA; ;SALDO Fatt.n. 100119  del 28/02/2017 METANO;22/03/2017;660;0;0;1;Spese correnti;3;Acquisto di beni e servizi;2;Acquisto di servizi;99;Altri servizi;999;Altri servizi diversi n.a.c.;22/03/2017
158;6;0;556;1.960,00;LIBARNA GAS SPA; ;SALDO Fatt.n. 100120  del 28/02/2017 METANO;22/03/2017;660;0;0;1;Spese correnti;3;Acquisto di beni e servizi;2;Acquisto di servizi;99;Altri servizi;999;Altri servizi diversi n.a.c.;22/03/2017
158;7;0;726;1.960,00;LIBARNA GAS SPA; ;SALDO Fatt.n. 100115  del 28/02/2017 METANO;22/03/2017;660;0;0;1;Spese correnti;3;Acquisto di beni e servizi;2;Acquisto di servizi;99;Altri servizi;999;Altri servizi diversi n.a.c.;22/03/2017
159;1;0;851;851;COMUNE DI STRADELLA; ;C.D.D. novembre 2016;22/03/2017;3400;1;3;1;Spese correnti;4;Trasferimenti correnti;1;Trasferimenti correnti a Amministrazioni Pubbliche;2;Trasferimenti correnti a Amministrazioni Locali;3;Trasferimenti correnti a Comuni;22/03/2017
160;1;0;9.465,58;18.931,16;BRONI-STRADELLA Spa;ZE01CE939F;SALDO Fatt.n. 25/E  del 15/02/2017 gennaio 2017;23/03/2017;2940;0;0;1;Spese correnti;3;Acquisto di beni e servizi;2;Acquisto di servizi;99;Altri servizi;999;Altri servizi diversi n.a.c.;23/03/2017
160;2;0;9.465,58;18.931,16;BRONI-STRADELLA Spa;ZE01CE939F;SALDO Fatt.n. 55/E  del 28/02/2017 FEBBRAIO 2017;23/03/2017;2940;0;0;1;Spese correnti;3;Acquisto di beni e servizi;2;Acquisto di servizi;99;Altri servizi;999;Altri servizi diversi n.a.c.;23/03/2017
161;1;0;727;727;KUWAIT PETROLEUM ITALIA SPA; ;ACCONTO Fatt.n. PJ00061119  del 31/12/2016;23/03/2017;1570;0;49;1;Spese correnti;3;Acquisto di beni e servizi;1;Acquisto di beni;2;Altri beni di consumo;2;Carburanti, combustibili e lubrificanti;23/03/2017
162;1;0;122,5;122,5;KUWAIT PETROLEUM ITALIA SPA;ZCB1769D6B;SALDO Fatt.n. PJ00061119  del 31/12/2016;23/03/2017;385;1;31;1;Spese correnti;3;Acquisto di beni e servizi;1;Acquisto di beni;2;Altri beni di consumo;2;Carburanti, combustibili e lubrificanti;23/03/2017
163;1;0;740;1.589,50;KUWAIT PETROLEUM ITALIA SPA; ;ACCONTO Fatt.n. PJ00068852  del 28/02/2017;23/03/2017;1570;0;0;1;Spese correnti;3;Acquisto di beni e servizi;1;Acquisto di beni;2;Altri beni di consumo;2;Carburanti, combustibili e lubrificanti;23/03/2017
163;2;0;849,5;1.589,50;KUWAIT PETROLEUM ITALIA SPA; ;ACCONTO Fatt.n. PJ00064990  del 31/01/2017;23/03/2017;1570;0;0;1;Spese correnti;3;Acquisto di beni e servizi;1;Acquisto di beni;2;Altri beni di consumo;2;Carburanti, combustibili e lubrificanti;23/03/2017
164;1;0;80;190;KUWAIT PETROLEUM ITALIA SPA; ;ACCONTO Fatt.n. PJ00068852  del 28/02/2017;23/03/2017;385;1;0;1;Spese correnti;3;Acquisto di beni e servizi;1;Acquisto di beni;2;Altri beni di consumo;2;Carburanti, combustibili e lubrificanti;23/03/2017
164;2;0;110;190;KUWAIT PETROLEUM ITALIA SPA; ;ACCONTO Fatt.n. PJ00064990  del 31/01/2017;23/03/2017;385;1;0;1;Spese correnti;3;Acquisto di beni e servizi;1;Acquisto di beni;2;Altri beni di consumo;2;Carburanti, combustibili e lubrificanti;23/03/2017
165;1;0;40;120;KUWAIT PETROLEUM ITALIA SPA;ZCB1769D6B;SALDO Fatt.n. PJ00068852  del 28/02/2017;23/03/2017;2290;0;0;1;Spese correnti;3;Acquisto di beni e servizi;1;Acquisto di beni;2;Altri beni di consumo;999;Altri beni e materiali di consumo n.a.c.;23/03/2017
165;2;0;80;120;KUWAIT PETROLEUM ITALIA SPA;ZCB1769D6B;SALDO Fatt.n. PJ00064990  del 31/01/2017;23/03/2017;2290;0;0;1;Spese correnti;3;Acquisto di beni e servizi;1;Acquisto di beni;2;Altri beni di consumo;999;Altri beni e materiali di consumo n.a.c.;23/03/2017
166;1;0;196,25;878,44;COOPERATIVA SOCIALE CODAMS DUE;ZE01BFD4D1;SALDO Fatt.n. FatPAM 603PA  del 30/11/2016 novembre 2016;23/03/2017;3115;0;11;1;Spese correnti;3;Acquisto di beni e servizi;2;Acquisto di servizi;99;Altri servizi;999;Altri servizi diversi n.a.c.;23/03/2017
166;2;0;682,19;878,44;COOPERATIVA SOCIALE CODAMS DUE;ZE01BFD4D1;SALDO Fatt.n. FatPAM 670PA  del 31/12/2016 dicembre;23/03/2017;3115;0;11;1;Spese correnti;3;Acquisto di beni e servizi;2;Acquisto di servizi;99;Altri servizi;999;Altri servizi diversi n.a.c.;23/03/2017
167;1;0;70,15;70,15;ENEL SERVIZIO ELETTRICO SPA; ;SALDO Fatt.n. 188550270101215  del 10/02/2017 VIA FALCONE - PROVV.N. 18 DEL 02.03.2017;23/03/2017;660;0;0;1;Spese correnti;3;Acquisto di beni e servizi;2;Acquisto di servizi;99;Altri servizi;999;Altri servizi diversi n.a.c.;23/03/2017
168;1;0;29,93;248,99;TELECOM ITALIA SPA;54663373FE;SALDO Fatt.n. 8B01270927  del 06/12/2016 1BIM 2017 - PROVV.N. 26 DEL 16.03.2017;23/03/2017;660;0;42;1;Spese correnti;3;Acquisto di beni e servizi;2;Acquisto di servizi;99;Altri servizi;999;Altri servizi diversi n.a.c.;23/03/2017
168;2;0;29,96;248,99;TELECOM ITALIA SPA;54663373FE;SALDO Fatt.n. 8B01265180  del 06/12/2016 1BIM 2017 - PTOVV.N. 28 DEL 16.03.2017;23/03/2017;660;0;42;1;Spese correnti;3;Acquisto di beni e servizi;2;Acquisto di servizi;99;Altri servizi;999;Altri servizi diversi n.a.c.;23/03/2017
168;3;0;34,94;248,99;TELECOM ITALIA SPA;54663373FE;SALDO Fatt.n. 8B01267623  del 06/12/2016 1BIM 2017 - PROVV.N. 27 DEL 16.03.2017;23/03/2017;660;0;42;1;Spese correnti;3;Acquisto di beni e servizi;2;Acquisto di servizi;99;Altri servizi;999;Altri servizi diversi n.a.c.;23/03/2017
168;4;0;62,34;248,99;TELECOM ITALIA SPA;54663373FE;SALDO Fatt.n. 8B01268619  del 06/12/2016 1BIM 2017 - PROVV.N. 29 DEL 16.03.2017;23/03/2017;660;0;42;1;Spese correnti;3;Acquisto di beni e servizi;2;Acquisto di servizi;99;Altri servizi;999;Altri servizi diversi n.a.c.;23/03/2017
168;5;0;91,82;248,99;TELECOM ITALIA SPA;54663373FE;SALDO Fatt.n. 8B01272830  del 06/12/2016 1BIM 2017 - PROVV.N. 25 DEL 16.03.2017;23/03/2017;660;0;42;1;Spese correnti;3;Acquisto di beni e servizi;2;Acquisto di servizi;99;Altri servizi;999;Altri servizi diversi n.a.c.;23/03/2017
169;1;0;21,32;21,32;CARTOLERIA CHEZ SWANN; ;SALDO Fatt.n. 8  del 13/12/2016 CEDOLE LIBRI;23/03/2017;1330;2;48;1;Spese correnti;4;Trasferimenti correnti;3;Trasferimenti correnti a Imprese;99;Trasferimenti correnti a altre imprese;999;Trasferimenti correnti a altre imprese;23/03/2017
170;1;0;268,4;268,4;CLIMED SRL;Z39125DC1A;SALDO Fatt.n. 17 E  del 22/12/2016 manut;23/03/2017;390;1;35;1;Spese correnti;3;Acquisto di beni e servizi;2;Acquisto di servizi;9;Manutenzione ordinaria e riparazioni;6;Manutenzione ordinaria e riparazioni di macchine per ufficio;23/03/2017
171;1;0;50;50;LOMBARDINI CLAUDIO; ;RIMBORSO SPESE PER DIRITTI CATASTALI DENUNCIA VARIAZIONE SEDE MUNICIPALE;23/03/2017;485;0;38;1;Spese correnti;10;Altre spese correnti;99;Altre spese correnti n.a.c.;99;Altre spese correnti n.a.c.;999;Altre spese correnti n.a.c.;23/03/2017
172;1;0;70,76;70,76;HALLEY INFORMATICA SRL; ;ACCONTO Fatt.n. 88/8/10  del 17/01/2017 GARANZIA FULMINI UPS ONSITE 3 ANNI GRUPPO Determina n. 70 del 17.12.16 Referente: Lanati Elisabetta;23/03/2017;386;0;32;1;Spese correnti;3;Acquisto di beni e servizi;1;Acquisto di beni;2;Altri beni di consumo;5;Accessori per uffici e alloggi;23/03/2017
173;1;0;552;1.381,60;HALLEY INFORMATICA SRL;Z0917AEF10;ACCONTO Fatt.n. 14099/8/10  del 31/12/2016 CANONE ANNO 2016 SERVIZIO CONSERVAZIONE DIGITALE ATTIVAZIONE E CONFIGURAZIONE SERVIZIO RIFERITO AL COMUNE DI CAMPOSPINOSO Determina n. 67   del 18.12.2015 Responsabile ordine dell'Ente Lanati Elisabe;23/03/2017;130;0;25;1;Spese correnti;3;Acquisto di beni e servizi;2;Acquisto di servizi;99;Altri servizi;999;Altri servizi diversi n.a.c.;23/03/2017
173;2;0;829,6;1.381,60;HALLEY INFORMATICA SRL;Z0917AEF10;SALDO Fatt.n. 14098/8/10  del 31/12/2016 CANONE ANNO 2016 SERVIZIO CONSERVAZIONE DIGITALE ATTIVAZIONE E CONFIGURAZIONE SERVIZIO Determina n. 67   del 18.12.2015 Responsabile ordine dell'Ente Lanati Elisabetta;23/03/2017;130;0;25;1;Spese correnti;3;Acquisto di beni e servizi;2;Acquisto di servizi;99;Altri servizi;999;Altri servizi diversi n.a.c.;23/03/2017
174;1;0;114,12;780,24;HALLEY INFORMATICA SRL;Z0917AEF10;SALDO Fatt.n. 14099/8/10  del 31/12/2016 CANONE ANNO 2016 SERVIZIO CONSERVAZIONE DIGITALE ATTIVAZIONE E CONFIGURAZIONE SERVIZIO RIFERITO AL COMUNE DI CAMPOSPINOSO Determina n. 67   del 18.12.2015 Responsabile ordine dell'Ente Lanati Elisabe;23/03/2017;110;1;21;1;Spese correnti;3;Acquisto di beni e servizi;1;Acquisto di beni;2;Altri beni di consumo;999;Altri beni e materiali di consumo n.a.c.;23/03/2017
174;2;0;666,12;780,24;HALLEY INFORMATICA SRL;Z0917AEF10;SALDO Fatt.n. 14100/8/10  del 31/12/2016 CANONE ANNO 2016 SERVIZIO CONSERVAZIONE DIGITALE ATTIVAZIONE E CONFIGURAZIONE SERVIZIO RIFERITO AL COMUNE DI ALBAREDO ARNABOLDI Determina n. 67   del 18.12.2015 Responsabile ordine dell'Ente Lanati E;23/03/2017;110;1;21;1;Spese correnti;3;Acquisto di beni e servizi;1;Acquisto di beni;2;Altri beni di consumo;999;Altri beni e materiali di consumo n.a.c.;23/03/2017
175;1;0;850;850;CIRCOLO S.LORENZO; ;CONTRIBUTO ANNO 2016;25/03/2017;2050;0;57;1;Spese correnti;4;Trasferimenti correnti;4;Trasferimenti correnti a Istituzioni Sociali Private;1;Trasferimenti correnti a Istituzioni Sociali Private;1;Trasferimenti correnti a Istituzioni Sociali Private;25/03/2017
176;1;0;3.150,00;3.150,00;FONDAZIONE PORTA SPINOLA ARNABOLDI CF: 84000520183; ;CONTRIBUTO ANNO 2016 PER FESTIVAL ULTRAPADUM;25/03/2017;1785;0;56;1;Spese correnti;4;Trasferimenti correnti;4;Trasferimenti correnti a Istituzioni Sociali Private;1;Trasferimenti correnti a Istituzioni Sociali Private;1;Trasferimenti correnti a Istituzioni Sociali Private;25/03/2017
177;1;0;350;350;UNIONE SPORTIVA ARNABOLDI; ;CONTRIBUTO ANNO 2016;25/03/2017;2050;0;57;1;Spese correnti;4;Trasferimenti correnti;4;Trasferimenti correnti a Istituzioni Sociali Private;1;Trasferimenti correnti a Istituzioni Sociali Private;1;Trasferimenti correnti a Istituzioni Sociali Private;25/03/2017
178;1;0;1.400,00;1.400,00;ASD ARNABOLDI; ;CONTRIBUTI ANNO 2016;25/03/2017;2050;0;57;1;Spese correnti;4;Trasferimenti correnti;4;Trasferimenti correnti a Istituzioni Sociali Private;1;Trasferimenti correnti a Istituzioni Sociali Private;1;Trasferimenti correnti a Istituzioni Sociali Private;25/03/2017
179;1;0;30.000,00;30.000,00;ASIOTTI ANGELO & FIGLI SRL;6781150DFE;ACCONTO Fatt.n. 29/E  del 31/12/2016 I SAL ROTATORIA;29/03/2017;7801;0;76;2;Spese in conto capitale;5;Altre spese in conto capitale;99;Altre spese in conto capitale n.a.c.;99;Altre spese in conto capitale n.a.c.;999;Altre spese in conto capitale n.a.c.;29/03/2017
180;1;0;81.266,24;81.266,24;ASIOTTI ANGELO & FIGLI SRL;6781150DFE;SALDO Fatt.n. 29/E  del 31/12/2016 I SAL ROTATORIA;07/04/2017;7801;0;76;2;Spese in conto capitale;5;Altre spese in conto capitale;99;Altre spese in conto capitale n.a.c.;99;Altre spese in conto capitale n.a.c.;999;Altre spese in conto capitale n.a.c.;07/04/2017
181;1;0;43,33;43,33;omissis; ;CONTRIBUTO STRAORDINARIO MEDIANTE ACQUISTO GENERI PRIMA NECESSITA';11/04/2017;3410;0;113;1;Spese correnti;4;Trasferimenti correnti;2;Trasferimenti correnti a Famiglie;2;Interventi assistenziali;999;Altri assegni e sussidi assistenziali;11/04/2017
182;1;0;65,82;65,82;ENEL SERVIZIO ELETTRICO SPA; ;SALDO Fatt.n. 188550270101216  del 10/03/2017 VIA FALCONE 10 - PROVV.N. 34 DEL 30.03.2017;12/04/2017;660;0;0;1;Spese correnti;3;Acquisto di beni e servizi;2;Acquisto di servizi;99;Altri servizi;999;Altri servizi diversi n.a.c.;12/04/2017
184;1;0;149;149;ENEL SERVIZIO ELETTRICO SPA; ;ILLUM.PUBBLICA VIA FIAMBERTA - FATT. PERVENUTA AL COMUNE - PROVV.N. 19 DEL 02.03.2017;12/04/2017;2390;0;0;1;Spese correnti;3;Acquisto di beni e servizi;2;Acquisto di servizi;5;Utenze e canoni;4;Energia elettrica;12/04/2017
185;1;0;150,9;150,9;ENEL SERVIZIO ELETTRICO SPA; ;SALDO Fatt.n. 188550080108513  del 10/03/2017 ILLUM. VIA EUROPA;12/04/2017;2390;0;0;1;Spese correnti;3;Acquisto di beni e servizi;2;Acquisto di servizi;5;Utenze e canoni;4;Energia elettrica;12/04/2017
187;1;0;1.113,03;1.113,03;IL MAGGIOLINO SOC.COOP. ONLUS; ;"RIMBORSO RETTE MISURA "" NIDI GRATIS"" NOVEMBRE E DICEMBRE 2016";15/04/2017;3130;2;67;1;Spese correnti;4;Trasferimenti correnti;2;Trasferimenti correnti a Famiglie;5;Altri trasferimenti a famiglie;999;Altri trasferimenti a famiglie n.a.c.;15/04/2017
188;1;0;107,77;389,92;IL MAGGIOLINO SOC.COOP. ONLUS; ;RIMBORSO RETTA MESE DI  DICEMBRE 2016 FAMIGLIA OLIVIERO;15/04/2017;3130;1;66;1;Spese correnti;4;Trasferimenti correnti;2;Trasferimenti correnti a Famiglie;5;Altri trasferimenti a famiglie;999;Altri trasferimenti a famiglie n.a.c.;15/04/2017
188;2;0;282,15;389,92;IL MAGGIOLINO SOC.COOP. ONLUS; ;RIMBORSO RETTE MESI DI SETTEMBRE-DICEMBRE 2016 FAMIGLIA ALLOCCA;15/04/2017;3130;1;66;1;Spese correnti;4;Trasferimenti correnti;2;Trasferimenti correnti a Famiglie;5;Altri trasferimenti a famiglie;999;Altri trasferimenti a famiglie n.a.c.;15/04/2017
189;1;0;339,47;438,22;omissis; ;Contribuso Asilo nido anno 2016/2017 SETTEMBRE-NOVEMBRE 2016;15/04/2017;3130;1;66;1;Spese correnti;4;Trasferimenti correnti;2;Trasferimenti correnti a Famiglie;5;Altri trasferimenti a famiglie;999;Altri trasferimenti a famiglie n.a.c.;15/04/2017
189;2;0;98,75;438,22;omissis; ;Contribuso Asilo nido anno 2016/2017 SETTEMBRE 2016;15/04/2017;3130;1;66;1;Spese correnti;4;Trasferimenti correnti;2;Trasferimenti correnti a Famiglie;5;Altri trasferimenti a famiglie;999;Altri trasferimenti a famiglie n.a.c.;15/04/2017
191;1;0;67,2;269,3;omissis; ;CONTRIBUTO MENSA ANNO SCOLASTICO 2014/2015 - VED. REV. 72;19/04/2017;1330;0;47;1;Spese correnti;4;Trasferimenti correnti;2;Trasferimenti correnti a Famiglie;2;Interventi assistenziali;999;Altri assegni e sussidi assistenziali;19/04/2017
191;2;0;115,2;269,3;omissis; ;CONTRIBUTO MENSA ANNO SCOLASTICO 2014/2015 - VED. REV. 72;19/04/2017;1330;0;47;1;Spese correnti;4;Trasferimenti correnti;2;Trasferimenti correnti a Famiglie;2;Interventi assistenziali;999;Altri assegni e sussidi assistenziali;19/04/2017
191;3;0;86,9;269,3;omissis; ;CONTRIBUTO MENSA ANNO SCOLASTICO 2014/2015 - VED. REV. 72;19/04/2017;1330;0;47;1;Spese correnti;4;Trasferimenti correnti;2;Trasferimenti correnti a Famiglie;2;Interventi assistenziali;999;Altri assegni e sussidi assistenziali;19/04/2017
209;1;0;227,27;227,27;MONTE ATTILIO; ;RIMBORSO SPESE DI VIAGGIO DEL 29.04.2017;02/05/2017;31;0;0;1;Spese correnti;3;Acquisto di beni e servizi;2;Acquisto di servizi;1;Organi e incarichi istituzionali dell'amministrazione;2;Organi istituzionali dell'amministrazione - Rimborsi;02/05/2017
211;1;0;2.392,00;2.392,00;CITTA' DI STRADELLA; ;QUOTA C.D.D. GENNAIO, FEBBRAIO E MARZO 2017 N. 2 UTENTI;02/05/2017;3400;1;0;1;Spese correnti;4;Trasferimenti correnti;1;Trasferimenti correnti a Amministrazioni Pubbliche;2;Trasferimenti correnti a Amministrazioni Locali;3;Trasferimenti correnti a Comuni;02/05/2017
212;1;0;75,64;499,29;INFORMA SRL;ZD7125D1BE;SALDO Fatt.n. 160/E  del 31/01/2017 FATTURA DIFFERITA ELETTRONICA;02/05/2017;121;0;0;1;Spese correnti;3;Acquisto di beni e servizi;2;Acquisto di servizi;16;Servizi amministrativi;999;Altre spese per servizi amministrativi;02/05/2017
212;2;0;85,1;499,29;INFORMA SRL;ZD7125D1BE;SALDO Fatt.n. 537/E  del 28/02/2017 STIPENDI FEBBRAIO 2017;02/05/2017;121;0;0;1;Spese correnti;3;Acquisto di beni e servizi;2;Acquisto di servizi;16;Servizi amministrativi;999;Altre spese per servizi amministrativi;02/05/2017
212;3;0;94,55;499,29;INFORMA SRL;ZD7125D1BE;SALDO Fatt.n. 989/E  del 31/03/2017 Stipendi marzo 2017;02/05/2017;121;0;0;1;Spese correnti;3;Acquisto di beni e servizi;2;Acquisto di servizi;16;Servizi amministrativi;999;Altre spese per servizi amministrativi;02/05/2017
212;4;0;109,8;499,29;INFORMA SRL;Z2C1D386E5;SALDO Fatt.n. 1287/E  del 31/03/2017 INVIO CERTIFICAZIONI;02/05/2017;121;0;0;1;Spese correnti;3;Acquisto di beni e servizi;2;Acquisto di servizi;16;Servizi amministrativi;999;Altre spese per servizi amministrativi;02/05/2017
212;5;0;134,2;499,29;INFORMA SRL;Z301D1F7F1;SALDO Fatt.n. 1288/E  del 31/03/2017 GESTIONE CERTIFICAZIONI;02/05/2017;121;0;0;1;Spese correnti;3;Acquisto di beni e servizi;2;Acquisto di servizi;16;Servizi amministrativi;999;Altre spese per servizi amministrativi;02/05/2017
213;1;0;124,44;124,44;MAGGIOLI SPA;Z441D70E7E;SALDO Fatt.n. 0002111840  del 29/03/2017 STAMPATI E CANCELLERIA;02/05/2017;110;2;0;1;Spese correnti;3;Acquisto di beni e servizi;1;Acquisto di beni;2;Altri beni di consumo;1;Carta, cancelleria e stampati;02/05/2017
214;1;0;1.358,78;1.358,78;C.M.E. MARMI E GRANITI;35487297CE;SALDO Fatt.n. 3/PA  del 24/02/2017 COTTIMO FIDUCIARIO;02/05/2017;3470;1;0;1;Spese correnti;3;Acquisto di beni e servizi;2;Acquisto di servizi;99;Altri servizi;999;Altri servizi diversi n.a.c.;02/05/2017
215;1;0;590,48;1.180,96;COOPERATIVA TICINO; ;SALDO Fatt.n. FATTPA 26_17  del 01/03/2017 FEBBRAIO;02/05/2017;390;0;0;1;Spese correnti;3;Acquisto di beni e servizi;2;Acquisto di servizi;13;Servizi ausiliari per il funzionamento dell'ente;2;Servizi di pulizia e lavanderia;02/05/2017
215;2;0;590,48;1.180,96;COOPERATIVA TICINO; ;SALDO Fatt.n. FATTPA 38_17  del 03/04/2017 MARZO 2017;02/05/2017;390;0;0;1;Spese correnti;3;Acquisto di beni e servizi;2;Acquisto di servizi;13;Servizi ausiliari per il funzionamento dell'ente;2;Servizi di pulizia e lavanderia;02/05/2017
216;1;0;9.465,58;9.465,58;BRONI-STRADELLA Spa;ZE01CE939F;SALDO Fatt.n. 125/E  del 31/03/2017 MARZO 2017;02/05/2017;2940;0;0;1;Spese correnti;3;Acquisto di beni e servizi;2;Acquisto di servizi;99;Altri servizi;999;Altri servizi diversi n.a.c.;02/05/2017
217;1;0;1.103,12;1.103,12;MARTA S.C.R.L.;Z101B08B97;SALDO Fatt.n. 85/EL  del 31/01/2017 GENNAIO 2017;02/05/2017;1582;0;0;1;Spese correnti;3;Acquisto di beni e servizi;2;Acquisto di servizi;99;Altri servizi;999;Altri servizi diversi n.a.c.;02/05/2017
218;1;0;9;895;LIBARNA GAS SPA; ;SALDO Fatt.n. 100186  del 28/03/2017 MARZO;02/05/2017;660;0;0;1;Spese correnti;3;Acquisto di beni e servizi;2;Acquisto di servizi;99;Altri servizi;999;Altri servizi diversi n.a.c.;02/05/2017
218;2;0;9;895;LIBARNA GAS SPA; ;SALDO Fatt.n. 100183  del 28/03/2017 MARZO;02/05/2017;660;0;0;1;Spese correnti;3;Acquisto di beni e servizi;2;Acquisto di servizi;99;Altri servizi;999;Altri servizi diversi n.a.c.;02/05/2017
218;3;0;69;895;LIBARNA GAS SPA; ;SALDO Fatt.n. 100185  del 28/03/2017 MARZO 2017;02/05/2017;660;0;0;1;Spese correnti;3;Acquisto di beni e servizi;2;Acquisto di servizi;99;Altri servizi;999;Altri servizi diversi n.a.c.;02/05/2017
218;4;0;80;895;LIBARNA GAS SPA; ;SALDO Fatt.n. 100187  del 28/03/2017 MARZO;02/05/2017;660;0;0;1;Spese correnti;3;Acquisto di beni e servizi;2;Acquisto di servizi;99;Altri servizi;999;Altri servizi diversi n.a.c.;02/05/2017
218;5;0;114;895;LIBARNA GAS SPA; ;SALDO Fatt.n. 100188  del 28/03/2017 MARZO;02/05/2017;660;0;0;1;Spese correnti;3;Acquisto di beni e servizi;2;Acquisto di servizi;99;Altri servizi;999;Altri servizi diversi n.a.c.;02/05/2017
218;6;0;255;895;LIBARNA GAS SPA; ;SALDO Fatt.n. 100189  del 28/03/2017 MARZO;02/05/2017;660;0;0;1;Spese correnti;3;Acquisto di beni e servizi;2;Acquisto di servizi;99;Altri servizi;999;Altri servizi diversi n.a.c.;02/05/2017
218;7;0;359;895;LIBARNA GAS SPA; ;SALDO Fatt.n. 100184  del 28/03/2017 MARZO;02/05/2017;660;0;0;1;Spese correnti;3;Acquisto di beni e servizi;2;Acquisto di servizi;99;Altri servizi;999;Altri servizi diversi n.a.c.;02/05/2017
219;1;0;32,76;32,76;ERARIO; ;VERSAMENTO IVA I TRIMESTRE 2017 SCAD. 16.05.2017;03/05/2017;686;0;0;1;Spese correnti;10;Altre spese correnti;3;Versamenti IVA a debito;1;Versamenti IVA a debito per le gestioni commerciali;1;Versamenti IVA a debito per le gestioni commerciali;03/05/2017
236;1;0;110.172,22;110.172,22;ASIOTTI ANGELO & FIGLI SRL;6781150DFE;SALDO Fatt.n. 4/E  del 05/04/2017 II SAL;25/05/2017;7801;0;76;2;Spese in conto capitale;5;Altre spese in conto capitale;99;Altre spese in conto capitale n.a.c.;99;Altre spese in conto capitale n.a.c.;999;Altre spese in conto capitale n.a.c.;25/05/2017
237;1;0;50;50;omissis; ;CONTRIBUTO STRAORDINARIO MEDIANTE ACQUISTO GENERI PRIMA NECESSITA';03/06/2017;3410;0;113;1;Spese correnti;4;Trasferimenti correnti;2;Trasferimenti correnti a Famiglie;2;Interventi assistenziali;999;Altri assegni e sussidi assistenziali;03/06/2017
238;1;0;148,45;148,45;UNIPOL SAI - AGENTE ARDISSONE PAOLO; ;POLIZZA N. 122-761575534 E N. 044-761681573 SCAD. 21.05.2017;03/06/2017;390;1;0;1;Spese correnti;3;Acquisto di beni e servizi;2;Acquisto di servizi;9;Manutenzione ordinaria e riparazioni;6;Manutenzione ordinaria e riparazioni di macchine per ufficio;03/06/2017
240;1;0;32,65;32,65;omissis; ;CONTRIBUTO STRAORDINARIO MEDIANTE ACQUISTO GENERI PRIMA NECESSITA';06/06/2017;3410;0;113;1;Spese correnti;4;Trasferimenti correnti;2;Trasferimenti correnti a Famiglie;2;Interventi assistenziali;999;Altri assegni e sussidi assistenziali;06/06/2017
241;1;0;890;890;MONTAGNA & RAME SAS; ;POLIZZA MEZZO PROTEZIONE CIVILE EG755WV;08/06/2017;2750;0;0;1;Spese correnti;3;Acquisto di beni e servizi;2;Acquisto di servizi;99;Altri servizi;999;Altri servizi diversi n.a.c.;08/06/2017
242;1;0;2.112,00;2.112,00;Maga Auto Sas; ;SALDO Fatt.n. FATTPA 1_17  del 30/04/2017 TRASPORTO GENNAIO-APRILE;08/06/2017;1584;0;0;1;Spese correnti;3;Acquisto di beni e servizi;2;Acquisto di servizi;99;Altri servizi;999;Altri servizi diversi n.a.c.;08/06/2017
243;1;0;763,33;763,33;C.M.E. MARMI E GRANITI;35487297CE;SALDO Fatt.n. 4/PA  del 08/03/2017 SERVIZI CIMITERIALI;08/06/2017;3470;1;0;1;Spese correnti;3;Acquisto di beni e servizi;2;Acquisto di servizi;99;Altri servizi;999;Altri servizi diversi n.a.c.;08/06/2017
244;1;0;11;456;LIBARNA GAS SPA; ;SALDO Fatt.n. 100251  del 28/04/2017 FATT.100251;08/06/2017;660;0;0;1;Spese correnti;3;Acquisto di beni e servizi;2;Acquisto di servizi;99;Altri servizi;999;Altri servizi diversi n.a.c.;08/06/2017
244;2;0;12;456;LIBARNA GAS SPA; ;SALDO Fatt.n. 100256  del 02/05/2017 FATT.;08/06/2017;660;0;0;1;Spese correnti;3;Acquisto di beni e servizi;2;Acquisto di servizi;99;Altri servizi;999;Altri servizi diversi n.a.c.;08/06/2017
244;3;0;12;456;LIBARNA GAS SPA; ;SALDO Fatt.n. 100254  del 28/04/2017 FATT. 100514;08/06/2017;660;0;0;1;Spese correnti;3;Acquisto di beni e servizi;2;Acquisto di servizi;99;Altri servizi;999;Altri servizi diversi n.a.c.;08/06/2017
244;4;0;12;456;LIBARNA GAS SPA; ;SALDO Fatt.n. 100252  del 28/04/2017 FATT.N. 100252;08/06/2017;660;0;0;1;Spese correnti;3;Acquisto di beni e servizi;2;Acquisto di servizi;99;Altri servizi;999;Altri servizi diversi n.a.c.;08/06/2017
244;5;0;50;456;LIBARNA GAS SPA; ;SALDO Fatt.n. 100253  del 28/04/2017 FATT.;08/06/2017;660;0;0;1;Spese correnti;3;Acquisto di beni e servizi;2;Acquisto di servizi;99;Altri servizi;999;Altri servizi diversi n.a.c.;08/06/2017
244;6;0;160;456;LIBARNA GAS SPA; ;SALDO Fatt.n. 100257  del 02/05/2017 FATT.;08/06/2017;660;0;0;1;Spese correnti;3;Acquisto di beni e servizi;2;Acquisto di servizi;99;Altri servizi;999;Altri servizi diversi n.a.c.;08/06/2017
244;7;0;199;456;LIBARNA GAS SPA; ;SALDO Fatt.n. 100255  del 28/04/2017 FATT.;08/06/2017;660;0;0;1;Spese correnti;3;Acquisto di beni e servizi;2;Acquisto di servizi;99;Altri servizi;999;Altri servizi diversi n.a.c.;08/06/2017
245;1;0;24,4;24,4;TEMPORARY S.p.A con Unico Socio; ;SALDO Fatt.n. 2017000162-E  del 01/02/2017 formazione lavoro temporaneo;08/06/2017;120;2;23;1;Spese correnti;3;Acquisto di beni e servizi;2;Acquisto di servizi;4;Acquisto di servizi per formazione e addestramento del personale dell'ente;999;Acquisto di servizi per altre spese per formazione e addestramento n.a.c.;08/06/2017
246;1;0;3.171,60;3.171,60;CRISTIANO ALBERTI;ZF1165EB03;SALDO Fatt.n. FATTPA 3_17  del 01/04/2017 saldo VARIANTE PGT;08/06/2017;7833;0;79;2;Spese in conto capitale;5;Altre spese in conto capitale;99;Altre spese in conto capitale n.a.c.;99;Altre spese in conto capitale n.a.c.;999;Altre spese in conto capitale n.a.c.;08/06/2017
247;1;0;23,89;23,89;TELECOM ITALIA SPA; ;SALDO Fatt.n. 8B00353366  del 06/04/2017 3BIM 2017;08/06/2017;660;0;0;1;Spese correnti;3;Acquisto di beni e servizi;2;Acquisto di servizi;99;Altri servizi;999;Altri servizi diversi n.a.c.;08/06/2017
248;1;0;117,12;117,12;MAGGIOLI SPA;Z441D70E7E;SALDO Fatt.n. 0002113998  del 31/03/2017 FATT. IVA SPLIT P.;08/06/2017;110;2;0;1;Spese correnti;3;Acquisto di beni e servizi;1;Acquisto di beni;2;Altri beni di consumo;1;Carta, cancelleria e stampati;08/06/2017
249;1;0;9.465,58;9.465,58;BRONI-STRADELLA Spa;ZB51E6A029;SALDO Fatt.n. 241/E  del 30/04/2017 RIFIUTI APRILE;08/06/2017;2940;0;0;1;Spese correnti;3;Acquisto di beni e servizi;2;Acquisto di servizi;99;Altri servizi;999;Altri servizi diversi n.a.c.;08/06/2017
250;1;0;2.851,75;2.851,75;BRONI-STRADELLA Spa;ZB51E64029;SALDO Fatt.n. 223/E  del 30/04/2017 SPAZZAMENTO;08/06/2017;2930;0;0;1;Spese correnti;3;Acquisto di beni e servizi;2;Acquisto di servizi;99;Altri servizi;999;Altri servizi diversi n.a.c.;08/06/2017
251;1;0;590,48;590,48;COOPERATIVA TICINO; ;SALDO Fatt.n. FATTPA 54_17  del 02/05/2017 APRILE;08/06/2017;390;0;0;1;Spese correnti;3;Acquisto di beni e servizi;2;Acquisto di servizi;13;Servizi ausiliari per il funzionamento dell'ente;2;Servizi di pulizia e lavanderia;08/06/2017
252;1;0;575;575;CITTA' DI STRADELLA; ;QUOTA FREQUENZA SERVIZI DIURNI APRILE 2017;08/06/2017;3400;1;0;1;Spese correnti;4;Trasferimenti correnti;1;Trasferimenti correnti a Amministrazioni Pubbliche;2;Trasferimenti correnti a Amministrazioni Locali;3;Trasferimenti correnti a Comuni;08/06/2017
253;1;0;1.157,38;2.626,71;MARTA S.C.R.L.;Z101B08B97;SALDO Fatt.n. 240/EL  del 28/02/2017 FELSP;08/06/2017;1582;0;0;1;Spese correnti;3;Acquisto di beni e servizi;2;Acquisto di servizi;99;Altri servizi;999;Altri servizi diversi n.a.c.;08/06/2017
253;2;0;1.469,33;2.626,71;MARTA S.C.R.L.;Z101B08B97;SALDO Fatt.n. 404/EL  del 31/03/2017 FELSP;08/06/2017;1582;0;0;1;Spese correnti;3;Acquisto di beni e servizi;2;Acquisto di servizi;99;Altri servizi;999;Altri servizi diversi n.a.c.;08/06/2017
254;1;0;168,73;168,73;ECOTEC S.R.L.;Z9E1A6BSCD;SALDO Fatt.n. 84/PA  del 19/04/2017 QUOTA FISSA;08/06/2017;390;1;0;1;Spese correnti;3;Acquisto di beni e servizi;2;Acquisto di servizi;9;Manutenzione ordinaria e riparazioni;6;Manutenzione ordinaria e riparazioni di macchine per ufficio;08/06/2017
255;1;0;69,5;143,02;ENEL SERVIZIO ELETTRICO SPA; ;SALDO Fatt.n. 188550270101217  del 10/04/2017 VIA FALCONE - PROVV.N. 41 DEL 02.05.2017;12/06/2017;660;0;0;1;Spese correnti;3;Acquisto di beni e servizi;2;Acquisto di servizi;99;Altri servizi;999;Altri servizi diversi n.a.c.;12/06/2017
255;2;0;73,52;143,02;ENEL SERVIZIO ELETTRICO SPA; ;SALDO Fatt.n. 188550270101218  del 10/05/2017 VIA FALCONE - PROVV.N. 53 DEL 30.05.2017;12/06/2017;660;0;0;1;Spese correnti;3;Acquisto di beni e servizi;2;Acquisto di servizi;99;Altri servizi;999;Altri servizi diversi n.a.c.;12/06/2017
256;1;0;132,27;132,27;ENEL SERVIZIO ELETTRICO SPA; ;FATT. NON PERVENUTA - ILL.PUBBLICA MAR-APRILE 2017 - PROVV.N. 42 DEL 02.05.2017;12/06/2017;2390;0;0;1;Spese correnti;3;Acquisto di beni e servizi;2;Acquisto di servizi;5;Utenze e canoni;4;Energia elettrica;12/06/2017
257;1;0;23,89;248,61;TELECOM ITALIA SPA;54663373FE;SALDO Fatt.n. 8B00106990  del 06/02/2017 2BIM 2017 - PROVV.N. 47 DEL 15.05.2017;12/06/2017;660;0;0;1;Spese correnti;3;Acquisto di beni e servizi;2;Acquisto di servizi;99;Altri servizi;999;Altri servizi diversi n.a.c.;12/06/2017
257;2;0;24,29;248,61;TELECOM ITALIA SPA;54663373FE;SALDO Fatt.n. 8B00107844  del 06/02/2017 2BIM 2017 - PROVV.N. 49 DEL 15.05.2017;12/06/2017;660;0;0;1;Spese correnti;3;Acquisto di beni e servizi;2;Acquisto di servizi;99;Altri servizi;999;Altri servizi diversi n.a.c.;12/06/2017
257;3;0;27,33;248,61;TELECOM ITALIA SPA;54663373FE;SALDO Fatt.n. 8B00112719  del 06/02/2017 2BIM 2017 - PROVV.N. 48 DEL 15.05.2017;12/06/2017;660;0;0;1;Spese correnti;3;Acquisto di beni e servizi;2;Acquisto di servizi;99;Altri servizi;999;Altri servizi diversi n.a.c.;12/06/2017
257;4;0;69,49;248,61;TELECOM ITALIA SPA;54663373FE;SALDO Fatt.n. 8B00114451  del 06/02/2017 2BIM 2017 - PROVV.N. 50 DEL 15.05.2017;12/06/2017;660;0;0;1;Spese correnti;3;Acquisto di beni e servizi;2;Acquisto di servizi;99;Altri servizi;999;Altri servizi diversi n.a.c.;12/06/2017
257;5;0;103,61;248,61;TELECOM ITALIA SPA;54663373FE;SALDO Fatt.n. 8B00106304  del 06/02/2017 2BIM 2017 - PROVV.N. 46 DEL 15.05.2017;12/06/2017;660;0;0;1;Spese correnti;3;Acquisto di beni e servizi;2;Acquisto di servizi;99;Altri servizi;999;Altri servizi diversi n.a.c.;12/06/2017
258;1;0;514,97;514,97;ENEL SERVIZIO ELETTRICO SPA; ;FATT. NON PERVENUTA SCAD. 30.5.2017 - PROVV.N. 52 DEL 30.05.2017;12/06/2017;2390;0;0;1;Spese correnti;3;Acquisto di beni e servizi;2;Acquisto di servizi;5;Utenze e canoni;4;Energia elettrica;12/06/2017
260;1;0;126,32;126,32;ENEL SERVIZIO ELETTRICO SPA; ;SALDO Fatt.n. 188550080108514  del 10/05/2017 ILL.PUBBLICA;14/06/2017;2390;0;0;1;Spese correnti;3;Acquisto di beni e servizi;2;Acquisto di servizi;5;Utenze e canoni;4;Energia elettrica;14/06/2017
261;1;0;11,14;29,72;PAVIA ACQUE S.C.A.R.L.; ;SALDO Fatt.n. 1350020171500095400  del 19/05/2017 B/Bollettazione;14/06/2017;2840;0;0;1;Spese correnti;3;Acquisto di beni e servizi;2;Acquisto di servizi;5;Utenze e canoni;5;Acqua;14/06/2017
261;2;0;18,58;29,72;PAVIA ACQUE S.C.A.R.L.; ;SALDO Fatt.n. 1350020171500096300  del 19/05/2017 B/Bollettazione;14/06/2017;2840;0;0;1;Spese correnti;3;Acquisto di beni e servizi;2;Acquisto di servizi;5;Utenze e canoni;5;Acqua;14/06/2017
262;1;0;2,23;78,49;PAVIA ACQUE S.C.A.R.L.; ;SALDO Fatt.n. 1350020171500096200  del 19/05/2017 B/Bollettazione;14/06/2017;660;0;0;1;Spese correnti;3;Acquisto di beni e servizi;2;Acquisto di servizi;99;Altri servizi;999;Altri servizi diversi n.a.c.;14/06/2017
262;2;0;2,23;78,49;PAVIA ACQUE S.C.A.R.L.; ;SALDO Fatt.n. 1350020171500096100  del 19/05/2017 B/Bollettazione;14/06/2017;660;0;0;1;Spese correnti;3;Acquisto di beni e servizi;2;Acquisto di servizi;99;Altri servizi;999;Altri servizi diversi n.a.c.;14/06/2017
262;3;0;2,23;78,49;PAVIA ACQUE S.C.A.R.L.; ;SALDO Fatt.n. 1350020171500096000  del 19/05/2017 B/Bollettazione;14/06/2017;660;0;0;1;Spese correnti;3;Acquisto di beni e servizi;2;Acquisto di servizi;99;Altri servizi;999;Altri servizi diversi n.a.c.;14/06/2017
262;4;0;3,16;78,49;PAVIA ACQUE S.C.A.R.L.; ;SALDO Fatt.n. 1350020171500095900  del 19/05/2017 B/Bollettazione;14/06/2017;660;0;0;1;Spese correnti;3;Acquisto di beni e servizi;2;Acquisto di servizi;99;Altri servizi;999;Altri servizi diversi n.a.c.;14/06/2017
262;5;0;4,94;78,49;PAVIA ACQUE S.C.A.R.L.; ;SALDO Fatt.n. 1350020171500095800  del 19/05/2017 B/Bollettazione;14/06/2017;660;0;0;1;Spese correnti;3;Acquisto di beni e servizi;2;Acquisto di servizi;99;Altri servizi;999;Altri servizi diversi n.a.c.;14/06/2017
262;6;0;12,16;78,49;PAVIA ACQUE S.C.A.R.L.; ;SALDO Fatt.n. 1350020171500095300  del 19/05/2017 B/Bollettazione;14/06/2017;660;0;0;1;Spese correnti;3;Acquisto di beni e servizi;2;Acquisto di servizi;99;Altri servizi;999;Altri servizi diversi n.a.c.;14/06/2017
262;7;0;51,54;78,49;PAVIA ACQUE S.C.A.R.L.; ;SALDO Fatt.n. 1350020171500095500  del 19/05/2017 B/Bollettazione;14/06/2017;660;0;0;1;Spese correnti;3;Acquisto di beni e servizi;2;Acquisto di servizi;99;Altri servizi;999;Altri servizi diversi n.a.c.;14/06/2017
263;1;0;40,16;40,16;PAVIA ACQUE S.C.A.R.L.; ;SALDO Fatt.n. 1350020171500095200  del 19/05/2017 B/Bollettazione;14/06/2017;3471;0;0;1;Spese correnti;3;Acquisto di beni e servizi;2;Acquisto di servizi;5;Utenze e canoni;5;Acqua;14/06/2017
264;1;0;9.465,58;9.465,58;BRONI-STRADELLA Spa;ZB51E6A029;SALDO Fatt.n. 261/E  del 31/05/2017 RIFIUTI MAGGIO;14/06/2017;2940;0;0;1;Spese correnti;3;Acquisto di beni e servizi;2;Acquisto di servizi;99;Altri servizi;999;Altri servizi diversi n.a.c.;14/06/2017
265;1;0;564;2.404,10;KUWAIT PETROLEUM ITALIA SPA; ;ACCONTO Fatt.n. PJ00076704  del 30/04/2017;14/06/2017;1570;0;0;1;Spese correnti;3;Acquisto di beni e servizi;1;Acquisto di beni;2;Altri beni di consumo;2;Carburanti, combustibili e lubrificanti;14/06/2017
265;2;0;904,6;2.404,10;KUWAIT PETROLEUM ITALIA SPA; ;ACCONTO Fatt.n. PJ00080658  del 31/05/2017;14/06/2017;1570;0;0;1;Spese correnti;3;Acquisto di beni e servizi;1;Acquisto di beni;2;Altri beni di consumo;2;Carburanti, combustibili e lubrificanti;14/06/2017
265;3;0;935,5;2.404,10;KUWAIT PETROLEUM ITALIA SPA; ;ACCONTO Fatt.n. PJ00072764  del 31/03/2017;14/06/2017;1570;0;0;1;Spese correnti;3;Acquisto di beni e servizi;1;Acquisto di beni;2;Altri beni di consumo;2;Carburanti, combustibili e lubrificanti;14/06/2017
266;1;0;60;250;KUWAIT PETROLEUM ITALIA SPA;ZCB1769D6B;ACCONTO Fatt.n. PJ00076704  del 30/04/2017;14/06/2017;385;1;0;1;Spese correnti;3;Acquisto di beni e servizi;1;Acquisto di beni;2;Altri beni di consumo;2;Carburanti, combustibili e lubrificanti;14/06/2017
266;2;0;80;250;KUWAIT PETROLEUM ITALIA SPA; ;ACCONTO Fatt.n. PJ00072764  del 31/03/2017;14/06/2017;385;1;0;1;Spese correnti;3;Acquisto di beni e servizi;1;Acquisto di beni;2;Altri beni di consumo;2;Carburanti, combustibili e lubrificanti;14/06/2017
266;3;0;110;250;KUWAIT PETROLEUM ITALIA SPA; ;ACCONTO Fatt.n. PJ00080658  del 31/05/2017;14/06/2017;385;1;0;1;Spese correnti;3;Acquisto di beni e servizi;1;Acquisto di beni;2;Altri beni di consumo;2;Carburanti, combustibili e lubrificanti;14/06/2017
267;1;0;69;270;KUWAIT PETROLEUM ITALIA SPA;ZCB1769D6B;SALDO Fatt.n. PJ00072764  del 31/03/2017;14/06/2017;2290;0;0;1;Spese correnti;3;Acquisto di beni e servizi;1;Acquisto di beni;2;Altri beni di consumo;999;Altri beni e materiali di consumo n.a.c.;14/06/2017
267;2;0;94;270;KUWAIT PETROLEUM ITALIA SPA;ZCB1769D6B;SALDO Fatt.n. PJ00080658  del 31/05/2017;14/06/2017;2290;0;0;1;Spese correnti;3;Acquisto di beni e servizi;1;Acquisto di beni;2;Altri beni di consumo;999;Altri beni e materiali di consumo n.a.c.;14/06/2017
267;3;0;107;270;KUWAIT PETROLEUM ITALIA SPA; ;SALDO Fatt.n. PJ00076704  del 30/04/2017;14/06/2017;2290;0;0;1;Spese correnti;3;Acquisto di beni e servizi;1;Acquisto di beni;2;Altri beni di consumo;999;Altri beni e materiali di consumo n.a.c.;14/06/2017
268;1;0;7,63;7,63;PAVIA ACQUE S.C.A.R.L.; ;SALDO Fatt.n. 1350020171500095700  del 19/05/2017 B/Bollettazione - Via Fiamberta - CIMITERO;14/06/2017;3471;0;0;1;Spese correnti;3;Acquisto di beni e servizi;2;Acquisto di servizi;5;Utenze e canoni;5;Acqua;14/06/2017
269;1;0;75,64;151,28;INFORMA SRL;ZD7125D1BE;SALDO Fatt.n. 1640/E  del 28/04/2017 FATTURA IMMEDIATA ELETTRONICA;14/06/2017;121;0;0;1;Spese correnti;3;Acquisto di beni e servizi;2;Acquisto di servizi;16;Servizi amministrativi;999;Altre spese per servizi amministrativi;14/06/2017
269;2;0;75,64;151,28;INFORMA SRL;ZD7125D1BE;SALDO Fatt.n. 2110/E  del 26/05/2017 FATTURA IMMEDIATA ELETTRONICA;14/06/2017;121;0;0;1;Spese correnti;3;Acquisto di beni e servizi;2;Acquisto di servizi;16;Servizi amministrativi;999;Altre spese per servizi amministrativi;14/06/2017
270;1;0;10.980,00;10.980,00;RE.AL. GIARDINI SRL; ;SALDO Fatt.n. PA_03  del 09/05/2017 POTATURA ESSENZE ARBOREE;14/06/2017;7810;20;0;2;Spese in conto capitale;5;Altre spese in conto capitale;99;Altre spese in conto capitale n.a.c.;99;Altre spese in conto capitale n.a.c.;999;Altre spese in conto capitale n.a.c.;14/06/2017
285;1;0;1.820,65;1.820,65;IL MAGGIOLINO SOC.COOP. ONLUS; ;RIMBORSO PER NIDI GRATIS DI ALLOCCA MARTINA DA GENNAIO AD APRILE 2017 e OLIVIERO VALERIA per gennaio 2017 . Determina n. 19 del 15.04.2017;26/06/2017;3130;2;0;1;Spese correnti;4;Trasferimenti correnti;2;Trasferimenti correnti a Famiglie;5;Altri trasferimenti a famiglie;999;Altri trasferimenti a famiglie n.a.c.;26/06/2017
286;1;0;483,97;483,97;IL MAGGIOLINO SOC.COOP. ONLUS; ;CONTRIBUTO ASILO NIDO INTEGRATIVO DEI NIDI GRATIS QUOTA A CARICO UNIONE GENNAIO- APRILE 2017 PER ALLOCCA E OLIVIERO;26/06/2017;3130;1;0;1;Spese correnti;4;Trasferimenti correnti;2;Trasferimenti correnti a Famiglie;5;Altri trasferimenti a famiglie;999;Altri trasferimenti a famiglie n.a.c.;26/06/2017
288;1;0;2.232,98;2.232,98;CASSA DD.PP.; ;CDP008 0016714 06036 30062017;27/06/2017;2860;0;0;1;Spese correnti;7;Interessi passivi;5;Interessi su Mutui e altri finanziamenti a medio lungo termine;5;Interessi passivi su mutui e altri finanziamenti a medio lungo termine ad altri soggetti;999;Interessi passivi su mutui e altri finanziamenti a medio lungo termine ad altri soggetti;27/06/2017
289;1;0;5.056,00;5.056,00;CASSA DD.PP.; ;CDP008 0016714 06036 30062017;27/06/2017;7810;0;0;1;Spese correnti;7;Interessi passivi;5;Interessi su Mutui e altri finanziamenti a medio lungo termine;5;Interessi passivi su mutui e altri finanziamenti a medio lungo termine ad altri soggetti;999;Interessi passivi su mutui e altri finanziamenti a medio lungo termine ad altri soggetti;27/06/2017
296;1;0;-686,4;712,8;Maga Auto Sas; ;SALDO Fatt.n. FATTPA 5_17  del 30/06/2017 NOTA DI CREDITO;05/07/2017;1584;0;0;1;Spese correnti;3;Acquisto di beni e servizi;2;Acquisto di servizi;99;Altri servizi;999;Altri servizi diversi n.a.c.;05/07/2017
296;2;0;1.399,20;712,8;Maga Auto Sas; ;SALDO Fatt.n. FATTPA 2_17  del 09/06/2017 CONGUAGLIO SET-DICEMBRE 2016;05/07/2017;1584;0;0;1;Spese correnti;3;Acquisto di beni e servizi;2;Acquisto di servizi;99;Altri servizi;999;Altri servizi diversi n.a.c.;05/07/2017
297;1;0;1.320,00;2.851,20;Maga Auto Sas; ;SALDO Fatt.n. FATTPA 4_17  del 09/06/2017 TRASPORTO MAGGIO-GIUGNO 2017;05/07/2017;1584;0;0;1;Spese correnti;3;Acquisto di beni e servizi;2;Acquisto di servizi;99;Altri servizi;999;Altri servizi diversi n.a.c.;05/07/2017
297;2;0;1.531,20;2.851,20;Maga Auto Sas; ;SALDO Fatt.n. FATTPA 3_17  del 09/06/2017 CONG. VIAGGI GENNAIO-APRILE 2017;05/07/2017;1584;0;0;1;Spese correnti;3;Acquisto di beni e servizi;2;Acquisto di servizi;99;Altri servizi;999;Altri servizi diversi n.a.c.;05/07/2017
299;1;0;44,25;44,25;omissis; ;CONTRIBUTO STRAORDINARIO MEDIANTE ACQUISTO GENERI PRIMA NECESSITA';10/07/2017;3410;0;113;1;Spese correnti;4;Trasferimenti correnti;2;Trasferimenti correnti a Famiglie;2;Interventi assistenziali;999;Altri assegni e sussidi assistenziali;10/07/2017
300;1;0;227,27;227,27;MONTE ATTILIO; ;RIMBORSO SPESE VIAGGIO DEL 08.07.2017;10/07/2017;31;0;0;1;Spese correnti;3;Acquisto di beni e servizi;2;Acquisto di servizi;1;Organi e incarichi istituzionali dell'amministrazione;2;Organi istituzionali dell'amministrazione - Rimborsi;10/07/2017
315;1;0;3.273,55;3.273,55;ERARIO; ;VERSAMENTO IVA II TRIM. 2017 SCAD. 21.08.2017;25/07/2017;686;0;0;1;Spese correnti;10;Altre spese correnti;3;Versamenti IVA a debito;1;Versamenti IVA a debito per le gestioni commerciali;1;Versamenti IVA a debito per le gestioni commerciali;25/07/2017
316;1;0;112,56;112,56;ENEL SERVIZIO ELETTRICO SPA; ;CONTRIBUTO STRAORDINARIO ALLA FAMIGLIA ANSELMINI GIOVANNI  MEDIANTE PAGAMENTO UTENZA ELETTRICA SCADUTA;03/08/2017;3420;0;0;1;Spese correnti;4;Trasferimenti correnti;2;Trasferimenti correnti a Famiglie;2;Interventi assistenziali;999;Altri assegni e sussidi assistenziali;03/08/2017
317;1;0;287;287;EL AOUDY WAFAA; ;omissis;07/08/2017;3420;0;0;1;Spese correnti;4;Trasferimenti correnti;2;Trasferimenti correnti a Famiglie;2;Interventi assistenziali;999;Altri assegni e sussidi assistenziali;07/08/2017
318;1;0;2.100,00;2.100,00;NOVARINI GEROLAMO; ;omissis;07/08/2017;3420;0;0;1;Spese correnti;4;Trasferimenti correnti;2;Trasferimenti correnti a Famiglie;2;Interventi assistenziali;999;Altri assegni e sussidi assistenziali;07/08/2017
319;1;0;112;112;ENEL SERVIZIO ELETTRICO SPA; ;SALDO Fatt.n. 188550080108515  del 10/07/2017 ILLUMINAZIONE PUBBLICA GIU-LUGLIO 2017;08/08/2017;2390;0;0;1;Spese correnti;3;Acquisto di beni e servizi;2;Acquisto di servizi;5;Utenze e canoni;4;Energia elettrica;08/08/2017
320;1;0;398,94;913,91;ENEL SERVIZIO ELETTRICO SPA; ;SALDO Fatt.n. 188550230101519  del 10/07/2017 ILLUMINAZIONE PUBBLICA GIU-LUGLIO 2017 - PROVV.N. 73 DEL 01.08.2017;08/08/2017;2390;0;0;1;Spese correnti;3;Acquisto di beni e servizi;2;Acquisto di servizi;5;Utenze e canoni;4;Energia elettrica;08/08/2017
320;2;0;514,97;913,91;ENEL SERVIZIO ELETTRICO SPA; ;SALDO Fatt.n. 18855023010151A  del 26/06/2017 ILL.PUBBLICA MAR-MAG. 2017 - PROVV.N. 71 DEL 26.07.2017;08/08/2017;2390;0;0;1;Spese correnti;3;Acquisto di beni e servizi;2;Acquisto di servizi;5;Utenze e canoni;4;Energia elettrica;08/08/2017
321;1;0;26,91;74,49;ENEL SERVIZIO ELETTRICO SPA; ;SALDO Fatt.n. 188550270101211  del 10/07/2017 VIA FALCONE - PROVV.N. 72 DEL 31.07.2017;08/08/2017;660;0;0;1;Spese correnti;3;Acquisto di beni e servizi;2;Acquisto di servizi;99;Altri servizi;999;Altri servizi diversi n.a.c.;08/08/2017
321;2;0;47,58;74,49;ENEL SERVIZIO ELETTRICO SPA; ;SALDO Fatt.n. 188550270101219  del 10/06/2017 VIA FALCONE - PROVV.N. 61 DEL 01.07.2017;08/08/2017;660;0;0;1;Spese correnti;3;Acquisto di beni e servizi;2;Acquisto di servizi;99;Altri servizi;999;Altri servizi diversi n.a.c.;08/08/2017
322;1;0;101,08;101,08;ENEL SERVIZIO ELETTRICO SPA; ;FATT. PERVENUTA AL COMUNE PER ILLUM.PUBBLICA  MAG-GIUGNO SCAD. 30.06.2017 - PROVV.N. 60 DEL 01.07.2017;08/08/2017;2390;0;0;1;Spese correnti;3;Acquisto di beni e servizi;2;Acquisto di servizi;5;Utenze e canoni;4;Energia elettrica;08/08/2017
323;1;0;23,88;245,85;TELECOM ITALIA SPA;54663373FE;SALDO Fatt.n. 8B00353536  del 06/04/2017 3BIM 2017 - PROVV.N. 64 DEL 13.07.2017;08/08/2017;660;0;0;1;Spese correnti;3;Acquisto di beni e servizi;2;Acquisto di servizi;99;Altri servizi;999;Altri servizi diversi n.a.c.;08/08/2017
323;2;0;23,92;245,85;TELECOM ITALIA SPA;54663373FE;SALDO Fatt.n. 8B00349132  del 06/04/2017 3BIM 2017 - PROVV.N. 66 DEL 13.07.2017;08/08/2017;660;0;0;1;Spese correnti;3;Acquisto di beni e servizi;2;Acquisto di servizi;99;Altri servizi;999;Altri servizi diversi n.a.c.;08/08/2017
323;3;0;28,3;245,85;TELECOM ITALIA SPA;54663373FE;SALDO Fatt.n. 8B00352412  del 06/04/2017 3BIM 2017 - PROVV.N. 65 DEL 13.07.2017;08/08/2017;660;0;0;1;Spese correnti;3;Acquisto di beni e servizi;2;Acquisto di servizi;99;Altri servizi;999;Altri servizi diversi n.a.c.;08/08/2017
323;4;0;104,85;245,85;TELECOM ITALIA SPA;54663373FE;SALDO Fatt.n. 8B00352353  del 06/04/2017 3BIM 2017 - PROVV.N. 63 DEL 13.07.2017;08/08/2017;660;0;0;1;Spese correnti;3;Acquisto di beni e servizi;2;Acquisto di servizi;99;Altri servizi;999;Altri servizi diversi n.a.c.;08/08/2017
323;5;0;64,9;245,85;TELECOM ITALIA SPA;54663373FE;SALDO Fatt.n. 8B00351904  del 06/04/2017 3BIM 2017 - PROVV.N. 67 DEL 13.07.2017;08/08/2017;660;0;0;1;Spese correnti;3;Acquisto di beni e servizi;2;Acquisto di servizi;99;Altri servizi;999;Altri servizi diversi n.a.c.;08/08/2017
324;1;0;43,77;43,77;omissis; ;CONTRIBUTO STRAORDINARIO MEDIANTE ACQUISTO GENERI PRIMA NECESSITA';08/08/2017;3410;0;113;1;Spese correnti;4;Trasferimenti correnti;2;Trasferimenti correnti a Famiglie;2;Interventi assistenziali;999;Altri assegni e sussidi assistenziali;08/08/2017
326;1;0;614,5;614,5;GHIA PIERO AGENTE ALLIANZ SPA; ;POLIZZA FIAT PANDA DV397PBSCAD.28.07.2017;08/08/2017;390;1;0;1;Spese correnti;3;Acquisto di beni e servizi;2;Acquisto di servizi;9;Manutenzione ordinaria e riparazioni;6;Manutenzione ordinaria e riparazioni di macchine per ufficio;08/08/2017
327;1;0;3.647,80;3.647,80;STUDIO ASS.AVV.BRAMBILLA FUZIER; ;SALDO Fatt.n. 59/PA  del 21/12/2016 INCARICO PER INSINUAZIONE ZETA;08/08/2017;2700;0;59;1;Spese correnti;3;Acquisto di beni e servizi;2;Acquisto di servizi;11;Prestazioni professionali e specialistiche;6;Patrocinio legale;08/08/2017
328;1;0;557,77;557,77;DAPRA' LUIGI CLAUDIO; ;Retrocessione  n. 2 aree cimiteriali in Cimitero di Albaredo Arnaboldi - Determina RST N.   28 DEL 08.08.2017;11/08/2017;7881;0;0;2;Spese in conto capitale;4;Altri trasferimenti in conto capitale;22;Altri trasferimenti in conto capitale n.a.c. a Famiglie;1;Altri trasferimenti in conto capitale n.a.c. a Famiglie;1;Altri trasferimenti in conto capitale n.a.c. a Famiglie;11/08/2017
329;1;0;82,63;82,63;LARDINI GIULIANA; ;RETROCESSIONE N. 2 LOCULI IN CIMITERO DI ALBAREDO ARNABOLDI;11/08/2017;7881;0;0;2;Spese in conto capitale;4;Altri trasferimenti in conto capitale;22;Altri trasferimenti in conto capitale n.a.c. a Famiglie;1;Altri trasferimenti in conto capitale n.a.c. a Famiglie;1;Altri trasferimenti in conto capitale n.a.c. a Famiglie;11/08/2017
330;1;0;565,24;565,24;omissis; ;CONTRIBUTO STRAORDINARIO;11/08/2017;3420;0;0;1;Spese correnti;4;Trasferimenti correnti;2;Trasferimenti correnti a Famiglie;2;Interventi assistenziali;999;Altri assegni e sussidi assistenziali;11/08/2017
331;1;0;934,76;934,76;COMUNE DI CAMPOSPINOSO; ;omissis;11/08/2017;3420;0;0;1;Spese correnti;4;Trasferimenti correnti;2;Trasferimenti correnti a Famiglie;2;Interventi assistenziali;999;Altri assegni e sussidi assistenziali;11/08/2017
332;1;0;794,33;5.759,68;COOPERATIVA SOCIALE CODAMS DUE;ZE01BFD4D1;SALDO Fatt.n. 0226PA  del 30/04/2017 Scissione dei pagamenti ai sensi art. 17-ter del D.P.R. 633/1972;12/08/2017;3115;0;0;1;Spese correnti;3;Acquisto di beni e servizi;2;Acquisto di servizi;99;Altri servizi;999;Altri servizi diversi n.a.c.;12/08/2017
332;2;0;878,43;5.759,68;COOPERATIVA SOCIALE CODAMS DUE;ZE01BFD4D1;SALDO Fatt.n. FatPAM 109PA  del 28/02/2017 ASSISTENZA FEBBRAIO;12/08/2017;3115;0;0;1;Spese correnti;3;Acquisto di beni e servizi;2;Acquisto di servizi;99;Altri servizi;999;Altri servizi diversi n.a.c.;12/08/2017
332;3;0;1.124,55;5.759,68;COOPERATIVA SOCIALE CODAMS DUE;ZE01BFD4D1;SALDO Fatt.n. 0324PA  del 30/06/2017 GIUGNO;12/08/2017;3115;0;0;1;Spese correnti;3;Acquisto di beni e servizi;2;Acquisto di servizi;99;Altri servizi;999;Altri servizi diversi n.a.c.;12/08/2017
332;4;0;1.158,78;5.759,68;COOPERATIVA SOCIALE CODAMS DUE;ZE01BFD4D1;SALDO Fatt.n. 0284PA  del 31/05/2017 MAGGIO;12/08/2017;3115;0;0;1;Spese correnti;3;Acquisto di beni e servizi;2;Acquisto di servizi;99;Altri servizi;999;Altri servizi diversi n.a.c.;12/08/2017
332;5;0;887,78;5.759,68;COOPERATIVA SOCIALE CODAMS DUE;ZE01BFD4D1;SALDO Fatt.n. FatPAM 052PA  del 31/01/2017 gennaio 2017;12/08/2017;3115;0;0;1;Spese correnti;3;Acquisto di beni e servizi;2;Acquisto di servizi;99;Altri servizi;999;Altri servizi diversi n.a.c.;12/08/2017
332;6;0;915,81;5.759,68;COOPERATIVA SOCIALE CODAMS DUE;ZE01BFD4D1;SALDO Fatt.n. FatPAM 169PA  del 31/03/2017 marzo;12/08/2017;3115;0;0;1;Spese correnti;3;Acquisto di beni e servizi;2;Acquisto di servizi;99;Altri servizi;999;Altri servizi diversi n.a.c.;12/08/2017
333;1;0;9.465,58;18.931,16;BRONI-STRADELLA Spa; ;SALDO Fatt.n. 342/E  del 30/06/2017 RIFIUTI GIUGNO 2017;12/08/2017;2940;0;0;1;Spese correnti;3;Acquisto di beni e servizi;2;Acquisto di servizi;99;Altri servizi;999;Altri servizi diversi n.a.c.;12/08/2017
333;2;0;9.465,58;18.931,16;BRONI-STRADELLA Spa; ;SALDO Fatt.n. 384/E  del 31/07/2017 RIFIUTI LUGLIO;12/08/2017;2940;0;0;1;Spese correnti;3;Acquisto di beni e servizi;2;Acquisto di servizi;99;Altri servizi;999;Altri servizi diversi n.a.c.;12/08/2017
334;1;0;590,48;1.771,44;COOPERATIVA TICINO; ;SALDO Fatt.n. FATTPA 69_17  del 01/06/2017 MAGGIO;12/08/2017;390;0;0;1;Spese correnti;3;Acquisto di beni e servizi;2;Acquisto di servizi;13;Servizi ausiliari per il funzionamento dell'ente;2;Servizi di pulizia e lavanderia;12/08/2017
334;2;0;590,48;1.771,44;COOPERATIVA TICINO; ;SALDO Fatt.n. FATTPA 81_17  del 01/07/2017 GIUGNO;12/08/2017;390;0;0;1;Spese correnti;3;Acquisto di beni e servizi;2;Acquisto di servizi;13;Servizi ausiliari per il funzionamento dell'ente;2;Servizi di pulizia e lavanderia;12/08/2017
334;3;0;590,48;1.771,44;COOPERATIVA TICINO; ;SALDO Fatt.n. FATTPA 98_17  del 01/08/2017 PULIZIE LUGLIO;12/08/2017;390;0;0;1;Spese correnti;3;Acquisto di beni e servizi;2;Acquisto di servizi;13;Servizi ausiliari per il funzionamento dell'ente;2;Servizi di pulizia e lavanderia;12/08/2017
335;1;0;66,19;160,74;INFORMA SRL;ZD7125D1BE;SALDO Fatt.n. 2554/E  del 27/06/2017 FATTURA IMMEDIATA ELETTRONICA;12/08/2017;121;0;0;1;Spese correnti;3;Acquisto di beni e servizi;2;Acquisto di servizi;16;Servizi amministrativi;999;Altre spese per servizi amministrativi;12/08/2017
335;2;0;94,55;160,74;INFORMA SRL;ZD7125D1BE;SALDO Fatt.n. 3012/E  del 31/07/2017 LUGLIO;12/08/2017;121;0;0;1;Spese correnti;3;Acquisto di beni e servizi;2;Acquisto di servizi;16;Servizi amministrativi;999;Altre spese per servizi amministrativi;12/08/2017
336;1;0;19;373;LIBARNA GAS SPA; ;SALDO Fatt.n. 100327  del 27/06/2017 METANO;12/08/2017;660;0;0;1;Spese correnti;3;Acquisto di beni e servizi;2;Acquisto di servizi;99;Altri servizi;999;Altri servizi diversi n.a.c.;12/08/2017
336;2;0;19;373;LIBARNA GAS SPA; ;SALDO Fatt.n. 100322  del 26/06/2017 METANO;12/08/2017;660;0;0;1;Spese correnti;3;Acquisto di beni e servizi;2;Acquisto di servizi;99;Altri servizi;999;Altri servizi diversi n.a.c.;12/08/2017
336;3;0;19;373;LIBARNA GAS SPA; ;SALDO Fatt.n. 100325  del 27/06/2017 METANO;12/08/2017;660;0;0;1;Spese correnti;3;Acquisto di beni e servizi;2;Acquisto di servizi;99;Altri servizi;999;Altri servizi diversi n.a.c.;12/08/2017
336;4;0;20;373;LIBARNA GAS SPA; ;SALDO Fatt.n. 100324  del 27/06/2017 METANO;12/08/2017;660;0;0;1;Spese correnti;3;Acquisto di beni e servizi;2;Acquisto di servizi;99;Altri servizi;999;Altri servizi diversi n.a.c.;12/08/2017
336;5;0;41;373;LIBARNA GAS SPA; ;SALDO Fatt.n. 100326  del 27/06/2017 METANO;12/08/2017;660;0;0;1;Spese correnti;3;Acquisto di beni e servizi;2;Acquisto di servizi;99;Altri servizi;999;Altri servizi diversi n.a.c.;12/08/2017
336;6;0;81;373;LIBARNA GAS SPA; ;SALDO Fatt.n. 100323  del 26/06/2017 METANO;12/08/2017;660;0;0;1;Spese correnti;3;Acquisto di beni e servizi;2;Acquisto di servizi;99;Altri servizi;999;Altri servizi diversi n.a.c.;12/08/2017
336;7;0;174;373;LIBARNA GAS SPA; ;SALDO Fatt.n. 100328  del 27/06/2017 METANO;12/08/2017;660;0;0;1;Spese correnti;3;Acquisto di beni e servizi;2;Acquisto di servizi;99;Altri servizi;999;Altri servizi diversi n.a.c.;12/08/2017
337;1;0;335,35;335,35;ELETTRICA BRONESE BELLAN RENATO SNC;Z0A1E454DA;SALDO Fatt.n. 001/17  del 30/06/2017 MANUTENZIONE E RIPARAZIONE IMPIANTI ELETTRICI (CIG N. Z0A1E454DA) - EDIFICI COMUNALI;12/08/2017;390;4;0;1;Spese correnti;3;Acquisto di beni e servizi;2;Acquisto di servizi;9;Manutenzione ordinaria e riparazioni;8;Manutenzione ordinaria e riparazioni di beni immobili;12/08/2017
338;1;0;172,2;172,2;ELETTRICA BRONESE BELLAN RENATO SNC;Z0A1E454DA;SALDO Fatt.n. 002/17  del 30/06/2017 MANUTENZIONE E RIPARAZIONE IMPIANTI ELETTRICI (CIG N. Z0A1E454DA) - INCROCIO SEMAFORICO;12/08/2017;2310;0;0;1;Spese correnti;3;Acquisto di beni e servizi;2;Acquisto di servizi;99;Altri servizi;999;Altri servizi diversi n.a.c.;12/08/2017
339;1;0;611,95;611,95;ELETTRICA BRONESE BELLAN RENATO SNC;Z0A1E454DA;SALDO Fatt.n. 003/17  del 30/06/2017 MANUTENZIONE E RIPARAZIONE IMPIANTI ELETTRICI (CIG N. Z0A1E454DA) - CIMITERI;12/08/2017;3470;3;0;1;Spese correnti;3;Acquisto di beni e servizi;2;Acquisto di servizi;9;Manutenzione ordinaria e riparazioni;8;Manutenzione ordinaria e riparazioni di beni immobili;12/08/2017
340;1;0;719,8;719,8;SOLUZIONE SRL;Z061E65B6C;SALDO Fatt.n. 2.629  del 10/07/2017 ABBONAMENTO;12/08/2017;110;2;0;1;Spese correnti;3;Acquisto di beni e servizi;1;Acquisto di beni;2;Altri beni di consumo;1;Carta, cancelleria e stampati;12/08/2017
341;1;0;895,16;2.296,67;MARTA S.C.R.L.;Z101B08B97;SALDO Fatt.n. 626/EL  del 30/04/2017 FELSP;12/08/2017;1582;0;0;1;Spese correnti;3;Acquisto di beni e servizi;2;Acquisto di servizi;99;Altri servizi;999;Altri servizi diversi n.a.c.;12/08/2017
341;2;0;1.401,51;2.296,67;MARTA S.C.R.L.;Z101B08B97;SALDO Fatt.n. 748/EL  del 31/05/2017 MAGGIO;12/08/2017;1582;0;0;1;Spese correnti;3;Acquisto di beni e servizi;2;Acquisto di servizi;99;Altri servizi;999;Altri servizi diversi n.a.c.;12/08/2017
342;1;0;152,7;152,7;BARBIERI ENZO E FIGLIO SRL;Z501D710BF;SALDO Fatt.n. 87/PA  del 30/06/2017 RIF.TO VS. IDENTIFICATIVO ORDINE MEPA 3516676 DEL 18/02/2017;12/08/2017;390;1;0;1;Spese correnti;3;Acquisto di beni e servizi;2;Acquisto di servizi;9;Manutenzione ordinaria e riparazioni;6;Manutenzione ordinaria e riparazioni di macchine per ufficio;12/08/2017
343;1;0;106,29;3.181,35;C.M.E. MARMI E GRANITI;35487297CE;SALDO Fatt.n. 7/PA  del 13/04/2017 COTTIMO FIDUCIARIO;12/08/2017;3470;1;0;1;Spese correnti;3;Acquisto di beni e servizi;2;Acquisto di servizi;99;Altri servizi;999;Altri servizi diversi n.a.c.;12/08/2017
343;2;0;323,69;3.181,35;C.M.E. MARMI E GRANITI;35487297CE;SALDO Fatt.n. 15/PA  del 01/06/2017 COTTIMO FIDUCIARIO;12/08/2017;3470;1;0;1;Spese correnti;3;Acquisto di beni e servizi;2;Acquisto di servizi;99;Altri servizi;999;Altri servizi diversi n.a.c.;12/08/2017
343;3;0;2.751,37;3.181,35;C.M.E. MARMI E GRANITI;35487297CE;SALDO Fatt.n. 13/PA  del 12/05/2017 COTTIMO FIDUCIARIO;12/08/2017;3470;1;0;1;Spese correnti;3;Acquisto di beni e servizi;2;Acquisto di servizi;99;Altri servizi;999;Altri servizi diversi n.a.c.;12/08/2017
344;1;0;1.446,09;1.446,09;GRAMEGNA S.r.l.;Z4618F81EA;ACCONTO Fatt.n. S21  del 02/05/2017;12/08/2017;3020;0;64;1;Spese correnti;3;Acquisto di beni e servizi;2;Acquisto di servizi;99;Altri servizi;999;Altri servizi diversi n.a.c.;12/08/2017
345;1;0;906,89;906,89;GRAMEGNA S.r.l.; ;SALDO Fatt.n. S21  del 02/05/2017;12/08/2017;2295;0;55;1;Spese correnti;3;Acquisto di beni e servizi;1;Acquisto di beni;2;Altri beni di consumo;999;Altri beni e materiali di consumo n.a.c.;12/08/2017
346;1;0;23,84;23,84;TELECOM ITALIA SPA; ;SALDO Fatt.n. 8B00566371  del 07/06/2017 4BIM 2017;12/08/2017;660;0;0;1;Spese correnti;3;Acquisto di beni e servizi;2;Acquisto di servizi;99;Altri servizi;999;Altri servizi diversi n.a.c.;12/08/2017
347;1;0;10.675,59;10.675,59;HALLEY INFORMATICA SRL;Z261EBCA82;SALDO Fatt.n. 6400/8/10  del 31/05/2017 ASSISTENZA AI PROGRAMMI ANNO 2017 ASSISTENZA HARDWARE ANNO 2017 Determina n.23    del 24/05/2017 Responsabile ordine dell'Ente LANATI ELISABETTA;12/08/2017;390;1;1;1;Spese correnti;3;Acquisto di beni e servizi;2;Acquisto di servizi;9;Manutenzione ordinaria e riparazioni;6;Manutenzione ordinaria e riparazioni di macchine per ufficio;12/08/2017
348;1;0;220,33;220,33;CERRIANA S.P.A.; ;SALDO Fatt.n. 39  del 27/06/2017 Fattura Cliente;12/08/2017;110;2;0;1;Spese correnti;3;Acquisto di beni e servizi;1;Acquisto di beni;2;Altri beni di consumo;1;Carta, cancelleria e stampati;12/08/2017
349;1;0;584,14;584,14;DIRETE SOC. COOP.;ZF31674F76;SALDO Fatt.n. 60  del 15/06/2017 CANONE INTERNET;12/08/2017;390;1;0;1;Spese correnti;3;Acquisto di beni e servizi;2;Acquisto di servizi;9;Manutenzione ordinaria e riparazioni;6;Manutenzione ordinaria e riparazioni di macchine per ufficio;12/08/2017
350;1;0;761,28;761,28;STUDIO FRASCHINI RAG. NADIA;Z501545377;SALDO Fatt.n. 9/FEPA  del 01/06/2017 CONSULENZA IVA;12/08/2017;660;3;43;1;Spese correnti;3;Acquisto di beni e servizi;2;Acquisto di servizi;16;Servizi amministrativi;999;Altre spese per servizi amministrativi;12/08/2017
351;1;0;1.647,00;1.647,00;WOLTERS KLUER ITALIA SRL;ZF91EC1507;SALDO Fatt.n. 0052514852  del 13/06/2017 ABBONAMENTO LEGGI D'ITALIA;12/08/2017;110;2;0;1;Spese correnti;3;Acquisto di beni e servizi;1;Acquisto di beni;2;Altri beni di consumo;1;Carta, cancelleria e stampati;12/08/2017
352;1;0;3.498,87;3.498,87;MONTAGNA E PIAGGI DI MACRI' ANGELO;ZD21F84C04;SALDO Fatt.n. 1  del 09/08/2017 FORNITURA E POSA PAVIMENTO IN MARMO CAPPELLA ROSSELLA BEOLA FAVALLE LUCIDA CM. 2 COD. CIG ZD21F84C04;12/08/2017;8000;0;0;2;Spese in conto capitale;5;Altre spese in conto capitale;99;Altre spese in conto capitale n.a.c.;99;Altre spese in conto capitale n.a.c.;999;Altre spese in conto capitale n.a.c.;12/08/2017
356;1;0;1.552,50;1.552,50;MONTE ATTILIO; ;COMPENSO REVISORE II SEMESTRE 2017 - Netto Euro 1.176,34;21/08/2017;30;0;0;1;Spese correnti;3;Acquisto di beni e servizi;2;Acquisto di servizi;1;Organi e incarichi istituzionali dell'amministrazione;8;Compensi agli organi istituzionali di revisione, di controllo ed altri incarichi istituzionali dell'amministrazione;21/08/2017
360;1;0;132,01;132,01;REGIONE LOMBARDIA; ;VERSAMENTO IRAP AGOSTO 2017;21/08/2017;30;0;0;1;Spese correnti;3;Acquisto di beni e servizi;2;Acquisto di servizi;1;Organi e incarichi istituzionali dell'amministrazione;8;Compensi agli organi istituzionali di revisione, di controllo ed altri incarichi istituzionali dell'amministrazione;21/08/2017
369;1;0;3.538,00;3.538,00;HALLEY INFORMATICA SRL;Z321EBCACD;SALDO Fatt.n. 6401/8/10  del 31/05/2017 SERVIZIO BLACK BOX E CED REMOTO 2017 Determina n.24   del 24/05/2017 Responsabile ordine dell'Ente LANATI ELISABETTA;28/08/2017;390;1;0;1;Spese correnti;3;Acquisto di beni e servizi;2;Acquisto di servizi;9;Manutenzione ordinaria e riparazioni;6;Manutenzione ordinaria e riparazioni di macchine per ufficio;28/08/2017
370;1;0;791,18;791,18;MARTA S.C.R.L.;Z101B08B97;SALDO Fatt.n. 900/EL  del 30/06/2017 GIUGNO 2017;28/08/2017;1582;0;0;1;Spese correnti;3;Acquisto di beni e servizi;2;Acquisto di servizi;99;Altri servizi;999;Altri servizi diversi n.a.c.;28/08/2017
371;1;0;1.727,85;1.727,85;A.S.D. ARNABOLDI;Z051F1F4FE;SALDO Fatt.n. FATTPA 3_17  del 28/07/2017 CENTRO ESTIVO;28/08/2017;3110;0;0;1;Spese correnti;3;Acquisto di beni e servizi;2;Acquisto di servizi;99;Altri servizi;999;Altri servizi diversi n.a.c.;28/08/2017
372;1;0;2.040,68;5.192,68;IL MAGGIOLINO SOC.COOP. ONLUS;Z641F1F51B;SALDO Fatt.n. 4/2017  del 28/07/2017 DETERMINA N. 31 DEL 3.7.2017;28/08/2017;3110;0;0;1;Spese correnti;3;Acquisto di beni e servizi;2;Acquisto di servizi;99;Altri servizi;999;Altri servizi diversi n.a.c.;28/08/2017
372;2;0;3.152,00;5.192,68;IL MAGGIOLINO SOC.COOP. ONLUS;Z641F1F51B;SALDO Fatt.n. 3/2017  del 28/07/2017 DETERMINA N. 31 DEL 3.7.2017;28/08/2017;3110;0;0;1;Spese correnti;3;Acquisto di beni e servizi;2;Acquisto di servizi;99;Altri servizi;999;Altri servizi diversi n.a.c.;28/08/2017
373;1;0;880;880;ANFFAS ONLUS BRONI STRADELLA;ZCA1DB6439;SALDO Fatt.n. 0000078  del 27/07/2017 PRIMO SEMESTRE;28/08/2017;3400;1;0;1;Spese correnti;4;Trasferimenti correnti;1;Trasferimenti correnti a Amministrazioni Pubbliche;2;Trasferimenti correnti a Amministrazioni Locali;3;Trasferimenti correnti a Comuni;28/08/2017
374;1;0;168,73;168,73;ECOTEC S.R.L.;Z9E1A6BSCD;SALDO Fatt.n. 141/PA  del 05/07/2017 ASSIST. FOTOCOPIATRICE;28/08/2017;390;1;0;1;Spese correnti;3;Acquisto di beni e servizi;2;Acquisto di servizi;9;Manutenzione ordinaria e riparazioni;6;Manutenzione ordinaria e riparazioni di macchine per ufficio;28/08/2017
375;1;0;360;360;KUWAIT PETROLEUM ITALIA SPA; ;ACCONTO Fatt.n. PJ00084658  del 30/06/2017;28/08/2017;1570;0;0;1;Spese correnti;3;Acquisto di beni e servizi;1;Acquisto di beni;2;Altri beni di consumo;2;Carburanti, combustibili e lubrificanti;28/08/2017
376;1;0;40;110;KUWAIT PETROLEUM ITALIA SPA;ZCB1769D6B;ACCONTO Fatt.n. PJ00084658  del 30/06/2017;28/08/2017;385;1;0;1;Spese correnti;3;Acquisto di beni e servizi;1;Acquisto di beni;2;Altri beni di consumo;2;Carburanti, combustibili e lubrificanti;28/08/2017
376;2;0;70;110;KUWAIT PETROLEUM ITALIA SPA;ZCB1769D6B;ACCONTO Fatt.n. PJ00088596  del 31/07/2017;28/08/2017;385;1;0;1;Spese correnti;3;Acquisto di beni e servizi;1;Acquisto di beni;2;Altri beni di consumo;2;Carburanti, combustibili e lubrificanti;28/08/2017
377;1;0;17,5;220,76;KUWAIT PETROLEUM ITALIA SPA; ;SALDO Fatt.n. PJ00084658  del 30/06/2017;28/08/2017;2290;0;0;1;Spese correnti;3;Acquisto di beni e servizi;1;Acquisto di beni;2;Altri beni di consumo;999;Altri beni e materiali di consumo n.a.c.;28/08/2017
377;2;0;203,26;220,76;KUWAIT PETROLEUM ITALIA SPA; ;ACCONTO Fatt.n. PJ00088596  del 31/07/2017;28/08/2017;2290;0;0;1;Spese correnti;3;Acquisto di beni e servizi;1;Acquisto di beni;2;Altri beni di consumo;999;Altri beni e materiali di consumo n.a.c.;28/08/2017
378;1;0;481;481;KUWAIT PETROLEUM ITALIA SPA; ;SALDO Fatt.n. PJ00088596  del 31/07/2017;28/08/2017;3110;0;0;1;Spese correnti;3;Acquisto di beni e servizi;2;Acquisto di servizi;99;Altri servizi;999;Altri servizi diversi n.a.c.;28/08/2017
379;1;0;2,89;41,73;PAVIA ACQUE S.C.A.R.L.; ;SALDO Fatt.n. 2550220172500145600  del 02/08/2017 B/Bollettazione;28/08/2017;660;0;0;1;Spese correnti;3;Acquisto di beni e servizi;2;Acquisto di servizi;99;Altri servizi;999;Altri servizi diversi n.a.c.;28/08/2017
379;2;0;2,89;41,73;PAVIA ACQUE S.C.A.R.L.; ;SALDO Fatt.n. 2550220172500145800  del 02/08/2017 ACQUA PIAZZA ARNABOLDI;28/08/2017;660;0;0;1;Spese correnti;3;Acquisto di beni e servizi;2;Acquisto di servizi;99;Altri servizi;999;Altri servizi diversi n.a.c.;28/08/2017
379;3;0;4,25;41,73;PAVIA ACQUE S.C.A.R.L.; ;SALDO Fatt.n. 2550220172500145700  del 02/08/2017 B/Bollettazione;28/08/2017;660;0;0;1;Spese correnti;3;Acquisto di beni e servizi;2;Acquisto di servizi;99;Altri servizi;999;Altri servizi diversi n.a.c.;28/08/2017
379;4;0;5,01;41,73;PAVIA ACQUE S.C.A.R.L.; ;SALDO Fatt.n. 2550220172500145500  del 02/08/2017 B/Bollettazione;28/08/2017;660;0;0;1;Spese correnti;3;Acquisto di beni e servizi;2;Acquisto di servizi;99;Altri servizi;999;Altri servizi diversi n.a.c.;28/08/2017
379;5;0;5,6;41,73;PAVIA ACQUE S.C.A.R.L.; ;SALDO Fatt.n. 2550220172500145400  del 02/08/2017 B/Bollettazione;28/08/2017;660;0;0;1;Spese correnti;3;Acquisto di beni e servizi;2;Acquisto di servizi;99;Altri servizi;999;Altri servizi diversi n.a.c.;28/08/2017
379;6;0;8,97;41,73;PAVIA ACQUE S.C.A.R.L.; ;SALDO Fatt.n. 2550220172500144400  del 02/08/2017 ACQUA VIA FALCONE;28/08/2017;660;0;0;1;Spese correnti;3;Acquisto di beni e servizi;2;Acquisto di servizi;99;Altri servizi;999;Altri servizi diversi n.a.c.;28/08/2017
379;7;0;12,12;41,73;PAVIA ACQUE S.C.A.R.L.; ;SALDO Fatt.n. 2550220172500144200  del 02/08/2017 ACQUA II TRIM;28/08/2017;660;0;0;1;Spese correnti;3;Acquisto di beni e servizi;2;Acquisto di servizi;99;Altri servizi;999;Altri servizi diversi n.a.c.;28/08/2017
380;1;0;4,25;24,71;PAVIA ACQUE S.C.A.R.L.; ;SALDO Fatt.n. 2550220172500145300  del 02/08/2017 CIMITERO;28/08/2017;3471;0;0;1;Spese correnti;3;Acquisto di beni e servizi;2;Acquisto di servizi;5;Utenze e canoni;5;Acqua;28/08/2017
380;2;0;20,46;24,71;PAVIA ACQUE S.C.A.R.L.; ;SALDO Fatt.n. 2550220172500144100  del 02/08/2017 ACQUA CIMITERO II TRIM.;28/08/2017;3471;0;0;1;Spese correnti;3;Acquisto di beni e servizi;2;Acquisto di servizi;5;Utenze e canoni;5;Acqua;28/08/2017
381;1;0;11,12;29,64;PAVIA ACQUE S.C.A.R.L.; ;SALDO Fatt.n. 2550220172500144300  del 02/08/2017 B/Bollettazione;28/08/2017;2840;0;0;1;Spese correnti;3;Acquisto di beni e servizi;2;Acquisto di servizi;5;Utenze e canoni;5;Acqua;28/08/2017
381;2;0;18,52;29,64;PAVIA ACQUE S.C.A.R.L.; ;SALDO Fatt.n. 2550220172500145900  del 02/08/2017 B/Bollettazione;28/08/2017;2840;0;0;1;Spese correnti;3;Acquisto di beni e servizi;2;Acquisto di servizi;5;Utenze e canoni;5;Acqua;28/08/2017
382;1;0;38,31;38,31;omissis; ;CONTRIBUTO STRAORDINARIO MEDIANTE ACQUISTO GENERI DI  PRIMA NECESSITA' - ALLEGATI SCONTRINI FISCALI;08/09/2017;3410;0;113;1;Spese correnti;4;Trasferimenti correnti;2;Trasferimenti correnti a Famiglie;2;Interventi assistenziali;999;Altri assegni e sussidi assistenziali;08/09/2017
383;1;0;40,94;40,94;ENEL SERVIZIO ELETTRICO SPA; ;SALDO Fatt.n. 188550270101212  del 10/08/2017 Via Falcone luglio 2017 - PROVV.N. 81 DEL 30.08.2017;12/09/2017;660;0;0;1;Spese correnti;3;Acquisto di beni e servizi;2;Acquisto di servizi;99;Altri servizi;999;Altri servizi diversi n.a.c.;12/09/2017
384;1;0;87,9;87,9;ENEL SERVIZIO ELETTRICO SPA; ;FATT. 188550130100519 PERVENUTA AL  COMUNE DI CAMPOSPINOSO PER ILLUMINAZIONE PUBBLICA VIA FIAMBERTA- SCAD. 30.08.2017 - PROVV.N. 80 DEL 30.08.2017;12/09/2017;2390;0;0;1;Spese correnti;3;Acquisto di beni e servizi;2;Acquisto di servizi;5;Utenze e canoni;4;Energia elettrica;12/09/2017
386;1;0;710;710;MONTAGNA & RAME SAS; ;POLIZZA MOTOCARRO EP494HK SCAD. 06.09.2017;12/09/2017;390;1;0;1;Spese correnti;3;Acquisto di beni e servizi;2;Acquisto di servizi;9;Manutenzione ordinaria e riparazioni;6;Manutenzione ordinaria e riparazioni di macchine per ufficio;12/09/2017
387;1;0;208,75;208,75;AGENZIA ENTRATE; ;imposte di registro fallimento n. 4625/2016 TRIBUNALE DI VARESE - ZETA PETROLI;18/09/2017;7846;0;119;2;Spese in conto capitale;5;Altre spese in conto capitale;99;Altre spese in conto capitale n.a.c.;99;Altre spese in conto capitale n.a.c.;999;Altre spese in conto capitale n.a.c.;18/09/2017
409;1;0;24,55;211,37;TELECOM ITALIA SPA;54663373FE;SALDO Fatt.n. 8B00563802  del 07/06/2017 4BIM 2017 - PROVV.N. 86 DEL 12.09.2017;07/10/2017;660;0;0;1;Spese correnti;3;Acquisto di beni e servizi;2;Acquisto di servizi;99;Altri servizi;999;Altri servizi diversi n.a.c.;07/10/2017
409;2;0;29,26;211,37;TELECOM ITALIA SPA;54663373FE;SALDO Fatt.n. 8B00560185  del 07/06/2017 4BIM 2017 - PROVV.N. 85 DEL 12.09.2017;07/10/2017;660;0;0;1;Spese correnti;3;Acquisto di beni e servizi;2;Acquisto di servizi;99;Altri servizi;999;Altri servizi diversi n.a.c.;07/10/2017
409;3;0;69,49;211,37;TELECOM ITALIA SPA;54663373FE;SALDO Fatt.n. 8B00558930  del 07/06/2017 4BIM 2017 - PROVV.N. 84 DEL 12.09.2017;07/10/2017;660;0;0;1;Spese correnti;3;Acquisto di beni e servizi;2;Acquisto di servizi;99;Altri servizi;999;Altri servizi diversi n.a.c.;07/10/2017
409;4;0;88,07;211,37;TELECOM ITALIA SPA;54663373FE;SALDO Fatt.n. 8B00561657  del 07/06/2017 4BIM 2017 - PROVV.N. 82 DEL 12.09.2017;07/10/2017;660;0;0;1;Spese correnti;3;Acquisto di beni e servizi;2;Acquisto di servizi;99;Altri servizi;999;Altri servizi diversi n.a.c.;07/10/2017
410;1;0;23,81;23,81;TELECOM ITALIA SPA; ;SALDO Fatt.n. 8B00768368  del 07/08/2017 5BIM 2017;07/10/2017;660;0;0;1;Spese correnti;3;Acquisto di beni e servizi;2;Acquisto di servizi;99;Altri servizi;999;Altri servizi diversi n.a.c.;07/10/2017
411;1;0;23,89;23,89;TELECOM ITALIA SPA;54663373FE;SALDO Fatt.n. 8B00563118  del 07/06/2017 4BIM 2017 - provv.n. 83 del 12.09.2017;07/10/2017;660;0;0;1;Spese correnti;3;Acquisto di beni e servizi;2;Acquisto di servizi;99;Altri servizi;999;Altri servizi diversi n.a.c.;07/10/2017
413;1;0;227,27;227,27;MONTE ATTILIO; ;Rimborso spese viaggio del 07.10.2017;09/10/2017;31;0;0;1;Spese correnti;3;Acquisto di beni e servizi;2;Acquisto di servizi;1;Organi e incarichi istituzionali dell'amministrazione;2;Organi istituzionali dell'amministrazione - Rimborsi;09/10/2017
414;1;0;39,19;39,19;omissis; ;CONTRIBUTO STRAORDINARIO MEDIANTE ACQUISTO GENERI PRIMA NECESSITA';09/10/2017;3410;0;113;1;Spese correnti;4;Trasferimenti correnti;2;Trasferimenti correnti a Famiglie;2;Interventi assistenziali;999;Altri assegni e sussidi assistenziali;09/10/2017
415;1;0;3.783,00;3.783,00;COMUNE DI BRONI; ;COMPARTECIPAZIONE ALLA GESTIONE DEL PIANO DI ZONA ANNO 2017 PER ALBAREDO ARNABOLDI E CAMPOSPINOSO;11/10/2017;3400;0;0;1;Spese correnti;4;Trasferimenti correnti;1;Trasferimenti correnti a Amministrazioni Pubbliche;2;Trasferimenti correnti a Amministrazioni Locali;3;Trasferimenti correnti a Comuni;11/10/2017
416;1;0;1.886,00;1.886,00;CITTA' DI STRADELLA; ;QUOTA FREQUENZA C.D.D. DISABILI MESI DI MAGGIO, GIUGNO E LUGLIO 2017;11/10/2017;3400;1;0;1;Spese correnti;4;Trasferimenti correnti;1;Trasferimenti correnti a Amministrazioni Pubbliche;2;Trasferimenti correnti a Amministrazioni Locali;3;Trasferimenti correnti a Comuni;11/10/2017
428;1;0;4.631,36;4.631,36;COMUNE DI CAMPOSPINOSO; ;RIMBORSO SPESE UTENZE ELETTRICHE UFFICI E AMBULATORIO ANNO 2015;11/10/2017;660;0;89;1;Spese correnti;3;Acquisto di beni e servizi;2;Acquisto di servizi;99;Altri servizi;999;Altri servizi diversi n.a.c.;11/10/2017
429;1;0;59.878,33;59.878,33;COMUNE DI CAMPOSPINOSO; ;RIMBORSO SPESE ILLUMINAZIONE PUBBLICA ANNO 2016;11/10/2017;2390;0;58;1;Spese correnti;3;Acquisto di beni e servizi;2;Acquisto di servizi;5;Utenze e canoni;4;Energia elettrica;11/10/2017
430;1;0;855,3;855,3;COMUNE DI ALBAREDO ARNABOLDI; ;RIMBORSO SPESE ILLUMINAZIONE PUBBLICA ANNO 2015;11/10/2017;660;0;89;1;Spese correnti;3;Acquisto di beni e servizi;2;Acquisto di servizi;99;Altri servizi;999;Altri servizi diversi n.a.c.;11/10/2017
431;1;0;979,64;979,64;COMUNE DI ALBAREDO ARNABOLDI; ;Rimborso spese illuminazione pubblica anno 2015;11/10/2017;660;4;91;1;Spese correnti;3;Acquisto di beni e servizi;2;Acquisto di servizi;9;Manutenzione ordinaria e riparazioni;8;Manutenzione ordinaria e riparazioni di beni immobili;11/10/2017
432;1;0;15.106,04;15.106,04;COMUNE DI ALBAREDO ARNABOLDI; ;RIMBORSO SPESE ILLUMINAZIONE PUBBLICA ANNO 2015;11/10/2017;2390;0;103;1;Spese correnti;3;Acquisto di beni e servizi;2;Acquisto di servizi;5;Utenze e canoni;4;Energia elettrica;11/10/2017
433;1;0;483,39;483,39;COMUNE DI ALBAREDO ARNABOLDI; ;RIMBORSO SPESE ILLUMINAZIONE PUBBLICA ANNO 2015;11/10/2017;3475;0;116;1;Spese correnti;3;Acquisto di beni e servizi;2;Acquisto di servizi;5;Utenze e canoni;4;Energia elettrica;11/10/2017
434;1;0;9.344,79;9.344,79;COMUNE DI ALBAREDO ARNABOLDI; ;RIMBORSO SPESE ILLUMINAZIONE PUBBLICA ANNO 2016;11/10/2017;2390;0;58;1;Spese correnti;3;Acquisto di beni e servizi;2;Acquisto di servizi;5;Utenze e canoni;4;Energia elettrica;11/10/2017
435;1;0;1.000,00;1.000,00;COMUNE DI ALBAREDO ARNABOLDI; ;RIMBORSO SPESE  ENERGIA ELETTRICA CIMITERO ANNO 2016;11/10/2017;3475;0;74;1;Spese correnti;3;Acquisto di beni e servizi;2;Acquisto di servizi;5;Utenze e canoni;4;Energia elettrica;11/10/2017
436;1;0;3.347,72;3.347,72;COMUNE DI ALBAREDO ARNABOLDI; ;RIMBORSO UTENZE ELETTRICHE UFFICI ANNO 2016;11/10/2017;661;0;44;1;Spese correnti;3;Acquisto di beni e servizi;2;Acquisto di servizi;5;Utenze e canoni;4;Energia elettrica;11/10/2017
437;1;0;1.519,82;1.519,82;COMUNE DI ALBAREDO ARNABOLDI; ;RIMBORSO SPESE UTENZE ELETTRICHE ANNO 2016;11/10/2017;660;0;42;1;Spese correnti;3;Acquisto di beni e servizi;2;Acquisto di servizi;99;Altri servizi;999;Altri servizi diversi n.a.c.;11/10/2017
438;1;0;114;114;KUWAIT PETROLEUM ITALIA SPA;ZCB1769D6B;SALDO Fatt.n. PJ00092410  del 31/08/2017;19/10/2017;385;1;0;1;Spese correnti;3;Acquisto di beni e servizi;1;Acquisto di beni;2;Altri beni di consumo;2;Carburanti, combustibili e lubrificanti;19/10/2017
439;1;0;590,48;590,48;COOPERATIVA TICINO; ;SALDO Fatt.n. FATTPA 106_17  del 01/09/2017 AGOSTO;19/10/2017;390;0;0;1;Spese correnti;3;Acquisto di beni e servizi;2;Acquisto di servizi;13;Servizi ausiliari per il funzionamento dell'ente;2;Servizi di pulizia e lavanderia;19/10/2017
440;1;0;9.465,58;9.465,58;BRONI-STRADELLA Spa; ;SALDO Fatt.n. 449/E  del 31/08/2017 AGOSTO;19/10/2017;2940;0;0;1;Spese correnti;3;Acquisto di beni e servizi;2;Acquisto di servizi;99;Altri servizi;999;Altri servizi diversi n.a.c.;19/10/2017
441;1;0;20;144;LIBARNA GAS SPA; ;SALDO Fatt.n. 100469  del 13/09/2017 NOTA DEBITO;19/10/2017;660;0;0;1;Spese correnti;3;Acquisto di beni e servizi;2;Acquisto di servizi;99;Altri servizi;999;Altri servizi diversi n.a.c.;19/10/2017
441;2;0;20;144;LIBARNA GAS SPA; ;SALDO Fatt.n. 100464  del 13/09/2017 nota debito;19/10/2017;660;0;0;1;Spese correnti;3;Acquisto di beni e servizi;2;Acquisto di servizi;99;Altri servizi;999;Altri servizi diversi n.a.c.;19/10/2017
441;3;0;20;144;LIBARNA GAS SPA; ;SALDO Fatt.n. 100466  del 13/09/2017 nota debito;19/10/2017;660;0;0;1;Spese correnti;3;Acquisto di beni e servizi;2;Acquisto di servizi;99;Altri servizi;999;Altri servizi diversi n.a.c.;19/10/2017
441;4;0;21;144;LIBARNA GAS SPA; ;SALDO Fatt.n. 100467  del 13/09/2017 ND;19/10/2017;660;0;0;1;Spese correnti;3;Acquisto di beni e servizi;2;Acquisto di servizi;99;Altri servizi;999;Altri servizi diversi n.a.c.;19/10/2017
441;5;0;21;144;LIBARNA GAS SPA; ;SALDO Fatt.n. 100468  del 13/09/2017 ND;19/10/2017;660;0;0;1;Spese correnti;3;Acquisto di beni e servizi;2;Acquisto di servizi;99;Altri servizi;999;Altri servizi diversi n.a.c.;19/10/2017
441;6;0;21;144;LIBARNA GAS SPA; ;SALDO Fatt.n. 100470  del 13/09/2017 NOTA DEBITO;19/10/2017;660;0;0;1;Spese correnti;3;Acquisto di beni e servizi;2;Acquisto di servizi;99;Altri servizi;999;Altri servizi diversi n.a.c.;19/10/2017
441;7;0;21;144;LIBARNA GAS SPA; ;SALDO Fatt.n. 100465  del 13/09/2017 nota debito;19/10/2017;660;0;0;1;Spese correnti;3;Acquisto di beni e servizi;2;Acquisto di servizi;99;Altri servizi;999;Altri servizi diversi n.a.c.;19/10/2017
442;1;0;256,2;256,2;HALLEY INFORMATICA SRL;Z681F4D19D;SALDO Fatt.n. 10622/8/10  del 12/09/2017 ADDESTRAMENTO RIFERIMENTO FOGLIO INTERVENTO N.229340 DEL 04.09.17 RIFERITO ALL'INVENTARIO Determina n. 36   del 10/07/2017 Responsabile ordine dell'Ente LANATI ELISABETTA;19/10/2017;390;1;0;1;Spese correnti;3;Acquisto di beni e servizi;2;Acquisto di servizi;9;Manutenzione ordinaria e riparazioni;6;Manutenzione ordinaria e riparazioni di macchine per ufficio;19/10/2017
443;1;0;723,36;723,36;MARTA S.C.R.L.;Z101B08B97;SALDO Fatt.n. 1024/EL  del 31/07/2017 LUGLIO;19/10/2017;3110;0;0;1;Spese correnti;3;Acquisto di beni e servizi;2;Acquisto di servizi;99;Altri servizi;999;Altri servizi diversi n.a.c.;19/10/2017
444;1;0;656,12;656,12;Mondoffice S.r.l.;Z551F4D06A;SALDO Fatt.n. 30017699  del 11/07/2017 ACQUISTO CARTA;19/10/2017;110;2;0;1;Spese correnti;3;Acquisto di beni e servizi;1;Acquisto di beni;2;Altri beni di consumo;1;Carta, cancelleria e stampati;19/10/2017
445;1;0;3.272,50;3.272,50;PAVIA ACQUE S.C.A.R.L.;6781150DFE;SALDO Fatt.n. 1360020171400000100  del 23/03/2017 ADEGUAMENTO RETE IDRICA ROTATORIA;19/10/2017;7801;0;76;2;Spese in conto capitale;5;Altre spese in conto capitale;99;Altre spese in conto capitale n.a.c.;99;Altre spese in conto capitale n.a.c.;999;Altre spese in conto capitale n.a.c.;19/10/2017
446;1;0;975,16;975,16;BISI MAURIZIO;Z611B44CB6;SALDO Fatt.n. FE01-2017  del 19/01/2017 acconto coord.sicurezza;19/10/2017;7801;0;76;2;Spese in conto capitale;5;Altre spese in conto capitale;99;Altre spese in conto capitale n.a.c.;99;Altre spese in conto capitale n.a.c.;999;Altre spese in conto capitale n.a.c.;19/10/2017
447;1;0;19.920,18;19.920,18;BRONI-STRADELLA Spa;Z841D367B5;SALDO Fatt.n. 295/E  del 31/05/2017 ZETA;20/10/2017;7846;0;3;2;Spese in conto capitale;5;Altre spese in conto capitale;99;Altre spese in conto capitale n.a.c.;99;Altre spese in conto capitale n.a.c.;999;Altre spese in conto capitale n.a.c.;20/10/2017
448;1;0;913,67;913,67;BISI MAURIZIO;Z611B44CB6;SALDO Fatt.n. FE02-2017  del 05/04/2017 secondo acconto;20/10/2017;7801;0;0;2;Spese in conto capitale;5;Altre spese in conto capitale;99;Altre spese in conto capitale n.a.c.;99;Altre spese in conto capitale n.a.c.;999;Altre spese in conto capitale n.a.c.;20/10/2017
449;1;0;3.970,99;3.970,99;LEnergie S.p.A.; ;SALDO Fatt.n. 100001  del 13/07/2017 IMPIANTO GAS ROTATORIA;20/10/2017;7801;0;0;2;Spese in conto capitale;5;Altre spese in conto capitale;99;Altre spese in conto capitale n.a.c.;99;Altre spese in conto capitale n.a.c.;999;Altre spese in conto capitale n.a.c.;20/10/2017
450;1;0;6.094,55;13.072,60;SISTI ANDREA;ZCB1B44CD9;SALDO Fatt.n. 2/E  del 12/09/2017 RIQUALIFICAZIONE VIARIA DELLE INTERSEZIONI DI VIA GRISINI E DI VIA STRADA DEI CAMPANINI CON LA SP EX SS 617 BRONESE -  1 ACCONTO DL-;20/10/2017;7801;0;0;2;Spese in conto capitale;5;Altre spese in conto capitale;99;Altre spese in conto capitale n.a.c.;99;Altre spese in conto capitale n.a.c.;999;Altre spese in conto capitale n.a.c.;20/10/2017
450;2;0;6.978,05;13.072,60;SISTI ANDREA;ZCB1B44CD9;SALDO Fatt.n. 3/E  del 12/09/2017 RIQUALIFICAZIONE VIARIA DELLE INTERSEZIONI DI VIA GRISINI E DI VIA STRADA DEI CAMPANINI CON LA SP EX SS 617 BRONESE -  2 ACCONTO DL-;20/10/2017;7801;0;0;2;Spese in conto capitale;5;Altre spese in conto capitale;99;Altre spese in conto capitale n.a.c.;99;Altre spese in conto capitale n.a.c.;999;Altre spese in conto capitale n.a.c.;20/10/2017
451;1;0;3,1;3,1;ARAN - AGENZIA PER LA RAPPRES. NEGOZ.PUBBLICHE AMMIN.; ;CONTRIBUTO ANNUALE;21/10/2017;660;2;0;1;Spese correnti;3;Acquisto di beni e servizi;2;Acquisto di servizi;99;Altri servizi;999;Altri servizi diversi n.a.c.;21/10/2017
452;1;0;332,15;332,15;C.M.E. MARMI E GRANITI;35487297CE;SALDO Fatt.n. 19/PA  del 19/07/2017 SERVIZI CIMITERIALI;21/10/2017;3470;1;0;1;Spese correnti;3;Acquisto di beni e servizi;2;Acquisto di servizi;99;Altri servizi;999;Altri servizi diversi n.a.c.;21/10/2017
453;1;0;75,64;75,64;INFORMA SRL;ZD7125D1BE;SALDO Fatt.n. 3416/E  del 23/08/2017 FATTURA IMMEDIATA ELETTRONICA;21/10/2017;121;0;0;1;Spese correnti;3;Acquisto di beni e servizi;2;Acquisto di servizi;16;Servizi amministrativi;999;Altre spese per servizi amministrativi;21/10/2017
454;1;0;2.347,95;2.347,95;BRONI-STRADELLA Spa;ZB51E6A029;SALDO Fatt.n. 444/E  del 23/08/2017 SPAZZAMENTO GIUGNO;21/10/2017;2930;0;0;1;Spese correnti;3;Acquisto di beni e servizi;2;Acquisto di servizi;99;Altri servizi;999;Altri servizi diversi n.a.c.;21/10/2017
455;1;0;256,2;256,2;HALLEY INFORMATICA SRL;Z681F4D19D;SALDO Fatt.n. 11752/8/10  del 29/09/2017 ADDESTRAMENTO RIFERIMENTO FOGLIO INTERVENTO N.231047 DEL 26.09.17 RIFERITO ALL'INVENTARIO Determina n. 36   del 10/07/2017 Responsabile ordine dell'Ente LANATI ELISABETTA;23/10/2017;390;1;0;1;Spese correnti;3;Acquisto di beni e servizi;2;Acquisto di servizi;9;Manutenzione ordinaria e riparazioni;6;Manutenzione ordinaria e riparazioni di macchine per ufficio;23/10/2017
456;1;0;590,48;590,48;COOPERATIVA TICINO; ;SALDO Fatt.n. FATTPA 116_17  del 02/10/2017 SETTEMBRE 2017;23/10/2017;390;0;0;1;Spese correnti;3;Acquisto di beni e servizi;2;Acquisto di servizi;13;Servizi ausiliari per il funzionamento dell'ente;2;Servizi di pulizia e lavanderia;23/10/2017
457;1;0;75,64;75,64;INFORMA SRL;ZD7125D1BE;SALDO Fatt.n. 3848/E  del 28/09/2017 FATTURA IMMEDIATA ELETTRONICA;23/10/2017;121;0;0;1;Spese correnti;3;Acquisto di beni e servizi;2;Acquisto di servizi;16;Servizi amministrativi;999;Altre spese per servizi amministrativi;23/10/2017
458;1;0;98,34;98,34;ENEL SERVIZIO ELETTRICO SPA; ;SALDO Fatt.n. 188550080108516  del 10/09/2017 ILLUM.PUBBLICA AGOSTO-SETTEMBRE 2017;23/10/2017;2390;0;0;1;Spese correnti;3;Acquisto di beni e servizi;2;Acquisto di servizi;5;Utenze e canoni;4;Energia elettrica;23/10/2017
459;1;0;1.797,40;1.797,40;BRONI-STRADELLA Spa;ZB51E64029;SALDO Fatt.n. 515/E  del 25/09/2017 SPAZZAMENTO AGOSTO 2017;23/10/2017;2930;0;0;1;Spese correnti;3;Acquisto di beni e servizi;2;Acquisto di servizi;99;Altri servizi;999;Altri servizi diversi n.a.c.;23/10/2017
460;1;0;9.465,58;9.465,58;BRONI-STRADELLA Spa; ;SALDO Fatt.n. 531/E  del 30/09/2017 RIFIUTI SETTEMBRE 2017;23/10/2017;2940;0;0;1;Spese correnti;3;Acquisto di beni e servizi;2;Acquisto di servizi;99;Altri servizi;999;Altri servizi diversi n.a.c.;23/10/2017
461;1;0;9;69;LIBARNA GAS SPA; ;SALDO Fatt.n. 100517  del 27/09/2017 METANO;23/10/2017;660;0;0;1;Spese correnti;3;Acquisto di beni e servizi;2;Acquisto di servizi;99;Altri servizi;999;Altri servizi diversi n.a.c.;23/10/2017
461;2;0;9;69;LIBARNA GAS SPA; ;SALDO Fatt.n. 100519  del 27/09/2017 METANO;23/10/2017;660;0;0;1;Spese correnti;3;Acquisto di beni e servizi;2;Acquisto di servizi;99;Altri servizi;999;Altri servizi diversi n.a.c.;23/10/2017
461;3;0;10;69;LIBARNA GAS SPA; ;SALDO Fatt.n. 100507  del 27/09/2017 METANO;23/10/2017;660;0;0;1;Spese correnti;3;Acquisto di beni e servizi;2;Acquisto di servizi;99;Altri servizi;999;Altri servizi diversi n.a.c.;23/10/2017
461;4;0;10;69;LIBARNA GAS SPA; ;SALDO Fatt.n. 100516  del 27/09/2017 METANO;23/10/2017;660;0;0;1;Spese correnti;3;Acquisto di beni e servizi;2;Acquisto di servizi;99;Altri servizi;999;Altri servizi diversi n.a.c.;23/10/2017
461;5;0;10;69;LIBARNA GAS SPA; ;SALDO Fatt.n. 100518  del 27/09/2017 METANO;23/10/2017;660;0;0;1;Spese correnti;3;Acquisto di beni e servizi;2;Acquisto di servizi;99;Altri servizi;999;Altri servizi diversi n.a.c.;23/10/2017
461;6;0;10;69;LIBARNA GAS SPA; ;SALDO Fatt.n. 100520  del 27/09/2017 METANO;23/10/2017;660;0;0;1;Spese correnti;3;Acquisto di beni e servizi;2;Acquisto di servizi;99;Altri servizi;999;Altri servizi diversi n.a.c.;23/10/2017
461;7;0;11;69;LIBARNA GAS SPA; ;SALDO Fatt.n. 100506  del 27/09/2017 FATT.N. 27.09.2017;23/10/2017;660;0;0;1;Spese correnti;3;Acquisto di beni e servizi;2;Acquisto di servizi;99;Altri servizi;999;Altri servizi diversi n.a.c.;23/10/2017
478;1;0;1.795,00;1.795,00;BERTON GUIDO  AGENTE UNIPOL SAI; ;ASSICURAZIONE SCUOLABUS IVECO BV182SE;30/10/2017;1583;0;0;1;Spese correnti;3;Acquisto di beni e servizi;2;Acquisto di servizi;99;Altri servizi;999;Altri servizi diversi n.a.c.;30/10/2017
479;1;0;1.910,00;1.910,00;MONTAGNA & RAME SAS; ;POLIZZA MERCEDES DT795YG SCAD. 04.11.2017;30/10/2017;1583;0;0;1;Spese correnti;3;Acquisto di beni e servizi;2;Acquisto di servizi;99;Altri servizi;999;Altri servizi diversi n.a.c.;30/10/2017
480;1;0;1.061,43;1.061,43;IL MAGGIOLINO SOC.COOP. ONLUS; ;CONTRIBUTO PER NIDI GRATIS MESI DI MAGGIO, GIUGNO E LUGLIO 2017;03/11/2017;3130;2;0;1;Spese correnti;4;Trasferimenti correnti;2;Trasferimenti correnti a Famiglie;5;Altri trasferimenti a famiglie;999;Altri trasferimenti a famiglie n.a.c.;03/11/2017
481;1;0;282,15;282,15;IL MAGGIOLINO SOC.COOP. ONLUS; ;CONTRIBUTO ASILO NIDO ALLOCCA MARTINA MAGGIO, GIUGNO E LUGLIO 2017 A SALDO FATTURE;03/11/2017;3130;1;0;1;Spese correnti;4;Trasferimenti correnti;2;Trasferimenti correnti a Famiglie;5;Altri trasferimenti a famiglie;999;Altri trasferimenti a famiglie n.a.c.;03/11/2017
482;1;0;896,7;7.240,70;BRONI-STRADELLA Spa; ;SALDO Fatt.n. 176/E  del 10/04/2017 zeta;03/11/2017;7846;0;3;2;Spese in conto capitale;5;Altre spese in conto capitale;99;Altre spese in conto capitale n.a.c.;99;Altre spese in conto capitale n.a.c.;999;Altre spese in conto capitale n.a.c.;03/11/2017
482;2;0;6.344,00;7.240,70;BRONI-STRADELLA Spa; ;SALDO Fatt.n. 260/E  del 30/05/2017 ZETA PETROLI;03/11/2017;7846;0;3;2;Spese in conto capitale;5;Altre spese in conto capitale;99;Altre spese in conto capitale n.a.c.;99;Altre spese in conto capitale n.a.c.;999;Altre spese in conto capitale n.a.c.;03/11/2017
483;1;0;734,76;734,76;DAY RISTOSERVICE S.P.A;ZD21FF1D40;SALDO Fatt.n. V0-98978  del 29/09/2017 BUONI PASTO;03/11/2017;1570;0;0;1;Spese correnti;3;Acquisto di beni e servizi;1;Acquisto di beni;2;Altri beni di consumo;2;Carburanti, combustibili e lubrificanti;03/11/2017
484;1;0;200;200;Appleby srls; ;SALDO Fatt.n. FATTPA 22_17  del 29/09/2017 CORSO PRIMO SOCCORSO;03/11/2017;120;2;0;1;Spese correnti;3;Acquisto di beni e servizi;2;Acquisto di servizi;4;Acquisto di servizi per formazione e addestramento del personale dell'ente;999;Acquisto di servizi per altre spese per formazione e addestramento n.a.c.;03/11/2017
485;1;0;1.290,71;1.290,71;COOPERATIVA SOCIALE CODAMS DUE;Z531FB4106;SALDO Fatt.n. 0451PA  del 30/09/2017 Scissione dei pagamenti ai sensi art. 17-ter del D.P.R. 633/1972;03/11/2017;1582;0;0;1;Spese correnti;3;Acquisto di beni e servizi;2;Acquisto di servizi;99;Altri servizi;999;Altri servizi diversi n.a.c.;03/11/2017
486;1;0;38,53;77,13;ENEL SERVIZIO ELETTRICO SPA; ;SALDO Fatt.n. 188550270101213  del 10/09/2017 via falcone agosto 2017 - provv.n. 91 del 03.10.2017;03/11/2017;660;0;0;1;Spese correnti;3;Acquisto di beni e servizi;2;Acquisto di servizi;99;Altri servizi;999;Altri servizi diversi n.a.c.;03/11/2017
486;2;0;38,6;77,13;ENEL SERVIZIO ELETTRICO SPA; ;SALDO Fatt.n. 188550270101214  del 10/10/2017 VIA FALCONE SETTEMBRE - provv.n. 96 del 30.10.2017;03/11/2017;660;0;0;1;Spese correnti;3;Acquisto di beni e servizi;2;Acquisto di servizi;99;Altri servizi;999;Altri servizi diversi n.a.c.;03/11/2017
487;1;0;433,56;433,56;ENEL SERVIZIO ELETTRICO SPA; ;SALDO Fatt.n. 188550230101511  del 10/09/2017 VIA GRISINI AGOSTTO-SETT.- PROVV.N. 92 DEL 03.10.2017;03/11/2017;2390;0;0;1;Spese correnti;3;Acquisto di beni e servizi;2;Acquisto di servizi;5;Utenze e canoni;4;Energia elettrica;03/11/2017
488;1;0;667;667;CITTA' DI STRADELLA; ;QUOTA FREQUENZA C.D.D. AGOSTO E SETTEMBRE 2017;03/11/2017;3400;1;0;1;Spese correnti;4;Trasferimenti correnti;1;Trasferimenti correnti a Amministrazioni Pubbliche;2;Trasferimenti correnti a Amministrazioni Locali;3;Trasferimenti correnti a Comuni;03/11/2017
489;1;0;4.204,00;4.204,00;EURO SEGNAL SRL;Z291ED73DC;ACCONTO Fatt.n. PA-0104  del 31/10/2017 Installazione di dissuasori elettronici di velocità su territorio del Comune di Albaredo Arnaboldi;03/11/2017;6000;0;120;2;Spese in conto capitale;5;Altre spese in conto capitale;99;Altre spese in conto capitale n.a.c.;99;Altre spese in conto capitale n.a.c.;999;Altre spese in conto capitale n.a.c.;03/11/2017
490;1;0;5.385,54;5.385,54;EURO SEGNAL SRL;Z291ED73DC;SALDO Fatt.n. PA-0104  del 31/10/2017 Installazione di dissuasori elettronici di velocità su territorio del Comune di Albaredo Arnaboldi;03/11/2017;6000;0;145;2;Spese in conto capitale;5;Altre spese in conto capitale;99;Altre spese in conto capitale n.a.c.;99;Altre spese in conto capitale n.a.c.;999;Altre spese in conto capitale n.a.c.;03/11/2017
491;1;0;18.614,46;18.614,46;EURO SEGNAL SRL;ZA41ED72B2;SALDO Fatt.n. PA-0103  del 31/10/2017 Installazione di rallentatori di velocità realizzati da composti modulari,installazione di dissuasori elettronici di velocità sul territorio del Comune di Campospinoso;03/11/2017;6000;0;145;2;Spese in conto capitale;5;Altre spese in conto capitale;99;Altre spese in conto capitale n.a.c.;99;Altre spese in conto capitale n.a.c.;999;Altre spese in conto capitale n.a.c.;03/11/2017
492;1;0;7.404,28;7.404,28;BRUSCHI GEOM.MAURIZIO;ZE41ED7347;SALDO Fatt.n. 10/2017/PA  del 23/10/2017 DISSUASORI CAMPOSPINOSO;03/11/2017;6000;0;120;2;Spese in conto capitale;5;Altre spese in conto capitale;99;Altre spese in conto capitale n.a.c.;99;Altre spese in conto capitale n.a.c.;999;Altre spese in conto capitale n.a.c.;03/11/2017
493;1;0;1.622,26;1.622,26;BRUSCHI GEOM.MAURIZIO;ZE41ED7442;SALDO Fatt.n. 11/2017/PA  del 23/10/2017 DISSUASORI ALBAREDO;03/11/2017;6000;0;120;2;Spese in conto capitale;5;Altre spese in conto capitale;99;Altre spese in conto capitale n.a.c.;99;Altre spese in conto capitale n.a.c.;999;Altre spese in conto capitale n.a.c.;03/11/2017
494;1;0;3.416,00;3.416,00;IDR RESTAURI; ;SALDO Fatt.n. 3/17-PA  del 06/11/2017 FORNITURA DI IMPIANTO CELEBRATIVO PER VALORIZZAZIONE AREE E BENI STORICI DEMANIALI;07/11/2017;7831;0;0;2;Spese in conto capitale;5;Altre spese in conto capitale;99;Altre spese in conto capitale n.a.c.;99;Altre spese in conto capitale n.a.c.;999;Altre spese in conto capitale n.a.c.;07/11/2017
495;1;0;11.316,00;11.316,00;NEW SINTESI SRL;ZD92096AA3;ACCONTO Fatt.n. 05/2017  del 06/11/2017 FATTURA DI VENDITA;07/11/2017;7836;2;0;2;Spese in conto capitale;5;Altre spese in conto capitale;99;Altre spese in conto capitale n.a.c.;99;Altre spese in conto capitale n.a.c.;999;Altre spese in conto capitale n.a.c.;07/11/2017
496;1;0;382,09;382,09;NEW SINTESI SRL; ;SALDO Fatt.n. 05/2017  del 06/11/2017 FATTURA DI VENDITA;07/11/2017;5011;0;87;2;Spese in conto capitale;5;Altre spese in conto capitale;99;Altre spese in conto capitale n.a.c.;99;Altre spese in conto capitale n.a.c.;999;Altre spese in conto capitale n.a.c.;07/11/2017
497;1;0;14.000,00;14.000,00;NEW SINTESI SRL;ZE22096829;ACCONTO Fatt.n. 04/2017  del 06/11/2017 FATTURA DI VENDITA;07/11/2017;7826;0;0;2;Spese in conto capitale;5;Altre spese in conto capitale;99;Altre spese in conto capitale n.a.c.;99;Altre spese in conto capitale n.a.c.;999;Altre spese in conto capitale n.a.c.;07/11/2017
498;1;0;1.598,19;1.598,19;NEW SINTESI SRL; ;SALDO Fatt.n. 04/2017  del 06/11/2017 FATTURA DI VENDITA;07/11/2017;5011;0;87;2;Spese in conto capitale;5;Altre spese in conto capitale;99;Altre spese in conto capitale n.a.c.;99;Altre spese in conto capitale n.a.c.;999;Altre spese in conto capitale n.a.c.;07/11/2017
499;1;0;20.000,00;20.000,00;BIANCHIN SCALE;Z1720669A0;SALDO Fatt.n. 41/PA  del 07/11/2017 ALZAFERETRI;08/11/2017;7880;0;0;2;Spese in conto capitale;5;Altre spese in conto capitale;99;Altre spese in conto capitale n.a.c.;99;Altre spese in conto capitale n.a.c.;999;Altre spese in conto capitale n.a.c.;08/11/2017
500;1;0;2.433,32;2.433,32;MANZONI COMMERCIALE S.R.L.; ;ACCONTO Fatt.n. 8/PA  del 31/10/2017;08/11/2017;7831;0;0;2;Spese in conto capitale;5;Altre spese in conto capitale;99;Altre spese in conto capitale n.a.c.;99;Altre spese in conto capitale n.a.c.;999;Altre spese in conto capitale n.a.c.;08/11/2017
501;1;0;3.909,46;3.909,46;MANZONI COMMERCIALE S.R.L.;Z8420698A7;SALDO Fatt.n. 8/PA  del 31/10/2017;08/11/2017;6000;0;120;2;Spese in conto capitale;5;Altre spese in conto capitale;99;Altre spese in conto capitale n.a.c.;99;Altre spese in conto capitale n.a.c.;999;Altre spese in conto capitale n.a.c.;08/11/2017
502;1;0;2.437,42;2.437,42;GREEN ARREDA srl;Z9F206EC68;ACCONTO Fatt.n. 000151-2017-PA  del 07/11/2017 PENSILINE;08/11/2017;7801;0;76;2;Spese in conto capitale;5;Altre spese in conto capitale;99;Altre spese in conto capitale n.a.c.;99;Altre spese in conto capitale n.a.c.;999;Altre spese in conto capitale n.a.c.;08/11/2017
503;1;0;4.150,58;4.150,58;GREEN ARREDA srl;Z9F206EC68;SALDO Fatt.n. 000151-2017-PA  del 07/11/2017 PENSILINE;08/11/2017;7831;0;0;2;Spese in conto capitale;5;Altre spese in conto capitale;99;Altre spese in conto capitale n.a.c.;99;Altre spese in conto capitale n.a.c.;999;Altre spese in conto capitale n.a.c.;08/11/2017
504;1;0;37,73;37,73;omissis; ;CONTRIBUTO STRAORDINARIO MEDIANTE ACQUISTO GENERI PRIMA NECESSITA';08/11/2017;3410;0;113;1;Spese correnti;4;Trasferimenti correnti;2;Trasferimenti correnti a Famiglie;2;Interventi assistenziali;999;Altri assegni e sussidi assistenziali;08/11/2017
505;1;0;14.000,00;14.000,00;SARBA S.p.a.;Z2D200D135;ACCONTO Fatt.n. 235/PF  del 06/11/2017 PARCO GIOCHI;08/11/2017;7843;0;90;2;Spese in conto capitale;5;Altre spese in conto capitale;99;Altre spese in conto capitale n.a.c.;99;Altre spese in conto capitale n.a.c.;999;Altre spese in conto capitale n.a.c.;08/11/2017
506;1;0;-149,77;1.653,99;SARBA S.p.a.; ;SALDO Fatt.n. 2/PN  del 08/11/2017 nota credito;08/11/2017;7843;0;0;2;Spese in conto capitale;5;Altre spese in conto capitale;99;Altre spese in conto capitale n.a.c.;99;Altre spese in conto capitale n.a.c.;999;Altre spese in conto capitale n.a.c.;08/11/2017
506;2;0;1.803,76;1.653,99;SARBA S.p.a.;Z2D200D135;SALDO Fatt.n. 235/PF  del 06/11/2017 PARCO GIOCHI;08/11/2017;7843;0;0;2;Spese in conto capitale;5;Altre spese in conto capitale;99;Altre spese in conto capitale n.a.c.;99;Altre spese in conto capitale n.a.c.;999;Altre spese in conto capitale n.a.c.;08/11/2017
507;1;0;115,79;115,79;ENEL SERVIZIO ELETTRICO SPA; ;FATTURA NON PERVENUTA  PER ILLUMINAZIONE PUBBLICA - PROVV.N. 97 DEL 30.10.2017;09/11/2017;2390;0;0;1;Spese correnti;3;Acquisto di beni e servizi;2;Acquisto di servizi;5;Utenze e canoni;4;Energia elettrica;09/11/2017
509;1;0;5.999,99;5.999,99;UNIPOL SAI - AGENTE ARDISSONE PAOLO; ;POLIZZA R.C. N. 65/761665247 SCAD. 11.11.2017 - DETERMINA N. 65 DEL 10.11.2017;10/11/2017;660;0;0;1;Spese correnti;3;Acquisto di beni e servizi;2;Acquisto di servizi;99;Altri servizi;999;Altri servizi diversi n.a.c.;10/11/2017
510;1;0;120;214,8;omissis; ;CONTRIBUTO BUONI PASTO ANNO 2014/2015;21/11/2017;1330;0;95;1;Spese correnti;4;Trasferimenti correnti;2;Trasferimenti correnti a Famiglie;2;Interventi assistenziali;999;Altri assegni e sussidi assistenziali;21/11/2017
510;2;0;94,8;214,8;omissis; ;CONTRIBUTO BUONI PASTO ANNO 2014/2015;21/11/2017;1330;0;95;1;Spese correnti;4;Trasferimenti correnti;2;Trasferimenti correnti a Famiglie;2;Interventi assistenziali;999;Altri assegni e sussidi assistenziali;21/11/2017
511;1;0;91,2;413,5;omissis; ;CONTRIBUTO PER BUONI PASTO ANNO 2015/2016;21/11/2017;1330;0;47;1;Spese correnti;4;Trasferimenti correnti;2;Trasferimenti correnti a Famiglie;2;Interventi assistenziali;999;Altri assegni e sussidi assistenziali;21/11/2017
511;2;0;52,8;413,5;omissis; ;CONTRIBUTO PER BUONI PASTO ANNO 2015/2016;21/11/2017;1330;0;47;1;Spese correnti;4;Trasferimenti correnti;2;Trasferimenti correnti a Famiglie;2;Interventi assistenziali;999;Altri assegni e sussidi assistenziali;21/11/2017
511;3;0;110,6;413,5;omissis; ;CONTRIBUTO PER BUONI PASTO ANNO 2015/2016;21/11/2017;1330;0;47;1;Spese correnti;4;Trasferimenti correnti;2;Trasferimenti correnti a Famiglie;2;Interventi assistenziali;999;Altri assegni e sussidi assistenziali;21/11/2017
511;4;0;72;413,5;omissis; ;CONTRIBUTO PER BUONI PASTO ANNO 2015/2016;21/11/2017;1330;0;47;1;Spese correnti;4;Trasferimenti correnti;2;Trasferimenti correnti a Famiglie;2;Interventi assistenziali;999;Altri assegni e sussidi assistenziali;21/11/2017
511;5;0;86,9;413,5;omissis; ;CONTRIBUTO PER BUONI PASTO ANNO 2015/2016;21/11/2017;1330;0;47;1;Spese correnti;4;Trasferimenti correnti;2;Trasferimenti correnti a Famiglie;2;Interventi assistenziali;999;Altri assegni e sussidi assistenziali;21/11/2017
528;1;0;1.020,80;2.323,20;Maga Auto Sas; ;SALDO Fatt.n. FATTPA 6_17  del 25/09/2017 TRASPORTO SETTEMBRE;23/11/2017;1584;0;0;1;Spese correnti;3;Acquisto di beni e servizi;2;Acquisto di servizi;99;Altri servizi;999;Altri servizi diversi n.a.c.;23/11/2017
528;2;0;1.302,40;2.323,20;Maga Auto Sas; ;SALDO Fatt.n. FATTPA 7_17  del 31/10/2017 TRASPORTO OTTOBRE;23/11/2017;1584;0;0;1;Spese correnti;3;Acquisto di beni e servizi;2;Acquisto di servizi;99;Altri servizi;999;Altri servizi diversi n.a.c.;23/11/2017
529;1;0;3.416,34;3.416,34;A.S.D. ARNABOLDI;Z051F1F4FE;SALDO Fatt.n. FATTPA 4_17  del 28/07/2017 CENTRO ESTIVO;23/11/2017;3110;0;0;1;Spese correnti;3;Acquisto di beni e servizi;2;Acquisto di servizi;99;Altri servizi;999;Altri servizi diversi n.a.c.;23/11/2017
530;1;0;9.465,58;9.465,58;BRONI-STRADELLA Spa; ;SALDO Fatt.n. 612/E  del 31/10/2017 RIFIUTI OTTOBRE 2017;23/11/2017;2940;0;0;1;Spese correnti;3;Acquisto di beni e servizi;2;Acquisto di servizi;99;Altri servizi;999;Altri servizi diversi n.a.c.;23/11/2017
531;1;0;2.826,74;2.826,74;BRONI-STRADELLA Spa; ;SALDO Fatt.n. 645/E  del 31/10/2017 LAVAGGIO CASSONETTI;23/11/2017;2930;0;0;1;Spese correnti;3;Acquisto di beni e servizi;2;Acquisto di servizi;99;Altri servizi;999;Altri servizi diversi n.a.c.;23/11/2017
532;1;0;119.002,26;119.002,26;ASIOTTI ANGELO & FIGLI SRL;6781150DFE;SALDO Fatt.n. 18/E  del 09/10/2017 III SAL LAVORI DI RIQUALIFICAZIONE VIARIA;23/11/2017;7801;0;76;2;Spese in conto capitale;5;Altre spese in conto capitale;99;Altre spese in conto capitale n.a.c.;99;Altre spese in conto capitale n.a.c.;999;Altre spese in conto capitale n.a.c.;23/11/2017
533;1;0;5.669,34;5.669,34;Vox-Tel  S.r.l.;Z2B20DA53D;SALDO Fatt.n. 3/PA  del 27/11/2017 ACQUISTO CENTRALE TELEFONICA PER SERVIZIO ECONOMICO FINANZIARIO;28/11/2017;5011;0;87;2;Spese in conto capitale;5;Altre spese in conto capitale;99;Altre spese in conto capitale n.a.c.;99;Altre spese in conto capitale n.a.c.;999;Altre spese in conto capitale n.a.c.;28/11/2017
536;1;0;548,9;548,9;ENEL SERVIZIO ELETTRICO SPA; ;SALDO Fatt.n. 188550230101512  del 09/11/2017 ILL.PUBBLICA VIA GRISINI OTT- NOV. - PROVV.N. 108 DEL 29.11.2017;11/12/2017;2390;0;0;1;Spese correnti;3;Acquisto di beni e servizi;2;Acquisto di servizi;5;Utenze e canoni;4;Energia elettrica;11/12/2017
537;1;0;48,62;48,62;ENEL SERVIZIO ELETTRICO SPA; ;SALDO Fatt.n. 188550270101215  del 09/11/2017 VIA FALCONE OTTOBRE 2017 - PROVV.N. 107 DEL 29.11.2017;11/12/2017;660;0;0;1;Spese correnti;3;Acquisto di beni e servizi;2;Acquisto di servizi;99;Altri servizi;999;Altri servizi diversi n.a.c.;11/12/2017
538;1;0;23,77;261,69;TELECOM ITALIA SPA;54663373FE;SALDO Fatt.n. 8B00769426  del 07/08/2017 5BIM 2017 - PROVV.N. 106 DEL 15.11.2017;11/12/2017;660;0;0;1;Spese correnti;3;Acquisto di beni e servizi;2;Acquisto di servizi;99;Altri servizi;999;Altri servizi diversi n.a.c.;11/12/2017
538;2;0;23,77;261,69;TELECOM ITALIA SPA;54663373FE;SALDO Fatt.n. 8B00772020  del 07/08/2017 5BIM 2017 - PROVV.N. 105 DEL 15.11.2017;11/12/2017;660;0;0;1;Spese correnti;3;Acquisto di beni e servizi;2;Acquisto di servizi;99;Altri servizi;999;Altri servizi diversi n.a.c.;11/12/2017
538;3;0;28,63;261,69;TELECOM ITALIA SPA;54663373FE;SALDO Fatt.n. 8B00775800  del 07/08/2017 5BIM 2017 - PROVV.N. 104 DEL 15.11.2017;11/12/2017;660;0;0;1;Spese correnti;3;Acquisto di beni e servizi;2;Acquisto di servizi;99;Altri servizi;999;Altri servizi diversi n.a.c.;11/12/2017
538;4;0;74,6;261,69;TELECOM ITALIA SPA;54663373FE;SALDO Fatt.n. 8B00776399  del 07/08/2017 5BIM 2017 - PROVV.N. 102 DEL 15.11.2017;11/12/2017;660;0;0;1;Spese correnti;3;Acquisto di beni e servizi;2;Acquisto di servizi;99;Altri servizi;999;Altri servizi diversi n.a.c.;11/12/2017
538;5;0;110,92;261,69;TELECOM ITALIA SPA;54663373FE;SALDO Fatt.n. 8B00776510  del 07/08/2017 5BIM 2017 - PROVV.N. 103 DEL 15.11.2017;11/12/2017;660;0;0;1;Spese correnti;3;Acquisto di beni e servizi;2;Acquisto di servizi;99;Altri servizi;999;Altri servizi diversi n.a.c.;11/12/2017
541;1;0;53,8;53,8;omissis; ; ;11/12/2017;3410;0;113;1;Spese correnti;4;Trasferimenti correnti;2;Trasferimenti correnti a Famiglie;2;Interventi assistenziali;999;Altri assegni e sussidi assistenziali;11/12/2017
542;1;0;122,65;122,65;ENEL SERVIZIO ELETTRICO SPA; ;SALDO Fatt.n. 188550080108517  del 09/11/2017 ILL.PUBBLICA OTT-NOV.;11/12/2017;2390;0;0;1;Spese correnti;3;Acquisto di beni e servizi;2;Acquisto di servizi;5;Utenze e canoni;4;Energia elettrica;11/12/2017
543;1;0;281,82;281,82;MAZZOCCHI GOMME Snc;ZE71C53D2A;ACCONTO Fatt.n. E11/2017  del 20/11/2017 CAMBIO AUTUNNALE 2016;11/12/2017;2315;0;94;1;Spese correnti;3;Acquisto di beni e servizi;2;Acquisto di servizi;9;Manutenzione ordinaria e riparazioni;4;Manutenzione ordinaria e riparazioni di impianti e macchinari;11/12/2017
544;1;0;135,42;135,42;MAZZOCCHI GOMME Snc;ZE71C53D2A;SALDO Fatt.n. E11/2017  del 20/11/2017 CAMBIO AUTUNNALE 2016;11/12/2017;950;0;46;1;Spese correnti;3;Acquisto di beni e servizi;2;Acquisto di servizi;9;Manutenzione ordinaria e riparazioni;1;Manutenzione ordinaria e riparazioni di mezzi di trasporto ad uso civile, di sicurezza e ordine pubblico;11/12/2017
545;1;0;2.040,50;2.040,50;BRONI-STRADELLA Spa; ;SALDO Fatt.n. 715/E  del 24/11/2017 SPAZZAMENTO OTTOBRE 2017;11/12/2017;2930;0;0;1;Spese correnti;3;Acquisto di beni e servizi;2;Acquisto di servizi;99;Altri servizi;999;Altri servizi diversi n.a.c.;11/12/2017
546;1;0;590,48;1.180,96;COOPERATIVA TICINO; ;SALDO Fatt.n. FATTPA 140_17  del 01/12/2017 PULIZIE NOVEMBRE 2017;11/12/2017;390;0;0;1;Spese correnti;3;Acquisto di beni e servizi;2;Acquisto di servizi;13;Servizi ausiliari per il funzionamento dell'ente;2;Servizi di pulizia e lavanderia;11/12/2017
546;2;0;590,48;1.180,96;COOPERATIVA TICINO; ;SALDO Fatt.n. FATTPA 128_17  del 02/11/2017 PULIZIA OTTOBRE;11/12/2017;390;0;0;1;Spese correnti;3;Acquisto di beni e servizi;2;Acquisto di servizi;13;Servizi ausiliari per il funzionamento dell'ente;2;Servizi di pulizia e lavanderia;11/12/2017
547;1;0;1.091,20;1.091,20;Maga Auto Sas; ;SALDO Fatt.n. FATTPA 8_17  del 30/11/2017 TRASPORTO NOVEMBRE 2017;11/12/2017;1584;0;0;1;Spese correnti;3;Acquisto di beni e servizi;2;Acquisto di servizi;99;Altri servizi;999;Altri servizi diversi n.a.c.;11/12/2017
548;1;0;66,19;151,29;INFORMA SRL;ZD7125D1BE;SALDO Fatt.n. 4759/E  del 27/11/2017 PAGHE NOVEMBRE;11/12/2017;121;0;0;1;Spese correnti;3;Acquisto di beni e servizi;2;Acquisto di servizi;16;Servizi amministrativi;999;Altre spese per servizi amministrativi;11/12/2017
548;2;0;85,1;151,29;INFORMA SRL;ZD7125D1BE;SALDO Fatt.n. 4310/E  del 30/10/2017 PAGHE OTTOBRE;11/12/2017;121;0;0;1;Spese correnti;3;Acquisto di beni e servizi;2;Acquisto di servizi;16;Servizi amministrativi;999;Altre spese per servizi amministrativi;11/12/2017
549;1;0;506;506;CITTA' DI STRADELLA; ;CENTRO DIURNO DISABILI OTTOBRE 2017;11/12/2017;3400;1;0;1;Spese correnti;4;Trasferimenti correnti;1;Trasferimenti correnti a Amministrazioni Pubbliche;2;Trasferimenti correnti a Amministrazioni Locali;3;Trasferimenti correnti a Comuni;11/12/2017
550;1;0;500;500;ROVATI ANTONIO;ZDA1C3FBFD;SALDO Fatt.n. 3/2017  del 13/11/2017 servizio di sgombero neve dai suoli dei comuni aderenti all'Unione Campospinoso Albaredo;11/12/2017;2300;0;93;1;Spese correnti;3;Acquisto di beni e servizi;2;Acquisto di servizi;99;Altri servizi;999;Altri servizi diversi n.a.c.;11/12/2017
551;1;0;22.000,00;22.000,00;ENEL SOLE SRL;6781150DFE;SALDO Fatt.n. 1730057655  del 22/11/2017 ROTATORIA;11/12/2017;7800;0;85;2;Spese in conto capitale;5;Altre spese in conto capitale;99;Altre spese in conto capitale n.a.c.;99;Altre spese in conto capitale n.a.c.;999;Altre spese in conto capitale n.a.c.;11/12/2017
552;1;0;392,49;392,49;COOPERATIVA SOCIALE CODAMS DUE;Z902036837;SALDO Fatt.n. 0510PA  del 31/10/2017 ASSISTENZA SCOLASTICA OTTOBRE 2017;11/12/2017;3115;0;0;1;Spese correnti;3;Acquisto di beni e servizi;2;Acquisto di servizi;99;Altri servizi;999;Altri servizi diversi n.a.c.;11/12/2017
553;1;0;2,24;13,48;PAVIA ACQUE S.C.A.R.L.; ;SALDO Fatt.n. 2550220172500326400  del 03/11/2017 ACQUA;11/12/2017;2840;0;0;1;Spese correnti;3;Acquisto di beni e servizi;2;Acquisto di servizi;5;Utenze e canoni;5;Acqua;11/12/2017
553;2;0;11,24;13,48;PAVIA ACQUE S.C.A.R.L.; ;SALDO Fatt.n. 2550220172500324900  del 03/11/2017 B/Bollettazione;11/12/2017;2840;0;0;1;Spese correnti;3;Acquisto di beni e servizi;2;Acquisto di servizi;5;Utenze e canoni;5;Acqua;11/12/2017
554;1;0;20,48;53,79;PAVIA ACQUE S.C.A.R.L.; ;SALDO Fatt.n. 2550220172500324700  del 03/11/2017 B/Bollettazione;11/12/2017;3471;0;0;1;Spese correnti;3;Acquisto di beni e servizi;2;Acquisto di servizi;5;Utenze e canoni;5;Acqua;11/12/2017
554;2;0;33,31;53,79;PAVIA ACQUE S.C.A.R.L.; ;SALDO Fatt.n. 2550220172500325900  del 03/11/2017 B/Bollettazione;11/12/2017;3471;0;0;1;Spese correnti;3;Acquisto di beni e servizi;2;Acquisto di servizi;5;Utenze e canoni;5;Acqua;11/12/2017
555;1;0;2,24;44,8;PAVIA ACQUE S.C.A.R.L.; ;SALDO Fatt.n. 2550220172500326200  del 03/11/2017 B/Bollettazione;11/12/2017;660;0;0;1;Spese correnti;3;Acquisto di beni e servizi;2;Acquisto di servizi;99;Altri servizi;999;Altri servizi diversi n.a.c.;11/12/2017
555;2;0;2,92;44,8;PAVIA ACQUE S.C.A.R.L.; ;SALDO Fatt.n. 2550220172500326300  del 03/11/2017 B/Bollettazione;11/12/2017;660;0;0;1;Spese correnti;3;Acquisto di beni e servizi;2;Acquisto di servizi;99;Altri servizi;999;Altri servizi diversi n.a.c.;11/12/2017
555;3;0;4,27;44,8;PAVIA ACQUE S.C.A.R.L.; ;SALDO Fatt.n. 2550220172500326000  del 03/11/2017 B/Bollettazione;11/12/2017;660;0;0;1;Spese correnti;3;Acquisto di beni e servizi;2;Acquisto di servizi;99;Altri servizi;999;Altri servizi diversi n.a.c.;11/12/2017
555;4;0;7,81;44,8;PAVIA ACQUE S.C.A.R.L.; ;SALDO Fatt.n. 2550220172500326100  del 03/11/2017 B/Bollettazione;11/12/2017;660;0;0;1;Spese correnti;3;Acquisto di beni e servizi;2;Acquisto di servizi;99;Altri servizi;999;Altri servizi diversi n.a.c.;11/12/2017
555;5;0;12,2;44,8;PAVIA ACQUE S.C.A.R.L.; ;SALDO Fatt.n. 2550220172500324800  del 03/11/2017 B/Bollettazione;11/12/2017;660;0;0;1;Spese correnti;3;Acquisto di beni e servizi;2;Acquisto di servizi;99;Altri servizi;999;Altri servizi diversi n.a.c.;11/12/2017
555;6;0;15,36;44,8;PAVIA ACQUE S.C.A.R.L.; ;SALDO Fatt.n. 2550220172500325000  del 03/11/2017 B/Bollettazione;11/12/2017;660;0;0;1;Spese correnti;3;Acquisto di beni e servizi;2;Acquisto di servizi;99;Altri servizi;999;Altri servizi diversi n.a.c.;11/12/2017
556;1;0;80;80;ASSOCIAZIONE LEGA DEI COMUNI; ; ;11/12/2017;120;2;0;1;Spese correnti;3;Acquisto di beni e servizi;2;Acquisto di servizi;4;Acquisto di servizi per formazione e addestramento del personale dell'ente;999;Acquisto di servizi per altre spese per formazione e addestramento n.a.c.;11/12/2017
557;1;0;1.517,80;1.517,80;CARTOLERIA VANETTA DI MOLINARI IVANO; ;SALDO Fatt.n. FATTPA 24_17  del 27/11/2017 LIBRI;11/12/2017;1330;2;0;1;Spese correnti;4;Trasferimenti correnti;3;Trasferimenti correnti a Imprese;99;Trasferimenti correnti a altre imprese;999;Trasferimenti correnti a altre imprese;11/12/2017
558;1;0;1.825,67;1.825,67;CAGNONI CARS SRL;ZDF1FE0275;SALDO Fatt.n. 4/PA  del 17/10/2017 MANUTENZIONE E RIPARAZIONE SCUOLABUS TARGATO DT759YG;11/12/2017;1581;0;0;1;Spese correnti;3;Acquisto di beni e servizi;2;Acquisto di servizi;9;Manutenzione ordinaria e riparazioni;1;Manutenzione ordinaria e riparazioni di mezzi di trasporto ad uso civile, di sicurezza e ordine pubblico;11/12/2017
559;1;0;23,79;23,79;TELECOM ITALIA SPA; ;SALDO Fatt.n. 8B00998885  del 05/10/2017 6BIM 2017;11/12/2017;660;0;0;1;Spese correnti;3;Acquisto di beni e servizi;2;Acquisto di servizi;99;Altri servizi;999;Altri servizi diversi n.a.c.;11/12/2017
560;1;0;506;506;"LUCIO SALESINI&amp;C SNC";Z031FCD6F2;SALDO Fatt.n. 127  del 30/10/2017 SERVIZIO TRASPORTO;11/12/2017;1584;0;0;1;Spese correnti;3;Acquisto di beni e servizi;2;Acquisto di servizi;99;Altri servizi;999;Altri servizi diversi n.a.c.;11/12/2017
561;1;0;168,73;168,73;ECOTEC S.R.L.;Z9E1A6BSCD;SALDO Fatt.n. 212/PA  del 12/10/2017 manutenzione fotocopiatrice;11/12/2017;390;1;0;1;Spese correnti;3;Acquisto di beni e servizi;2;Acquisto di servizi;9;Manutenzione ordinaria e riparazioni;4;Manutenzione ordinaria e riparazioni di impianti e macchinari;11/12/2017
562;1;0;719,85;1.920,40;C.M.E. MARMI E GRANITI;35487297CE;SALDO Fatt.n. 24/PA  del 04/10/2017 COTTIMO FIDUCIARIO;11/12/2017;3470;1;0;1;Spese correnti;3;Acquisto di beni e servizi;2;Acquisto di servizi;99;Altri servizi;999;Altri servizi diversi n.a.c.;11/12/2017
562;2;0;1.200,55;1.920,40;C.M.E. MARMI E GRANITI;35487297CE;SALDO Fatt.n. 21/PA  del 07/09/2017 COTTIMO FIDUCIARIO;11/12/2017;3470;1;0;1;Spese correnti;3;Acquisto di beni e servizi;2;Acquisto di servizi;99;Altri servizi;999;Altri servizi diversi n.a.c.;11/12/2017
563;1;0;687;1.774,00;KUWAIT PETROLEUM ITALIA SPA; ;ACCONTO Fatt.n. PJ00096278  del 30/09/2017;11/12/2017;1570;0;0;1;Spese correnti;3;Acquisto di beni e servizi;1;Acquisto di beni;2;Altri beni di consumo;2;Carburanti, combustibili e lubrificanti;11/12/2017
563;2;0;1.087,00;1.774,00;KUWAIT PETROLEUM ITALIA SPA; ;ACCONTO Fatt.n. PJ00100331  del 31/10/2017;11/12/2017;1570;0;0;1;Spese correnti;3;Acquisto di beni e servizi;1;Acquisto di beni;2;Altri beni di consumo;2;Carburanti, combustibili e lubrificanti;11/12/2017
564;1;0;93;219,01;KUWAIT PETROLEUM ITALIA SPA;ZCB1769D6B;ACCONTO Fatt.n. PJ00100331  del 31/10/2017;11/12/2017;2290;0;0;1;Spese correnti;3;Acquisto di beni e servizi;1;Acquisto di beni;2;Altri beni di consumo;999;Altri beni e materiali di consumo n.a.c.;11/12/2017
564;2;0;126,01;219,01;KUWAIT PETROLEUM ITALIA SPA; ;ACCONTO Fatt.n. PJ00096278  del 30/09/2017;11/12/2017;2290;0;0;1;Spese correnti;3;Acquisto di beni e servizi;1;Acquisto di beni;2;Altri beni di consumo;999;Altri beni e materiali di consumo n.a.c.;11/12/2017
565;1;0;58;168;KUWAIT PETROLEUM ITALIA SPA;ZCB1769D6B;SALDO Fatt.n. PJ00096278  del 30/09/2017;11/12/2017;385;1;0;1;Spese correnti;3;Acquisto di beni e servizi;1;Acquisto di beni;2;Altri beni di consumo;2;Carburanti, combustibili e lubrificanti;11/12/2017
565;2;0;110;168;KUWAIT PETROLEUM ITALIA SPA; ;SALDO Fatt.n. PJ00100331  del 31/10/2017;11/12/2017;385;1;0;1;Spese correnti;3;Acquisto di beni e servizi;1;Acquisto di beni;2;Altri beni di consumo;2;Carburanti, combustibili e lubrificanti;11/12/2017
566;1;0;10;203;LIBARNA GAS SPA; ;SALDO Fatt.n. 100565  del 25/10/2017 metano;11/12/2017;660;0;0;1;Spese correnti;3;Acquisto di beni e servizi;2;Acquisto di servizi;99;Altri servizi;999;Altri servizi diversi n.a.c.;11/12/2017
566;2;0;10;203;LIBARNA GAS SPA; ;SALDO Fatt.n. 100569  del 26/10/2017 metano;11/12/2017;660;0;0;1;Spese correnti;3;Acquisto di beni e servizi;2;Acquisto di servizi;99;Altri servizi;999;Altri servizi diversi n.a.c.;11/12/2017
566;3;0;10;203;LIBARNA GAS SPA; ;SALDO Fatt.n. 100570  del 26/10/2017 metano;11/12/2017;660;0;0;1;Spese correnti;3;Acquisto di beni e servizi;2;Acquisto di servizi;99;Altri servizi;999;Altri servizi diversi n.a.c.;11/12/2017
566;4;0;22;203;LIBARNA GAS SPA; ;SALDO Fatt.n. 100572  del 26/10/2017 metano;11/12/2017;660;0;0;1;Spese correnti;3;Acquisto di beni e servizi;2;Acquisto di servizi;99;Altri servizi;999;Altri servizi diversi n.a.c.;11/12/2017
566;5;0;33;203;LIBARNA GAS SPA; ;SALDO Fatt.n. 100571  del 26/10/2017 metano;11/12/2017;660;0;0;1;Spese correnti;3;Acquisto di beni e servizi;2;Acquisto di servizi;99;Altri servizi;999;Altri servizi diversi n.a.c.;11/12/2017
566;6;0;36;203;LIBARNA GAS SPA; ;SALDO Fatt.n. 100566  del 25/10/2017 metano;11/12/2017;660;0;0;1;Spese correnti;3;Acquisto di beni e servizi;2;Acquisto di servizi;99;Altri servizi;999;Altri servizi diversi n.a.c.;11/12/2017
566;7;0;82;203;LIBARNA GAS SPA; ;SALDO Fatt.n. 100573  del 26/10/2017 metano;11/12/2017;660;0;0;1;Spese correnti;3;Acquisto di beni e servizi;2;Acquisto di servizi;99;Altri servizi;999;Altri servizi diversi n.a.c.;11/12/2017
567;1;0;22,25;22,25;NUOVA CARTOLERIA COLOMBI S.A.S. DI MESSINA MORENO E C.; ;SALDO Fatt.n. 5/PA  del 19/10/2017 LIBRI;11/12/2017;1330;2;0;1;Spese correnti;4;Trasferimenti correnti;3;Trasferimenti correnti a Imprese;99;Trasferimenti correnti a altre imprese;999;Trasferimenti correnti a altre imprese;11/12/2017
568;1;0;30,18;30,18;CARTOLERIA PASCOLI DI PARECHI FABIO; ;CEDOLE LIBRI ELEMENTARI - NOTA RIMBORSO N. 31;11/12/2017;1330;2;0;1;Spese correnti;4;Trasferimenti correnti;3;Trasferimenti correnti a Imprese;99;Trasferimenti correnti a altre imprese;999;Trasferimenti correnti a altre imprese;11/12/2017
569;1;0;48,64;82,68;EMMEBI DI BALLONI FRANCESCO; ;LIBRI TESTO ELEMENTARI;11/12/2017;1330;2;0;1;Spese correnti;4;Trasferimenti correnti;3;Trasferimenti correnti a Imprese;99;Trasferimenti correnti a altre imprese;999;Trasferimenti correnti a altre imprese;11/12/2017
569;2;0;34,04;82,68;IL PASTELLO S.N.C. di Bellinzona N. e C.; ;SALDO Fatt.n. FATTPA 14_17  del 07/12/2017 LIBRI;11/12/2017;1330;2;0;1;Spese correnti;4;Trasferimenti correnti;3;Trasferimenti correnti a Imprese;99;Trasferimenti correnti a altre imprese;999;Trasferimenti correnti a altre imprese;11/12/2017
570;1;0;272,69;272,69;UNIPOL SAI - AGENTE ARDISSONE PAOLO; ;POLIZZA INFORTUNI N. 177/761670290 SCAD. 30.11.2017;13/12/2017;390;1;0;1;Spese correnti;3;Acquisto di beni e servizi;2;Acquisto di servizi;9;Manutenzione ordinaria e riparazioni;6;Manutenzione ordinaria e riparazioni di macchine per ufficio;13/12/2017
588;1;0;1.599,00;1.599,00;CARBONARO FILIPPO; ;CONTRIBUTO COMPARTECIPAZIONE RETTA CASA DI RIPOSO DISABILE SIG. CARBONARO DAL 29.08.2017 AL 31.12.2017;15/12/2017;3398;0;0;1;Spese correnti;4;Trasferimenti correnti;3;Trasferimenti correnti a Imprese;99;Trasferimenti correnti a altre imprese;999;Trasferimenti correnti a altre imprese;15/12/2017
589;1;0;28,8;28,8;omissis; ;CONTRIBUTO MENSA ANNO SCOLASTICO 2014/2015 - VED. REV.N. 324;15/12/2017;1330;0;95;1;Spese correnti;4;Trasferimenti correnti;2;Trasferimenti correnti a Famiglie;2;Interventi assistenziali;999;Altri assegni e sussidi assistenziali;15/12/2017
590;1;0;33,6;33,6;omissis; ;CONTRIBUTO MENSA ANNO SCOLASTICO 2015/2016 - VED. REV.N. 324;15/12/2017;1330;0;47;1;Spese correnti;4;Trasferimenti correnti;2;Trasferimenti correnti a Famiglie;2;Interventi assistenziali;999;Altri assegni e sussidi assistenziali;15/12/2017
591;1;0;58,08;58,08;omissis; ;CONTRIBUTO MENSA ANNO SCOLASTICO 2016/2017 - VED. REV.N. 324;15/12/2017;1330;0;0;1;Spese correnti;4;Trasferimenti correnti;2;Trasferimenti correnti a Famiglie;2;Interventi assistenziali;999;Altri assegni e sussidi assistenziali;15/12/2017
592;1;0;11;990;LIBARNA GAS SPA; ;SALDO Fatt.n. 100659  del 30/11/2017 METANO;16/12/2017;660;0;0;1;Spese correnti;3;Acquisto di beni e servizi;2;Acquisto di servizi;99;Altri servizi;999;Altri servizi diversi n.a.c.;16/12/2017
592;2;0;12;990;LIBARNA GAS SPA; ;SALDO Fatt.n. 100654  del 30/11/2017 METANO;16/12/2017;660;0;0;1;Spese correnti;3;Acquisto di beni e servizi;2;Acquisto di servizi;99;Altri servizi;999;Altri servizi diversi n.a.c.;16/12/2017
592;3;0;12;990;LIBARNA GAS SPA; ;SALDO Fatt.n. 100655  del 30/11/2017 METANO;16/12/2017;660;0;0;1;Spese correnti;3;Acquisto di beni e servizi;2;Acquisto di servizi;99;Altri servizi;999;Altri servizi diversi n.a.c.;16/12/2017
592;4;0;111;990;LIBARNA GAS SPA; ;SALDO Fatt.n. 100656  del 30/11/2017 METANO;16/12/2017;660;0;0;1;Spese correnti;3;Acquisto di beni e servizi;2;Acquisto di servizi;99;Altri servizi;999;Altri servizi diversi n.a.c.;16/12/2017
592;5;0;139;990;LIBARNA GAS SPA; ;SALDO Fatt.n. 100657  del 30/11/2017 METANO;16/12/2017;660;0;0;1;Spese correnti;3;Acquisto di beni e servizi;2;Acquisto di servizi;99;Altri servizi;999;Altri servizi diversi n.a.c.;16/12/2017
592;6;0;346;990;LIBARNA GAS SPA; ;SALDO Fatt.n. 100658  del 30/11/2017 METANO;16/12/2017;660;0;0;1;Spese correnti;3;Acquisto di beni e servizi;2;Acquisto di servizi;99;Altri servizi;999;Altri servizi diversi n.a.c.;16/12/2017
592;7;0;359;990;LIBARNA GAS SPA; ;SALDO Fatt.n. 100660  del 30/11/2017 METANO;16/12/2017;660;0;0;1;Spese correnti;3;Acquisto di beni e servizi;2;Acquisto di servizi;99;Altri servizi;999;Altri servizi diversi n.a.c.;16/12/2017
593;1;0;1.025,20;1.025,20;GUARNASCHELLI FABIO;Z301F30272;SALDO Fatt.n. 26/A  del 20/11/2017 FORNITURA E POSA PIANTE;16/12/2017;3020;0;0;1;Spese correnti;3;Acquisto di beni e servizi;2;Acquisto di servizi;99;Altri servizi;999;Altri servizi diversi n.a.c.;16/12/2017
594;1;0;4.705,54;4.705,54;TELECOM ITALIA SPA;6781150DFE;SALDO Fatt.n. C12020171001071134  del 31/10/2017 RIF.TO C.T. LO/2016/000754 FATTURAZIONE A SALDO DEL LAVORO ESEGUITO PER;16/12/2017;7801;0;0;2;Spese in conto capitale;5;Altre spese in conto capitale;99;Altre spese in conto capitale n.a.c.;99;Altre spese in conto capitale n.a.c.;999;Altre spese in conto capitale n.a.c.;16/12/2017
595;1;0;2.422,43;2.422,43;STUDIO ASS.AVV.BRAMBILLA FUZIER; ;ACCONTO Fatt.n. 78/PA  del 30/11/2017;16/12/2017;2700;0;59;1;Spese correnti;3;Acquisto di beni e servizi;2;Acquisto di servizi;11;Prestazioni professionali e specialistiche;6;Patrocinio legale;16/12/2017
596;1;0;24.280,93;24.280,93;STUDIO ASS.AVV.BRAMBILLA FUZIER; ;SALDO Fatt.n. 78/PA  del 30/11/2017;16/12/2017;7846;0;119;2;Spese in conto capitale;5;Altre spese in conto capitale;99;Altre spese in conto capitale n.a.c.;99;Altre spese in conto capitale n.a.c.;999;Altre spese in conto capitale n.a.c.;16/12/2017
598;1;0;2.169,30;2.169,30;CASSA DD.PP.; ;CAUSALE: CDP008 0016714 06036 31122017 VALUTA 29.12.2017;16/12/2017;2860;0;0;1;Spese correnti;7;Interessi passivi;5;Interessi su Mutui e altri finanziamenti a medio lungo termine;5;Interessi passivi su mutui e altri finanziamenti a medio lungo termine ad altri soggetti;999;Interessi passivi su mutui e altri finanziamenti a medio lungo termine ad altri soggetti;16/12/2017
599;1;0;5.002,11;5.002,11;CASSA DD.PP.; ;CAUSALE : CDP008 0016714 06036 31122017;16/12/2017;7810;0;0;1;Spese correnti;7;Interessi passivi;5;Interessi su Mutui e altri finanziamenti a medio lungo termine;5;Interessi passivi su mutui e altri finanziamenti a medio lungo termine ad altri soggetti;999;Interessi passivi su mutui e altri finanziamenti a medio lungo termine ad altri soggetti;16/12/2017
600;1;0;3.026,32;3.026,32;ERARIO; ;VERSAMENTO ACCONTO IVA SCAD. 27.12.2017;20/12/2017;686;0;0;1;Spese correnti;10;Altre spese correnti;3;Versamenti IVA a debito;1;Versamenti IVA a debito per le gestioni commerciali;1;Versamenti IVA a debito per le gestioni commerciali;20/12/2017
606;1;0;2;25,5;INTESA SAN PAOLO SPA; ;SPESE BANCARIE E BOLLI - PROVV.N. 116 DEL 29.12.2017;31/12/2017;135;0;0;1;Spese correnti;3;Acquisto di beni e servizi;2;Acquisto di servizi;99;Altri servizi;999;Altri servizi diversi n.a.c.;31/12/2017
606;2;0;23,5;25,5;INTESA SAN PAOLO SPA; ;SPESE BANCARIE E BOLLI - PROVV.N. 119 DEL 29.12.2017;31/12/2017;135;0;0;1;Spese correnti;3;Acquisto di beni e servizi;2;Acquisto di servizi;99;Altri servizi;999;Altri servizi diversi n.a.c.;31/12/2017
607;1;0;25,57;25,57;ENEL SERVIZIO ELETTRICO SPA; ;SALDO Fatt.n. 188550270101216  del 09/12/2017 VIA FALCONE NOV. 2017 SCAD. 29.12.17;31/12/2017;660;0;0;1;Spese correnti;3;Acquisto di beni e servizi;2;Acquisto di servizi;99;Altri servizi;999;Altri servizi diversi n.a.c.;31/12/2017
608;1;0;122,95;122,95;ENEL SERVIZIO ELETTRICO SPA; ;ILLUM.PUBBLICA VIA FIAMBERTA NOV-DIC. 2017 SCAD. 29.12.2017 - PROVV.N. 117 DEL 29.12.2017;31/12/2017;2390;0;0;1;Spese correnti;3;Acquisto di beni e servizi;2;Acquisto di servizi;5;Utenze e canoni;4;Energia elettrica;31/12/2017
